Workbook

Sheet 1. Info
AA1: Revenue Requirement Workform (RRWF) for 2027 Filers | AC1: =IF('3. Data_Input_Sheet'!M12=0, "", '3. Data_Input_Sheet'!M12) -> Interrogatory Responses
AA2: 1.1 | AC2: =IF('3. Data_Input_Sheet'!U12=0, "", '3. Data_Input_Sheet'!U12) -> Settlement Agreement
P11: Version | Q11: =$AA$2 -> 1.1
F16: Utility Name | G16: Rideau St. Lawrence Distribution Inc.
F18: Service Territory | G18: Prescott Russel
F20: Assigned EB Number | G20: EB-2026-0069 | AA20: Company Name
Z21: 1 | AA21: Alectra Utilities Corporation-Brampton Rate Zone
F22: Name and Title | G22: Simon Wu President CEO | Z22: 2 | AA22: Alectra Utilities Corporation-Enersource Rate Zone
Z23: 3 | AA23: Alectra Utilities Corporation-Horizon Utilities Rate Zone
F24: Phone Number | G24: 613-925-3851 phone ext. 5001 | Z24: 4 | AA24: Alectra Utilities Corporation-PowerStream Rate Zone
Z25: 5 | AA25: Alectra Utilities Corporation-Guelph Rate Zone
F26: Email Address | G26: swu@rslu.ca | Z26: 6 | AA26: Algoma Power Inc.
Z27: 7 | AA27: Atikokan Hydro Inc.
E28: Test Year | G28: 2027 | Z28: 8 | AA28: Bluewater Power Distribution Corporation
Z29: 9 | AA29: Burlington Hydro Inc.
E30: Bridge Year | G30: 2026 | Z30: 10 | AA30: Canadian Niagara Power Inc.
Z31: 11 | AA31: Centre Wellington Hydro Ltd.
E32: Last Rebasing Year | G32: 2022 | Z32: 12 | AA32: Chapleau Public Utilities Corporation
Z33: 13 | AA33: Cooperative Hydro Embrun Inc.
Z34: 14 | AA34: E.L.K. Energy Inc.
Z35: 15 | AA35: Elexicon Energy Inc.-Whitby Rate Zone
Z36: 16 | AA36: Elexicon Energy Inc.-Veridian Rate Zone
A37: The RRWF has been enhanced commencing with 2017 rate applications to provide estimated base distribution rates. The enhanced RRWF is not intended to replace a utility’s formal rate generator model which should continue to be the source of the proposed rates as well as the final ones at the conclusion of the proceeding. The load forecasting addition made to this model is intended to be demonstrative only and does not replace the information filed in the utility’s application. In an effort to minimize the incremental work required from utilities, the cost allocation and rate design additions to this model do in fact replace former appendices that were required to be filed as part of the cost of service (Chapter 2) filing requirements. | Z37: 17 | AA37: Enova Power Corp.-Kitchener-Wilmot Hydro Rate Zone
AA38: Enova Power Corp.-Waterloo North Rate Zone
A39: Commencing with 2023 rate applications, the RRWF has been enhanced with an additional column, so that two stages of processing of an application (e.g. interrogatory responses and settlement agreement) between the initial application filing and the OEB decision and draft rate order ("Per Board Decision") can be used. Functionality of the RRWF is the same as in previous versions of the RRWF. (May 2022) | Z39: 18 | AA39: Entegrus Powerlines Inc.-For Entegrus-Main Rate Zone
Z40: 19 | AA40: Entegrus Powerlines Inc.-For Former St. Thomas Energy Rate Zone
Z41: 20 | AA41: ENWIN Utilities Ltd.
Z42: 21 | AA42: EPCOR Electricity Distribution Ontario Inc.
Z43: 22 | AA43: ERTH Power Corporation - ERTH Power Main Rate Zone
Z44: 23 | AA44: ERTH POWER CORPORATION – GODERICH RATE ZONE
Z45: 24 | AA45: Espanola Regional Hydro Distribution Corporation
Z46: 25 | AA46: Essex Powerlines Corporation
Z47: 26 | AA47: Festival Hydro Inc.
Z48: 27 | AA48: Fort Frances Power Corporation
Z49: 28 | AA49: GrandBridge Energy Inc.-Brantford Power Rate Zone
Z50: 29 | AA50: GrandBridge Energy Inc.-Energy+ Rate Zone
Z51: 30 | AA51: Greater Sudbury Hydro Inc.
Z52: 31 | AA52: Grimsby Power Incorporated
Z53: 32 | AA53: Halton Hills Hydro Inc.
Z54: 33 | AA54: Hearst Power Distribution Co. Ltd.
Z55: 34 | AA55: Hydro 2000 Inc.
Z56: 35 | AA56: Hydro Hawkesbury Inc.
Z57: 36 | AA57: Hydro One Networks Inc.
Z58: 37 | AA58: Hydro One Networks Inc.-Former Orillia Power Distribution Corporation Service Area
Z59: 38 | AA59: Hydro One Networks Inc.-Former Peterborough Distribution Inc. Service Area
Z60: 39 | AA60: Hydro One Networks Inc.-Former Haldimand County Hydro Inc. Service Area
Z61: 40 | AA61: Hydro One Networks Inc.-Former Norfolk Power Distribution Inc. Service Area
Z62: 41 | AA62: Hydro One Networks Inc.-Former Woodstock Hydro Services Inc. Service Area
Z63: 42 | AA63: Hydro One Remote Communites Inc.
Z64: 43 | AA64: Hydro Ottawa Limited
Z65: 44 | AA65: InnPower Corporation
Z66: 45 | AA66: Kingston Hydro Corporation
Z67: 46 | AA67: Lakefront Utilities Inc.
Z68: 47 | AA68: Lakeland Power Distribution Ltd.
Z69: 48 | AA69: London Hydro Inc.
Z70: 49 | AA70: Milton Hydro Distribution Inc.
Z71: 50 | AA71: Newmarket-Tay Power Distribution Ltd.-For Former Midland Power Utility Rate Zone
Z72: 51 | AA72: Newmarket-Tay Power Distribution Ltd.-For Newmarket-Tay Power Main Rate Zone
Z73: 52 | AA73: Niagara Peninsula Energy Inc.
Z74: 53 | AA74: Niagara-on-the-Lake Hydro Inc.
Z75: 54 | AA75: North Bay Hydro Distribution Limited
Z76: 55 | AA76: Northern Ontario Wires Inc.
Z77: 56 | AA77: Oakville Hydro Electricity Distribution Inc.
Z78: 57 | AA78: Orangeville Hydro Limited
Z79: 58 | AA79: Oshawa PUC Networks Inc.
Z80: 59 | AA80: Ottawa River Power Corporation
Z81: 60 | AA81: PUC Distribution Inc.
Z82: 61 | AA82: Renfrew Hydro Inc.
Z83: 62 | AA83: Rideau St. Lawrence Distribution Inc.
Z84: 63 | AA84: Sioux Lookout Hydro Inc.
Z85: 64 | AA85: Synergy North Corporation-Kenora Rate Zone
Z86: 65 | AA86: Synergy North Corporation-Thunder Bay Rate Zone
Z87: 66 | AA87: Tillsonburg Hydro Inc.
Z88: 67 | AA88: Toronto Hydro-Electric System Limited
Z89: 68 | AA89: Wasaga Distribution Inc.
Z90: 69 | AA90: Welland Hydro-Electric System Corp.
Z91: 70 | AA91: Wellington North Power Inc.
Z92: 71 | AA92: Westario Power Inc.

Sheet 2. Table of Contents
A10: Table of Contents
D12: 1. Info | I12: 8. Rev_Def_Suff
D14: 2. Table of Contents | I14: 9. Rev_Reqt
D16: 3. Data_Input_Sheet | I16: 10. Load Forecast
D18: 4. Rate_Base | I18: 11. Cost Allocation
D20: 5. Utility Income | I20: 12. Residential Rate Design - hidden. Contact OEB staff if needed.
D22: 6. Taxes_PILs | I22: 13. Rate Design and Revenue Reconciliation
D24: 7. Cost_of_Capital | I24: 14. Tracking Sheet
A26: Notes:
A27: (1) | B27: Pale green cells represent inputs
A28: (2) | B28: Pale green boxes at the bottom of each page are for additional notes
A29: (3) | B29: Pale blue cells represent drop-down lists

Sheet 3. Data_Input_Sheet
U1: =CONCATENATE('2. Table of Contents'!$F$6," ",'2. Table of Contents'!$G$6) -> 
B9: Data Input Sheet
E12: Initial Application | G12: (1) | I12: =IF(ISBLANK(M12),"","Adjustments") -> Adjustments | M12: Interrogatory Responses | O12: (5) | Q12: =IF(ISBLANK(M12),"","Adjustments") -> Adjustments | U12: Settlement Agreement | W12: (5) | Y12: =IF(ISBLANK(U12),"","Adjustments") -> Adjustments | AC12: Per Board Decision
B15: 1 | C15: Rate Base
C16: Gross Fixed Assets (average) | E16: 18899363.3 | H16: (3) | I16: =IF(ISBLANK(M16),"",IF(ISBLANK(E16),"",M16-E16)) ->  | Q16: =IF(ISBLANK(U16),"",IF(ISBLANK(M16),"",U16-M16)) ->  | Y16: =IF(ISBLANK(AC16),"",IF(ISBLANK(U16),"",AC16-U16)) -> 
C17: Accumulated Depreciation (average) | E17: -4826714.314 | G17: (4) | I17: =IF(ISBLANK(M17),"",IF(ISBLANK(E17),"",M17-E17)) ->  | Q17: =IF(ISBLANK(U17),"",IF(ISBLANK(M17),"",U17-M17)) ->  | Y17: =IF(ISBLANK(AC17),"",IF(ISBLANK(U17),"",AC17-U17)) -> 
C18: Allowance for Working Capital:
C19: Controllable Expenses | E19: 3753312.916 | I19: =IF(ISBLANK(M19),"",IF(ISBLANK(E19),"",M19-E19)) ->  | Q19: =IF(ISBLANK(U19),"",IF(ISBLANK(M19),"",U19-M19)) ->  | Y19: =IF(ISBLANK(AC19),"",IF(ISBLANK(U19),"",AC19-U19)) -> 
C20: Cost of Power | E20: 15887077.36 | I20: =IF(ISBLANK(M20),"",IF(ISBLANK(E20),"",M20-E20)) ->  | Q20: =IF(ISBLANK(U20),"",IF(ISBLANK(M20),"",U20-M20)) ->  | Y20: =IF(ISBLANK(AC20),"",IF(ISBLANK(U20),"",AC20-U20)) -> 
C21: Working Capital Rate (%) | E21: 0.075 | G21: (8) | I21: =IF(ISBLANK(M21),"",IF(ISBLANK(E21),"",M21-E21)) ->  | O21: (8) | Q21: =IF(ISBLANK(U21),"",IF(ISBLANK(M21),"",U21-M21)) ->  | W21: (8) | Y21: =IF(ISBLANK(AC21),"",IF(ISBLANK(U21),"",AC21-U21)) ->  | AE21: (8)
B23: 2 | C23: Utility Income
C24: Operating Revenues:
C25: Distribution Revenue at Current Rates | E25: 4026602.876 | I25: =IF(ISBLANK(M25),"",IF(ISBLANK(E25),"",M25-E25)) ->  | Q25: =IF(ISBLANK(U25),"",IF(ISBLANK(M25),"",U25-M25)) ->  | Y25: =IF(ISBLANK(AC25),"",IF(ISBLANK(U25),"",AC25-U25)) -> 
C26: Distribution Revenue at Proposed Rates | E26: 4959191.352 | I26: =IF(ISBLANK(M26),"",IF(ISBLANK(E26),"",M26-E26)) ->  | Q26: =IF(ISBLANK(U26),"",IF(ISBLANK(M26),"",U26-M26)) ->  | Y26: =IF(ISBLANK(AC26),"",IF(ISBLANK(U26),"",AC26-U26)) -> 
C27: Other Revenue:
C28: Miscellaneous Service Revenues | E28: 92845.20188 | I28: =IF(ISBLANK(M28),"",IF(ISBLANK(E28),"",M28-E28)) ->  | Q28: =IF(ISBLANK(U28),"",IF(ISBLANK(M28),"",U28-M28)) ->  | Y28: =IF(ISBLANK(AC28),"",IF(ISBLANK(U28),"",AC28-U28)) -> 
C29: Late Payment Charges | E29: 77582.03626 | I29: =IF(ISBLANK(M29),"",IF(ISBLANK(E29),"",M29-E29)) ->  | Q29: =IF(ISBLANK(U29),"",IF(ISBLANK(M29),"",U29-M29)) ->  | Y29: =IF(ISBLANK(AC29),"",IF(ISBLANK(U29),"",AC29-U29)) -> 
C30: Other Operating Revenues | E30: 196225.9132 | I30: =IF(ISBLANK(M30),"",IF(ISBLANK(E30),"",M30-E30)) ->  | Q30: =IF(ISBLANK(U30),"",IF(ISBLANK(M30),"",U30-M30)) ->  | Y30: =IF(ISBLANK(AC30),"",IF(ISBLANK(U30),"",AC30-U30)) -> 
C31: Other Income and Deductions | E31: 33652.89377 | I31: =IF(ISBLANK(M31),"",IF(ISBLANK(E31),"",M31-E31)) ->  | Q31: =IF(ISBLANK(U31),"",IF(ISBLANK(M31),"",U31-M31)) ->  | Y31: =IF(ISBLANK(AC31),"",IF(ISBLANK(U31),"",AC31-U31)) -> 
D33: Total Revenue Offsets | E33: 400306.0451 | G33: (6) | I33: =IF(ISBLANK(M33),"",IF(ISBLANK(E33),"",M33-E33)) ->  | Q33: =IF(ISBLANK(U33),"",IF(ISBLANK(M33),"",U33-M33)) ->  | Y33: =IF(ISBLANK(AC33),"",IF(ISBLANK(U33),"",AC33-U33)) -> 
C35: Operating Expenses:
C36: OM+A Expenses | E36: 3718936.318 | I36: =IF(ISBLANK(M36),"",IF(ISBLANK(E36),"",M36-E36)) ->  | Q36: =IF(ISBLANK(U36),"",IF(ISBLANK(M36),"",U36-M36)) ->  | Y36: =IF(ISBLANK(AC36),"",IF(ISBLANK(U36),"",AC36-U36)) -> 
C37: Depreciation/Amortization | E37: 685011.58 | I37: =IF(ISBLANK(M37),"",IF(ISBLANK(E37),"",M37-E37)) -> 
C38: Property taxes | E38: 34376.59732 | I38: =IF(ISBLANK(M38),"",IF(ISBLANK(E38),"",M38-E38)) -> 
C39: Capital taxes
C40: Other expenses | I40: =IF(ISBLANK(M40),"",IF(ISBLANK(E40),"",M40-E40)) -> 
B42: 3 | C42: Taxes/PILs
C43: Taxable Income:
D44: Adjustments required to arrive at taxable income | E44: -619053.1872 | G44: (2) | I44: =IF(ISBLANK(M44),"",IF(ISBLANK(E44),"",M44-E44)) ->  | Q44: =IF(ISBLANK(U44),"",IF(ISBLANK(M44),"",U44-M44)) ->  | Y44: =IF(ISBLANK(AC44),"",IF(ISBLANK(U44),"",AC44-U44)) -> 
C45: Utility Income Taxes and Rates:
C46: Income taxes (not grossed up) | E46: 0 | I46: =IF(ISBLANK(M46),"",IF(ISBLANK(E46),"",M46-E46)) ->  | Q46: =IF(ISBLANK(U46),"",IF(ISBLANK(M46),"",U46-M46)) ->  | Y46: =IF(ISBLANK(AC46),"",IF(ISBLANK(U46),"",AC46-U46)) -> 
C47: Income taxes (grossed up) | E47: =IF(ISBLANK(E46),"",E46/(1-SUM(E49:E50))) -> 0 | M47: =IF(ISBLANK(M46),"",M46/(1-SUM(M49:M50))) ->  | U47: =IF(ISBLANK(U46),"",U46/(1-SUM(U49:U50))) ->  | AC47: =IF(ISBLANK(AC46),"",AC46/(1-SUM(AC49:AC50))) -> 
C48: Capital Taxes
C49: Federal tax (%) | E49: 0.15 | I49: =IF(ISBLANK(M49),"",IF(ISBLANK(E49),"",M49-E49)) ->  | Q49: =IF(ISBLANK(U49),"",IF(ISBLANK(M49),"",U49-M49)) ->  | Y49: =IF(ISBLANK(AC49),"",IF(ISBLANK(U49),"",AC49-U49)) -> 
C50: Provincial tax (%) | E50: 0.115 | I50: =IF(ISBLANK(M50),"",IF(ISBLANK(E50),"",M50-E50)) ->  | Q50: =IF(ISBLANK(U50),"",IF(ISBLANK(M50),"",U50-M50)) ->  | Y50: =IF(ISBLANK(AC50),"",IF(ISBLANK(U50),"",AC50-U50)) -> 
C51: Income Tax Credits | I51: =IF(ISBLANK(M51),"",IF(ISBLANK(E51),"",M51-E51)) ->  | Q51: =IF(ISBLANK(U51),"",IF(ISBLANK(M51),"",U51-M51)) ->  | Y51: =IF(ISBLANK(AC51),"",IF(ISBLANK(U51),"",AC51-U51)) -> 
B53: 4 | C53: Capitalization/Cost of Capital
C54: Capital Structure:
C55: Long-term debt (Notional) Capitalization Ratio (%) | E55: 0.1503351468 | I55: =IF(ISBLANK(M55),"",IF(ISBLANK(E55),"",M55-E55)) ->  | Q55: =IF(ISBLANK(U55),"",IF(ISBLANK(M55),"",U55-M55)) ->  | Y55: =IF(ISBLANK(AC55),"",IF(ISBLANK(U55),"",AC55-U55)) -> 
C56: Long-term debt (Actual) Capitalization Ratio (%) | E56: 0.4096648532 | I56: =IF(ISBLANK(M56),"",IF(ISBLANK(E56),"",M56-E56)) ->  | Q56: =IF(ISBLANK(U56),"",IF(ISBLANK(M56),"",U56-M56)) ->  | Y56: =IF(ISBLANK(AC56),"",IF(ISBLANK(U56),"",AC56-U56)) -> 
C57: Short-term debt Capitalization Ratio (%) | E57: 0.04 | G57: (7) | I57: =IF(ISBLANK(M57),"",IF(ISBLANK(E57),"",M57-E57)) ->  | O57: (7) | Q57: =IF(ISBLANK(U57),"",IF(ISBLANK(M57),"",U57-M57)) ->  | W57: (7) | Y57: =IF(ISBLANK(AC57),"",IF(ISBLANK(U57),"",AC57-U57)) ->  | AE57: (7)
C58: Common Equity Capitalization Ratio (%) | E58: 0.4 | I58: =IF(ISBLANK(M58),"",IF(ISBLANK(E58),"",M58-E58)) ->  | Q58: =IF(ISBLANK(U58),"",IF(ISBLANK(M58),"",U58-M58)) ->  | Y58: =IF(ISBLANK(AC58),"",IF(ISBLANK(U58),"",AC58-U58)) -> 
C59: Prefered Shares Capitalization Ratio (%) | I59: =IF(ISBLANK(M59),"",IF(ISBLANK(E59),"",M59-E59)) ->  | Q59: =IF(ISBLANK(U59),"",IF(ISBLANK(M59),"",U59-M59)) ->  | Y59: =IF(ISBLANK(AC59),"",IF(ISBLANK(U59),"",AC59-U59)) -> 
E60: =SUM(E55:E59) -> 1 | M60: =SUM(M55:M59) -> 0 | U60: =SUM(U55:U59) -> 0 | AC60: =SUM(AC55:AC59) -> 0
E61: =IF(ISBLANK(E58),"",IF(SUM(E55:E59)=100%,"","Capital Structure must total 100%")) ->  | M61: =IF(ISBLANK(M58),"",IF(SUM(M55:M59)=100%,"","Capital Structure must total 100%")) ->  | U61: =IF(ISBLANK(U58),"",IF(SUM(U55:U59)=100%,"","Capital Structure must total 100%")) ->  | AC61: =IF(ISBLANK(AC58),"",IF(SUM(AC55:AC59)=100%,"","Capital Structure must total 100%")) -> 
C62: Cost of Capital
C63: Long-term debt (Notional) Cost Rate (%) | E63: 0.0387997922 | I63: =IF(ISBLANK(M63),"",IF(ISBLANK(E63),"",M63-E63)) ->  | Q63: =IF(ISBLANK(U63),"",IF(ISBLANK(M63),"",U63-M63)) ->  | Y63: =IF(ISBLANK(AC63),"",IF(ISBLANK(U63),"",AC63-U63)) -> 
C64: Long-term debt (Actual) Cost Rate (%) | E64: 0.0387997922 | I64: =IF(ISBLANK(M64),"",IF(ISBLANK(E64),"",M64-E64)) ->  | Q64: =IF(ISBLANK(U64),"",IF(ISBLANK(M64),"",U64-M64)) ->  | Y64: =IF(ISBLANK(AC64),"",IF(ISBLANK(U64),"",AC64-U64)) -> 
C65: Short-term debt Cost Rate (%) | E65: 0.0272 | I65: =IF(ISBLANK(M65),"",IF(ISBLANK(E65),"",M65-E65)) ->  | Q65: =IF(ISBLANK(U65),"",IF(ISBLANK(M65),"",U65-M65)) ->  | Y65: =IF(ISBLANK(AC65),"",IF(ISBLANK(U65),"",AC65-U65)) -> 
C66: Common Equity Cost Rate (%) | E66: 0.0911 | I66: =IF(ISBLANK(M66),"",IF(ISBLANK(E66),"",M66-E66)) ->  | Q66: =IF(ISBLANK(U66),"",IF(ISBLANK(M66),"",U66-M66)) ->  | Y66: =IF(ISBLANK(AC66),"",IF(ISBLANK(U66),"",AC66-U66)) -> 
C67: Prefered Shares Cost Rate (%) | I67: =IF(ISBLANK(M67),"",IF(ISBLANK(E67),"",M67-E67)) ->  | Q67: =IF(ISBLANK(U67),"",IF(ISBLANK(M67),"",U67-M67)) ->  | Y67: =IF(ISBLANK(AC67),"",IF(ISBLANK(U67),"",AC67-U67)) -> 
A70: Notes:
B71: General | C71: Data inputs are required on Sheets 3. Data from Sheet 3 will automatically complete calculations on sheets 4 through 9 (Rate Base through Revenue Requirement). Sheets 4 through 9 do not require any inputs except for notes that the Applicant may wish to enter to support the results. Pale green cells are available on sheets 4 through 9 to enter both footnotes beside key cells and the related text for the notes at the bottom of each sheet.
B72: (1) | C72: Data in column E is for Application as originally filed. For updated revenue requirement as a result of interrogatory responses, technical or settlement conferences, etc., use column M and Adjustments in column I
B73: (2) | C73: Net of addbacks and deductions to arrive at taxable income.
B74: (3) | C74: Average of Gross Fixed Assets at beginning and end of the Test Year
B75: (4) | C75: Average of Accumulated Depreciation at the beginning and end of the Test Year. Enter as a negative amount.
B76: (5) | C76: Select option from drop-down list by clicking on cell M12 or U12. This column allows for the application update reflecting the end of discovery or Argument-in-Chief. Also, the outcome of any Settlement Process can be reflected. Beginning for 2023,two intermediate stages can be shown (e.g., Interrogatory Responses and Settlement Agreement).
B77: (6) | C77: Input total revenue offsets for deriving the base revenue requirement from the service revenue requirement. Enter a positive amount.
B78: (7) | C78: 4.0% unless an Applicant has proposed or been approved another amount.
B79: (8) | C79: The default Working Capital Allowance factor is 7.5% (of Cost of Power plus controllable expenses), per the letter issued by the Board on June 3, 2015. Alternatively, a WCA factor based on lead-lag study with supporting rationale could be provided. Some Applicants may have a unique rate as a result of a lead-lag study. The default rate for cost of service applications is 7.5%, per the letter issued by the Board on June 3, 2015.

Sheet Hidden_Data Input (hidden)
A1: Utility Name | B1: EB Number | C1: Test Year | D1: Bridge Year | E1: Last Rebasing Year | F1: Data Elements | G1: Heading | H1: Intital Application | I1: Per Board Decision
A2: ='1. Info'!$G$16 -> Rideau St. Lawrence Distribution Inc. | B2: ='1. Info'!$G$20 -> EB-2026-0069 | C2: ='1. Info'!$G$28 -> 2027 | D2: ='1. Info'!$G$30 -> 2026 | E2: ='1. Info'!$G$32 -> 2022 | F2: Gross Fixed Assets (average) | G2: Rate Base | H2: ='3. Data_Input_Sheet'!E16 -> 18899363.3 | I2: ='3. Data_Input_Sheet'!U16 -> 0
A3: ='1. Info'!$G$16 -> Rideau St. Lawrence Distribution Inc. | B3: ='1. Info'!$G$20 -> EB-2026-0069 | C3: ='1. Info'!$G$28 -> 2027 | D3: ='1. Info'!$G$30 -> 2026 | E3: ='1. Info'!$G$32 -> 2022 | F3: Accumulated Depreciation (average) | G3: Rate Base | H3: ='3. Data_Input_Sheet'!E17 -> -4826714.314 | I3: ='3. Data_Input_Sheet'!U17 -> 0
A4: ='1. Info'!$G$16 -> Rideau St. Lawrence Distribution Inc. | B4: ='1. Info'!$G$20 -> EB-2026-0069 | C4: ='1. Info'!$G$28 -> 2027 | D4: ='1. Info'!$G$30 -> 2026 | E4: ='1. Info'!$G$32 -> 2022 | F4: Controllable Expenses | G4: Allowance for Working Capital | H4: ='3. Data_Input_Sheet'!E19 -> 3753312.916 | I4: ='3. Data_Input_Sheet'!U19 -> 0
A5: ='1. Info'!$G$16 -> Rideau St. Lawrence Distribution Inc. | B5: ='1. Info'!$G$20 -> EB-2026-0069 | C5: ='1. Info'!$G$28 -> 2027 | D5: ='1. Info'!$G$30 -> 2026 | E5: ='1. Info'!$G$32 -> 2022 | F5: Cost of Power | G5: Allowance for Working Capital | H5: ='3. Data_Input_Sheet'!E20 -> 15887077.36 | I5: ='3. Data_Input_Sheet'!U20 -> 0
A6: ='1. Info'!$G$16 -> Rideau St. Lawrence Distribution Inc. | B6: ='1. Info'!$G$20 -> EB-2026-0069 | C6: ='1. Info'!$G$28 -> 2027 | D6: ='1. Info'!$G$30 -> 2026 | E6: ='1. Info'!$G$32 -> 2022 | F6: Working Capital Rate (%) | G6: Allowance for Working Capital | H6: ='3. Data_Input_Sheet'!E21 -> 0.075 | I6: ='3. Data_Input_Sheet'!U21 -> 0
A7: ='1. Info'!$G$16 -> Rideau St. Lawrence Distribution Inc. | B7: ='1. Info'!$G$20 -> EB-2026-0069 | C7: ='1. Info'!$G$28 -> 2027 | D7: ='1. Info'!$G$30 -> 2026 | E7: ='1. Info'!$G$32 -> 2022 | F7: Distribution Revenue at Current Rates | G7: Utility Income | H7: ='3. Data_Input_Sheet'!E25 -> 4026602.876 | I7: ='3. Data_Input_Sheet'!U25 -> 0
A8: ='1. Info'!$G$16 -> Rideau St. Lawrence Distribution Inc. | B8: ='1. Info'!$G$20 -> EB-2026-0069 | C8: ='1. Info'!$G$28 -> 2027 | D8: ='1. Info'!$G$30 -> 2026 | E8: ='1. Info'!$G$32 -> 2022 | F8: Distribution Revenue at Proposed Rates | G8: Utility Income | H8: ='3. Data_Input_Sheet'!E26 -> 4959191.352 | I8: ='3. Data_Input_Sheet'!U26 -> 0
A9: ='1. Info'!$G$16 -> Rideau St. Lawrence Distribution Inc. | B9: ='1. Info'!$G$20 -> EB-2026-0069 | C9: ='1. Info'!$G$28 -> 2027 | D9: ='1. Info'!$G$30 -> 2026 | E9: ='1. Info'!$G$32 -> 2022 | F9: Specific Service Charges | G9: Other Revenue | H9: ='3. Data_Input_Sheet'!E28 -> 92845.20188 | I9: ='3. Data_Input_Sheet'!U28 -> 0
A10: ='1. Info'!$G$16 -> Rideau St. Lawrence Distribution Inc. | B10: ='1. Info'!$G$20 -> EB-2026-0069 | C10: ='1. Info'!$G$28 -> 2027 | D10: ='1. Info'!$G$30 -> 2026 | E10: ='1. Info'!$G$32 -> 2022 | F10: Late Payment Charges | G10: Other Revenue | H10: ='3. Data_Input_Sheet'!E29 -> 77582.03626 | I10: ='3. Data_Input_Sheet'!U29 -> 0
A11: ='1. Info'!$G$16 -> Rideau St. Lawrence Distribution Inc. | B11: ='1. Info'!$G$20 -> EB-2026-0069 | C11: ='1. Info'!$G$28 -> 2027 | D11: ='1. Info'!$G$30 -> 2026 | E11: ='1. Info'!$G$32 -> 2022 | F11: Other Distribution Revenue | G11: Other Revenue | H11: ='3. Data_Input_Sheet'!E30 -> 196225.9132 | I11: ='3. Data_Input_Sheet'!U30 -> 0
A12: ='1. Info'!$G$16 -> Rideau St. Lawrence Distribution Inc. | B12: ='1. Info'!$G$16 -> Rideau St. Lawrence Distribution Inc. | C12: ='1. Info'!$G$16 -> Rideau St. Lawrence Distribution Inc. | D12: ='1. Info'!$G$16 -> Rideau St. Lawrence Distribution Inc. | E12: ='1. Info'!$G$16 -> Rideau St. Lawrence Distribution Inc. | F12: Other Income and Deductions | G12: Other Revenue | H12: ='3. Data_Input_Sheet'!E31 -> 33652.89377 | I12: ='3. Data_Input_Sheet'!U31 -> 0
A13: ='1. Info'!$G$16 -> Rideau St. Lawrence Distribution Inc. | B13: ='1. Info'!$G$16 -> Rideau St. Lawrence Distribution Inc. | C13: ='1. Info'!$G$16 -> Rideau St. Lawrence Distribution Inc. | D13: ='1. Info'!$G$16 -> Rideau St. Lawrence Distribution Inc. | E13: ='1. Info'!$G$16 -> Rideau St. Lawrence Distribution Inc. | F13: Total Revenue Offsets | G13: Other Revenue | H13: ='3. Data_Input_Sheet'!E33 -> 400306.0451 | I13: ='3. Data_Input_Sheet'!U33 -> 0
A14: ='1. Info'!$G$16 -> Rideau St. Lawrence Distribution Inc. | B14: ='1. Info'!$G$20 -> EB-2026-0069 | C14: ='1. Info'!$G$28 -> 2027 | D14: ='1. Info'!$G$30 -> 2026 | E14: ='1. Info'!$G$32 -> 2022 | F14: OM+A Expenses | G14: Operating Expenses | H14: ='3. Data_Input_Sheet'!E36 -> 3718936.318 | I14: ='3. Data_Input_Sheet'!U36 -> 0
A15: ='1. Info'!$G$16 -> Rideau St. Lawrence Distribution Inc. | B15: ='1. Info'!$G$20 -> EB-2026-0069 | C15: ='1. Info'!$G$28 -> 2027 | D15: ='1. Info'!$G$30 -> 2026 | E15: ='1. Info'!$G$32 -> 2022 | F15: Depreciation/Amortization | G15: Operating Expenses | H15: ='3. Data_Input_Sheet'!E37 -> 685011.58 | I15: ='3. Data_Input_Sheet'!U37 -> 0
A16: ='1. Info'!$G$16 -> Rideau St. Lawrence Distribution Inc. | B16: ='1. Info'!$G$20 -> EB-2026-0069 | C16: ='1. Info'!$G$28 -> 2027 | D16: ='1. Info'!$G$30 -> 2026 | E16: ='1. Info'!$G$32 -> 2022 | F16: Property taxes | G16: Operating Expenses | H16: ='3. Data_Input_Sheet'!E38 -> 34376.59732 | I16: ='3. Data_Input_Sheet'!U38 -> 0
A17: ='1. Info'!$G$16 -> Rideau St. Lawrence Distribution Inc. | B17: ='1. Info'!$G$20 -> EB-2026-0069 | C17: ='1. Info'!$G$28 -> 2027 | D17: ='1. Info'!$G$30 -> 2026 | E17: ='1. Info'!$G$32 -> 2022 | F17: Other expenses | G17: Operating Expenses | H17: ='3. Data_Input_Sheet'!E40 -> 0 | I17: ='3. Data_Input_Sheet'!U40 -> 0
A18: ='1. Info'!$G$16 -> Rideau St. Lawrence Distribution Inc. | B18: ='1. Info'!$G$20 -> EB-2026-0069 | C18: ='1. Info'!$G$28 -> 2027 | D18: ='1. Info'!$G$30 -> 2026 | E18: ='1. Info'!$G$32 -> 2022 | F18: Adjustments required to arrive at taxable income | G18: Taxable Income | H18: ='3. Data_Input_Sheet'!E44 -> -619053.1872 | I18: ='3. Data_Input_Sheet'!U44 -> 0
A19: ='1. Info'!$G$16 -> Rideau St. Lawrence Distribution Inc. | B19: ='1. Info'!$G$20 -> EB-2026-0069 | C19: ='1. Info'!$G$28 -> 2027 | D19: ='1. Info'!$G$30 -> 2026 | E19: ='1. Info'!$G$32 -> 2022 | F19: Income taxes (not grossed up) | G19: Utility Income Taxes | H19: ='3. Data_Input_Sheet'!E46 -> 0 | I19: ='3. Data_Input_Sheet'!U46 -> 0
A20: ='1. Info'!$G$16 -> Rideau St. Lawrence Distribution Inc. | B20: ='1. Info'!$G$20 -> EB-2026-0069 | C20: ='1. Info'!$G$28 -> 2027 | D20: ='1. Info'!$G$30 -> 2026 | E20: ='1. Info'!$G$32 -> 2022 | F20: Federal tax (%) | G20: Income taxes (grossed up) | H20: ='3. Data_Input_Sheet'!E49 -> 0.15 | I20: ='3. Data_Input_Sheet'!U49 -> 0
A21: ='1. Info'!$G$16 -> Rideau St. Lawrence Distribution Inc. | B21: ='1. Info'!$G$20 -> EB-2026-0069 | C21: ='1. Info'!$G$28 -> 2027 | D21: ='1. Info'!$G$30 -> 2026 | E21: ='1. Info'!$G$32 -> 2022 | F21: Provincial tax (%) | G21: Income taxes (grossed up) | H21: ='3. Data_Input_Sheet'!E50 -> 0.115 | I21: ='3. Data_Input_Sheet'!U50 -> 0
A22: ='1. Info'!$G$16 -> Rideau St. Lawrence Distribution Inc. | B22: ='1. Info'!$G$20 -> EB-2026-0069 | C22: ='1. Info'!$G$28 -> 2027 | D22: ='1. Info'!$G$30 -> 2026 | E22: ='1. Info'!$G$32 -> 2022 | F22: Income Tax Credits | G22: Income taxes (grossed up) | H22: ='3. Data_Input_Sheet'!E51 -> 0 | I22: ='3. Data_Input_Sheet'!U51 -> 0
A23: ='1. Info'!$G$16 -> Rideau St. Lawrence Distribution Inc. | B23: ='1. Info'!$G$20 -> EB-2026-0069 | C23: ='1. Info'!$G$28 -> 2027 | D23: ='1. Info'!$G$30 -> 2026 | E23: ='1. Info'!$G$32 -> 2022 | F23: Long-term debt Capitalization Ratio (%) | G23: Capitalization | H23: ='3. Data_Input_Sheet'!E55 -> 0.1503351468 | I23: ='3. Data_Input_Sheet'!U55 -> 0
A24: ='1. Info'!$G$16 -> Rideau St. Lawrence Distribution Inc. | B24: ='1. Info'!$G$20 -> EB-2026-0069 | C24: ='1. Info'!$G$28 -> 2027 | D24: ='1. Info'!$G$30 -> 2026 | E24: ='1. Info'!$G$32 -> 2022 | F24: Short-term debt Capitalization Ratio (%) | G24: Capitalization | H24: ='3. Data_Input_Sheet'!E57 -> 0.04 | I24: ='3. Data_Input_Sheet'!U57 -> 0
A25: ='1. Info'!$G$16 -> Rideau St. Lawrence Distribution Inc. | B25: ='1. Info'!$G$20 -> EB-2026-0069 | C25: ='1. Info'!$G$28 -> 2027 | D25: ='1. Info'!$G$30 -> 2026 | E25: ='1. Info'!$G$32 -> 2022 | F25: Common Equity Capitalization Ratio (%) | G25: Capitalization | H25: ='3. Data_Input_Sheet'!E58 -> 0.4 | I25: ='3. Data_Input_Sheet'!U58 -> 0
A26: ='1. Info'!$G$16 -> Rideau St. Lawrence Distribution Inc. | B26: ='1. Info'!$G$20 -> EB-2026-0069 | C26: ='1. Info'!$G$28 -> 2027 | D26: ='1. Info'!$G$30 -> 2026 | E26: ='1. Info'!$G$32 -> 2022 | F26: Prefered Shares Capitalization Ratio (%) | G26: Capitalization | H26: ='3. Data_Input_Sheet'!E59 -> 0 | I26: ='3. Data_Input_Sheet'!U59 -> 0
A27: ='1. Info'!$G$16 -> Rideau St. Lawrence Distribution Inc. | B27: ='1. Info'!$G$20 -> EB-2026-0069 | C27: ='1. Info'!$G$28 -> 2027 | D27: ='1. Info'!$G$30 -> 2026 | E27: ='1. Info'!$G$32 -> 2022 | F27: Long-term debt Cost Rate (%) | G27: Cost of Capital | H27: ='3. Data_Input_Sheet'!E63 -> 0.0387997922 | I27: ='3. Data_Input_Sheet'!U63 -> 0
A28: ='1. Info'!$G$16 -> Rideau St. Lawrence Distribution Inc. | B28: ='1. Info'!$G$20 -> EB-2026-0069 | C28: ='1. Info'!$G$28 -> 2027 | D28: ='1. Info'!$G$30 -> 2026 | E28: ='1. Info'!$G$32 -> 2022 | F28: Short-term debt Cost Rate (%) | G28: Cost of Capital | H28: ='3. Data_Input_Sheet'!E65 -> 0.0272 | I28: ='3. Data_Input_Sheet'!U65 -> 0
A29: ='1. Info'!$G$16 -> Rideau St. Lawrence Distribution Inc. | B29: ='1. Info'!$G$20 -> EB-2026-0069 | C29: ='1. Info'!$G$28 -> 2027 | D29: ='1. Info'!$G$30 -> 2026 | E29: ='1. Info'!$G$32 -> 2022 | F29: Common Equity Cost Rate (%) | G29: Cost of Capital | H29: ='3. Data_Input_Sheet'!E66 -> 0.0911 | I29: ='3. Data_Input_Sheet'!U66 -> 0
A30: ='1. Info'!$G$16 -> Rideau St. Lawrence Distribution Inc. | B30: ='1. Info'!$G$20 -> EB-2026-0069 | C30: ='1. Info'!$G$28 -> 2027 | D30: ='1. Info'!$G$30 -> 2026 | E30: ='1. Info'!$G$32 -> 2022 | F30: Prefered Shares Cost Rate (%) | G30: Cost of Capital | H30: ='3. Data_Input_Sheet'!E67 -> 0 | I30: ='3. Data_Input_Sheet'!U67 -> 0

Sheet 4. Rate_Base
B6: Rate Base and Working Capital
D10: Rate Base
B11: Line No. | D11: Particulars | G11: Initial Application | K11: =IF(ISBLANK('3. Data_Input_Sheet'!M12),"",'3. Data_Input_Sheet'!I12) -> Adjustments | O11: =IF(ISBLANK('3. Data_Input_Sheet'!M12)," ",'3. Data_Input_Sheet'!M12) -> Interrogatory Responses | S11: =IF(ISBLANK('3. Data_Input_Sheet'!Q12),"",'3. Data_Input_Sheet'!Q12) -> Adjustments | W11: =IF(ISBLANK('3. Data_Input_Sheet'!U12)," ",'3. Data_Input_Sheet'!U12) -> Settlement Agreement | Y11: =IF(ISBLANK('3. Data_Input_Sheet'!Y12),"",'3. Data_Input_Sheet'!Y12) -> Adjustments | AC11: =IF(ISBLANK('3. Data_Input_Sheet'!AC12)," ",'3. Data_Input_Sheet'!AC12) -> Per Board Decision
B13: 1 | D13: Gross Fixed Assets (average) | E13: (2) | G13: =IFERROR('3. Data_Input_Sheet'!E16,0) -> 18899363.3 | K13: =IFERROR('3. Data_Input_Sheet'!I16,0) ->  | O13: =IFERROR('3. Data_Input_Sheet'!M16,0) -> 0 | S13: ='3. Data_Input_Sheet'!Q16 ->  | W13: =IFERROR('3. Data_Input_Sheet'!U16,0) -> 0 | Y13: ='3. Data_Input_Sheet'!Y16 ->  | AC13: =IFERROR('3. Data_Input_Sheet'!AC16,0) -> 0
B14: 2 | D14: Accumulated Depreciation (average) | E14: (2) | G14: =IFERROR('3. Data_Input_Sheet'!E17,0) -> -4826714.314 | K14: =IFERROR('3. Data_Input_Sheet'!I17,0) ->  | O14: =IFERROR('3. Data_Input_Sheet'!M17,0) -> 0 | S14: ='3. Data_Input_Sheet'!Q17 ->  | W14: =IFERROR('3. Data_Input_Sheet'!U17,0) -> 0 | Y14: ='3. Data_Input_Sheet'!Y17 ->  | AC14: =IFERROR('3. Data_Input_Sheet'!AC17,0) -> 0
B15: 3 | D15: Net Fixed Assets (average) | E15: (2) | G15: =IFERROR(SUM(G13:G14),0) -> 14072648.98 | K15: =IFERROR(SUM(K13:K14),0) -> 0 | O15: =SUM(O13:O14) -> 0 | S15: =IFERROR(SUM(S13:S14),0) -> 0 | W15: =IFERROR(SUM(W13:W14),0) -> 0 | Y15: =IFERROR(SUM(Y13:Y14),0) -> 0 | AC15: =IFERROR(SUM(AC13:AC14),0) -> 0
B17: 4 | D17: Allowance for Working Capital | E17: (1) | G17: =IFERROR(G30,0) -> 1473029.271 | K17: =IFERROR(K30,0) -> -1473029.271 | O17: =IFERROR(O30,0) -> 0 | S17: =IFERROR(S30,0) -> 0 | W17: =IFERROR(W30,0) -> 0 | Y17: =IFERROR(Y30,0) -> 0 | AC17: =IFERROR(AC30,0) -> 0
B19: 5 | D19: Total Rate Base | G19: =IFERROR(G17+G15,0) -> 15545678.25 | K19: =IFERROR(K17+K15,0) -> -1473029.271 | O19: =IFERROR(O17+O15,0) -> 0 | S19: =IFERROR(S17+S15,0) -> 0 | W19: =IFERROR(W15+W17,0) -> 0 | Y19: =IFERROR(Y17+Y15,0) -> 0 | AC19: =IFERROR(AC15+AC17,0) -> 0
C20: (1) | D20: Allowance for Working Capital - Derivation
B24: 6 | D24: Controllable Expenses | G24: =IFERROR('3. Data_Input_Sheet'!E19,0) -> 3753312.916 | K24: ='3. Data_Input_Sheet'!I19 ->  | O24: =IFERROR('3. Data_Input_Sheet'!M19,0) -> 0 | S24: ='3. Data_Input_Sheet'!Q19 ->  | W24: =IFERROR('3. Data_Input_Sheet'!U19,0) -> 0 | Y24: ='3. Data_Input_Sheet'!Y19 ->  | AC24: =IFERROR('3. Data_Input_Sheet'!AC19,0) -> 0
B25: 7 | D25: Cost of Power | G25: =IFERROR('3. Data_Input_Sheet'!E20,0) -> 15887077.36 | K25: ='3. Data_Input_Sheet'!I20 ->  | O25: =IFERROR('3. Data_Input_Sheet'!M20,0) -> 0 | S25: ='3. Data_Input_Sheet'!Q20 ->  | W25: =IFERROR('3. Data_Input_Sheet'!U20,0) -> 0 | Y25: ='3. Data_Input_Sheet'!Y20 ->  | AC25: =IFERROR('3. Data_Input_Sheet'!AC20,0) -> 0
B26: 8 | D26: Working Capital Base | G26: =IFERROR(SUM(G24:G25),0) -> 19640390.28 | K26: =IFERROR(K24+K25,0) -> 0 | O26: =SUM(O24:O25) -> 0 | S26: =IFERROR(S24+S25,0) -> 0 | W26: =IFERROR(SUM(W24:W25),0) -> 0 | Y26: =IFERROR(Y24+Y25,0) -> 0 | AC26: =IFERROR(SUM(AC24:AC25),0) -> 0
B28: 9 | D28: Working Capital Rate % | E28: (1) | G28: =IFERROR('3. Data_Input_Sheet'!E21,0) -> 0.075 | K28: =IFERROR(O28-G28,0) -> -0.075 | O28: =IFERROR('3. Data_Input_Sheet'!M21,0) -> 0 | S28: =IFERROR(W28-O28,0) -> 0 | W28: =IFERROR('3. Data_Input_Sheet'!U21,0) -> 0 | Y28: =IFERROR(AC28-W28,0) -> 0 | AC28: =IFERROR('3. Data_Input_Sheet'!AC21,0) -> 0
B30: 10 | D30: Working Capital Allowance | G30: =IFERROR(G26*G28,0) -> 1473029.271 | K30: =IFERROR(O30-G30,0) -> -1473029.271 | O30: =IFERROR(O26*O28,0) -> 0 | S30: =IFERROR(W30-O30,0) -> 0 | W30: =IFERROR(W26*W28,0) -> 0 | Y30: =IFERROR(AC30-W30,0) -> 0 | AC30: =IFERROR(AC26*AC28,0) -> 0
B33: Notes
B34: (1) | D34: Some Applicants may have a unique rate as a result of a lead-lag study. The default rate for cost of service applications is 7.5%, per the letter issued by the OEB on June 3, 2015.
B35: (2) | D35: Average of opening and closing balances for the year.

Sheet 5. Utility Income
B11: Utility Income
B13: Line No. | D13: Particulars | F13: Initial Application | J13: =IF(N13="","","Adjustments") -> Adjustments | N13: =IF(ISBLANK('3. Data_Input_Sheet'!M12),"",'3. Data_Input_Sheet'!M12) -> Interrogatory Responses | R13: =IF(N13="","","Adjustments") -> Adjustments | V13: =IF(ISBLANK('3. Data_Input_Sheet'!U12),"",'3. Data_Input_Sheet'!U12) -> Settlement Agreement | Z13: =IF(V13="","","Adjustments") -> Adjustments | AD13: ='3. Data_Input_Sheet'!AC12 -> Per Board Decision
D15: Operating Revenues:
B16: 1 | D16: Distribution Revenue (at Proposed Rates) | F16: ='3. Data_Input_Sheet'!E26 -> 4959191.352 | J16: =N16-F16 -> -4959191.352 | N16: ='3. Data_Input_Sheet'!M26 -> 0 | R16: =V16-N16 -> 0 | V16: ='3. Data_Input_Sheet'!U26 -> 0 | Z16: =AD16-V16 -> 0 | AD16: ='3. Data_Input_Sheet'!AC26 -> 0
B17: 2 | D17: Other Revenue | E17: (1) | F17: =F48 -> 400306.0451 | J17: =N17-F17 -> -400306.0451 | N17: =N48 -> 0 | R17: =V17-N17 -> 0 | V17: =V48 -> 0 | Z17: =AD17-V17 -> 0 | AD17: =AD48 -> 0
F18: =SUM(F16:F17) -> 5359497.397 | J18: =SUM(J16:J17) -> -5359497.397 | N18: =SUM(N16:N17) -> 0 | R18: =SUM(R16:R17) -> 0 | V18: =SUM(V16:V17) -> 0 | Z18: =SUM(Z16:Z17) -> 0 | AD18: =SUM(AD16:AD17) -> 0
B19: 3 | D19: Total Operating Revenues
D21: Operating Expenses:
B22: 4 | D22: OM+A Expenses | F22: ='3. Data_Input_Sheet'!E36 -> 3718936.318 | J22: ='3. Data_Input_Sheet'!I36 ->  | N22: ='3. Data_Input_Sheet'!M36 -> 0 | R22: ='3. Data_Input_Sheet'!Q36 ->  | V22: ='3. Data_Input_Sheet'!U36 -> 0 | Z22: ='3. Data_Input_Sheet'!Y36 ->  | AD22: ='3. Data_Input_Sheet'!AC36 -> 0
B23: 5 | D23: Depreciation/Amortization | F23: ='3. Data_Input_Sheet'!E37 -> 685011.58 | J23: ='3. Data_Input_Sheet'!I37 ->  | N23: ='3. Data_Input_Sheet'!M37 -> 0 | R23: ='3. Data_Input_Sheet'!Q37 ->  | V23: ='3. Data_Input_Sheet'!U37 -> 0 | Z23: ='3. Data_Input_Sheet'!Y37 ->  | AD23: ='3. Data_Input_Sheet'!AC37 -> 0
B24: 6 | D24: Property taxes | F24: ='3. Data_Input_Sheet'!E38 -> 34376.59732 | J24: ='3. Data_Input_Sheet'!I38 ->  | N24: ='3. Data_Input_Sheet'!M38 -> 0 | R24: ='3. Data_Input_Sheet'!Q38 ->  | V24: ='3. Data_Input_Sheet'!U38 -> 0 | Z24: ='3. Data_Input_Sheet'!Y38 ->  | AD24: ='3. Data_Input_Sheet'!AC38 -> 0
B25: 7 | D25: Capital taxes | F25: ='6. Taxes_PILs'!G25 -> 0 | J25: =N25-F25 -> 0 | N25: ='6. Taxes_PILs'!K25 -> 0 | R25: =V25-N25 -> 0 | V25: ='6. Taxes_PILs'!O25 -> 0 | Z25: =AD25-V25 -> 0 | AD25: ='6. Taxes_PILs'!W25 -> 0
B26: 8 | D26: Other expense | F26: ='3. Data_Input_Sheet'!E40 -> 0 | J26: ='3. Data_Input_Sheet'!I40 ->  | N26: ='3. Data_Input_Sheet'!M40 -> 0 | R26: ='3. Data_Input_Sheet'!Q40 ->  | V26: ='3. Data_Input_Sheet'!U40 -> 0 | Z26: ='3. Data_Input_Sheet'!Y40 ->  | AD26: ='3. Data_Input_Sheet'!AC40 -> 0
F27: =SUM(F22:F26) -> 4438324.496 | J27: =SUM(J22:J26) -> 0 | N27: =SUM(N22:N26) -> 0 | R27: =SUM(R22:R26) -> 0 | V27: =SUM(V22:V26) -> 0 | Z27: =SUM(Z22:Z26) -> 0 | AD27: =SUM(AD22:AD26) -> 0
B28: 9 | D28: Subtotal (lines 4 to 8)
B30: 10 | D30: Deemed Interest Expense | F30: ='7. Cost_of_Capital'!P20 -> 354688.386 | J30: =N30-F30 -> -354688.386 | N30: ='7. Cost_of_Capital'!P37 -> 0 | R30: =V30-N30 -> 0 | V30: ='7. Cost_of_Capital'!P54 -> 0 | Z30: =AD30-V30 -> 0 | AD30: ='7. Cost_of_Capital'!P71 -> 0
B32: 11 | D32: Total Expenses (lines 9 to 10) | F32: =F27+F30 -> 4793012.882 | J32: =J30+J27 -> -354688.386 | N32: =N30+N27 -> 0 | R32: =R30+R27 -> 0 | V32: =V27+V30 -> 0 | Z32: =Z30+Z27 -> 0 | AD32: =AD27+AD30 -> 0
B34: 12 | D34: Utility income before income taxes | F34: =F18-(F32) -> 566484.5156 | J34: =J18-(J32) -> -5004809.011 | N34: =N18-(N32) -> 0 | R34: =R18-(R32) -> 0 | V34: =V18-(V32) -> 0 | Z34: =Z18-(Z32) -> 0 | AD34: =AD18-(AD32) -> 0
F35: ='6. Taxes_PILs'!G31 -> 0 | J35: =N35-F35 -> 0 | N35: ='6. Taxes_PILs'!K31 -> 0 | R35: =V35-N35 -> 0 | V35: =IF('6. Taxes_PILs'!O31=0,N35,'6. Taxes_PILs'!O31) -> 0 | Z35: =AD35-V35 -> 0 | AD35: =IF('6. Taxes_PILs'!S31=0,V35,'6. Taxes_PILs'!S31) -> 0
B36: 13 | D36: Income taxes (grossed-up)
F37: =F34-F35 -> 566484.5156 | J37: =J34-J35 -> -5004809.011 | N37: =N34-N35 -> 0 | R37: =R34-R35 -> 0 | V37: =V34-V35 -> 0 | Z37: =Z34-Z35 -> 0 | AD37: =AD34-AD35 -> 0
B38: 14 | D38: Utility net income
B44: (1) | D44: Specific Service Charges | F44: ='3. Data_Input_Sheet'!E28 -> 92845.20188 | J44: ='3. Data_Input_Sheet'!I28 ->  | N44: ='3. Data_Input_Sheet'!M28 -> 0 | R44: ='3. Data_Input_Sheet'!Q28 ->  | V44: =IF(ISBLANK('3. Data_Input_Sheet'!U28),N44,'3. Data_Input_Sheet'!U28) -> 0 | Z44: ='3. Data_Input_Sheet'!Y28 ->  | AD44: =IF(ISBLANK('3. Data_Input_Sheet'!AC28),V44,'3. Data_Input_Sheet'!AC28) -> 0
D45: Late Payment Charges | F45: ='3. Data_Input_Sheet'!E29 -> 77582.03626 | J45: ='3. Data_Input_Sheet'!I29 ->  | N45: ='3. Data_Input_Sheet'!M29 -> 0 | R45: ='3. Data_Input_Sheet'!Q29 ->  | V45: =IF(ISBLANK('3. Data_Input_Sheet'!U29),N45,'3. Data_Input_Sheet'!U29) -> 0 | Z45: ='3. Data_Input_Sheet'!Y29 ->  | AD45: =IF(ISBLANK('3. Data_Input_Sheet'!AC29),V45,'3. Data_Input_Sheet'!AC29) -> 0
D46: Other Distribution Revenue | F46: ='3. Data_Input_Sheet'!E30 -> 196225.9132 | J46: ='3. Data_Input_Sheet'!I30 ->  | N46: ='3. Data_Input_Sheet'!M30 -> 0 | R46: ='3. Data_Input_Sheet'!Q30 ->  | V46: =IF(ISBLANK('3. Data_Input_Sheet'!U30),N46,'3. Data_Input_Sheet'!U30) -> 0 | Z46: ='3. Data_Input_Sheet'!Y30 ->  | AD46: =IF(ISBLANK('3. Data_Input_Sheet'!AC30),V46,'3. Data_Input_Sheet'!AC30) -> 0
D47: Other Income and Deductions | F47: ='3. Data_Input_Sheet'!E31 -> 33652.89377 | J47: ='3. Data_Input_Sheet'!I31 ->  | N47: ='3. Data_Input_Sheet'!M31 -> 0 | R47: ='3. Data_Input_Sheet'!Q31 ->  | V47: =IF(ISBLANK('3. Data_Input_Sheet'!U31),N47,'3. Data_Input_Sheet'!U31) -> 0 | Z47: ='3. Data_Input_Sheet'!Y31 ->  | AD47: =IF(ISBLANK('3. Data_Input_Sheet'!AC31),V47,'3. Data_Input_Sheet'!AC31) -> 0
F48: =SUM(F44:F47) -> 400306.0451 | J48: =SUM(J44:J47) -> 0 | N48: =SUM(N44:N47) -> 0 | R48: =SUM(R44:R47) -> 0 | V48: =SUM(V44:V47) -> 0 | Z48: =SUM(Z44:Z47) -> 0 | AD48: =SUM(AD44:AD47) -> 0
D49: Total Revenue Offsets
B51: Notes

Sheet 6. Taxes_PILs
B9: Taxes/PILs
B12: Line No. | D12: Particulars | G12: Application | K12: =IF(ISBLANK('3. Data_Input_Sheet'!M12),"",'3. Data_Input_Sheet'!M12) -> Interrogatory Responses | O12: =IF(ISBLANK('3. Data_Input_Sheet'!U12),"",'3. Data_Input_Sheet'!U12) -> Settlement Agreement | S12: ='3. Data_Input_Sheet'!AC12 -> Per Board Decision
D14: Determination of Taxable Income
B16: 1 | D16: Utility net income before taxes | G16: ='7. Cost_of_Capital'!P23 -> 566484.5156 | K16: ='7. Cost_of_Capital'!P40 -> 0 | O16: ='7. Cost_of_Capital'!P57 -> 0 | S16: ='7. Cost_of_Capital'!P74 -> 0
B18: 2 | D18: Adjustments required to arrive at taxable utility income | G18: ='3. Data_Input_Sheet'!E44 -> -619053.1872 | K18: ='3. Data_Input_Sheet'!M44 -> 0 | O18: ='3. Data_Input_Sheet'!U44 -> 0 | S18: ='3. Data_Input_Sheet'!AC44 -> 0
B20: 3 | D20: Taxable income | G20: =G16+G18 -> -52568.67161 | K20: =K16+K18 -> 0 | O20: =O16+O18 -> 0 | S20: =S16+S18 -> 0
D22: Calculation of Utility income Taxes
B24: 4 | D24: Income taxes | G24: ='3. Data_Input_Sheet'!E46 -> 0 | K24: =IF(ISBLANK('3. Data_Input_Sheet'!M46),'6. Taxes_PILs'!G24,'3. Data_Input_Sheet'!M46) -> 0 | O24: =IF(ISBLANK('3. Data_Input_Sheet'!U46),'6. Taxes_PILs'!K24,'3. Data_Input_Sheet'!U46) -> 0 | S24: =IF(ISBLANK('3. Data_Input_Sheet'!AC46),'6. Taxes_PILs'!O24,'3. Data_Input_Sheet'!AC46) -> 0
B25: 5 | D25: Capital taxes | G25: ='3. Data_Input_Sheet'!E48 -> 0 | K25: =IF(ISBLANK('3. Data_Input_Sheet'!M48),'6. Taxes_PILs'!G25,'3. Data_Input_Sheet'!M48) -> 0 | O25: =IF(ISBLANK('3. Data_Input_Sheet'!U48),'6. Taxes_PILs'!K25,'3. Data_Input_Sheet'!U48) -> 0 | S25: =IF(ISBLANK('3. Data_Input_Sheet'!Y48),'6. Taxes_PILs'!O25,'3. Data_Input_Sheet'!Y48) -> 0
G26: =SUM(G24:G25) -> 0 | K26: =SUM(K24:K25) -> 0 | O26: =SUM(O24:O25) -> 0 | S26: =SUM(S24:S25) -> 0
B27: 6 | D27: Total taxes
B29: 7 | D29: Gross-up of Income Taxes | G29: =(G24/(1-G41))-G24 -> 0 | K29: =(K24/(1-K41))-K24 -> 0 | O29: =(O24/(1-O41))-O24 -> 0 | S29: =(S24/(1-S41))-S24 -> 0
B31: 8 | D31: Grossed-up Income Taxes | G31: =G24+G29 -> 0 | K31: =K24+K29 -> 0 | O31: =O24+O29 -> 0 | S31: =S24+S29 -> 0
B33: 9 | D33: PILs / tax Allowance (Grossed-up Income taxes + Capital taxes) | G33: =G26+G29 -> 0 | K33: =K29+K26 -> 0 | O33: =O29+O26 -> 0 | S33: =S29+S26 -> 0
B35: 10 | D35: Other tax Credits | G35: ='3. Data_Input_Sheet'!E51 -> 0 | K35: =IF(ISBLANK('3. Data_Input_Sheet'!M51),G35,'3. Data_Input_Sheet'!M51) -> 0 | O35: =IF(ISBLANK('3. Data_Input_Sheet'!U51),K35,'3. Data_Input_Sheet'!U51) -> 0 | S35: =IF(ISBLANK('3. Data_Input_Sheet'!AC51),O35,'3. Data_Input_Sheet'!AC51) -> 0
D37: Tax Rates
B39: 11 | D39: Federal tax (%) | G39: ='3. Data_Input_Sheet'!E49 -> 0.15 | K39: =IF(ISBLANK('3. Data_Input_Sheet'!M49),G39,'3. Data_Input_Sheet'!M49) -> 0.15 | O39: =IF(ISBLANK('3. Data_Input_Sheet'!U49),K39,'3. Data_Input_Sheet'!U49) -> 0.15 | S39: =IF(ISBLANK('3. Data_Input_Sheet'!AC49),O39,'3. Data_Input_Sheet'!AC49) -> 0.15
B40: 12 | D40: Provincial tax (%) | G40: ='3. Data_Input_Sheet'!E50 -> 0.115 | K40: =IF(ISBLANK('3. Data_Input_Sheet'!M50),G40,'3. Data_Input_Sheet'!M50) -> 0.115 | O40: =IF(ISBLANK('3. Data_Input_Sheet'!U50),K40,'3. Data_Input_Sheet'!U50) -> 0.115 | S40: =IF(ISBLANK('3. Data_Input_Sheet'!AC50),O40,'3. Data_Input_Sheet'!AC50) -> 0.115
B41: 13 | D41: Total tax rate (%) | G41: =G39+G40 -> 0.265 | K41: =K39+K40 -> 0.265 | O41: =O39+O40 -> 0.265 | S41: =S39+S40 -> 0.265
B44: Notes
D45: Capital Taxes not applicable after July 1, 2010 (i.e. for 2011 and later test years)

Sheet 7. Cost_of_Capital
B5: Capitalization/Cost of Capital
B11: Line No. | D11: Particulars | F11: Capitalization Ratio | L11: Cost Rate | P11: Return
F13: Initial Application
F15: (%) | J15: ($) | L15: (%) | P15: ($)
D16: Debt
B17: 1 | D17: Long-term Debt (Notional) | F17: ='3. Data_Input_Sheet'!E55 -> 0.1503351468 | J17: =$J$27*F17 -> 2337061.822 | L17: ='3. Data_Input_Sheet'!E63 -> 0.0387997922 | P17: =L17*J17 -> 90677.51306
B18: 2 | D18: Long-term Debt (Actual) | F18: ='3. Data_Input_Sheet'!E56 -> 0.4096648532 | J18: =$J$27*F18 -> 6368518 | L18: ='3. Data_Input_Sheet'!E64 -> 0.0387997922 | P18: =L18*J18 -> 247097.175
B19: 3 | D19: Short-term Debt | F19: ='3. Data_Input_Sheet'!E57 -> 0.04 | J19: =$J$27*F19 -> 621827.1302 | L19: ='3. Data_Input_Sheet'!E65 -> 0.0272 | P19: =L19*J19 -> 16913.69794
B20: 4 | D20: Total Debt | F20: =SUM(F17:F19) -> 0.6 | J20: =SUM(J17:J19) -> 9327406.953 | L20: =IF(F20=0,0,SUMPRODUCT(F17:F19,L17:L19)/F20) -> 0.03802647272 | P20: =SUM(P17:P19) -> 354688.386
D22: Equity
B23: 5 | D23: Common Equity | F23: ='3. Data_Input_Sheet'!E58 -> 0.4 | J23: =$J$27*F23 -> 6218271.302 | L23: ='3. Data_Input_Sheet'!E66 -> 0.0911 | P23: =L23*J23 -> 566484.5156
B24: 6 | D24: Preferred Shares | F24: ='3. Data_Input_Sheet'!E59 -> 0 | J24: =$J$27*F24 -> 0 | L24: ='3. Data_Input_Sheet'!E67 -> 0 | P24: =L24*J24 -> 0
B25: 7 | D25: Total Equity | F25: =SUM(F23:F24) -> 0.4 | J25: =SUM(J23:J24) -> 6218271.302 | L25: =IF(F25=0,0,SUMPRODUCT(F23:F24,L23:L24)/F25) -> 0.0911 | P25: =SUM(P23:P24) -> 566484.5156
B27: 8 | D27: Total | F27: =SUM(F20,F25) -> 1 | J27: ='4. Rate_Base'!G19 -> 15545678.25 | L27: =(L20*F20)+(L25*F25) -> 0.05925588363 | P27: =P20+P25 -> 921172.9016
F30: ='1. Info'!AC1 -> Interrogatory Responses
F32: (%) | J32: ($) | L32: (%) | P32: ($)
D33: Debt
B34: 1 | D34: Long-term Debt (Notional) | F34: ='3. Data_Input_Sheet'!M55 -> 0 | J34: =$J$44*F34 -> 0 | L34: ='3. Data_Input_Sheet'!M63 -> 0 | P34: =L34*J34 -> 0
B35: 2 | D35: Long-term Debt (Actual) | F35: ='3. Data_Input_Sheet'!M56 -> 0 | J35: =$J$44*F35 -> 0 | L35: ='3. Data_Input_Sheet'!M64 -> 0 | P35: =L35*J35 -> 0
B36: 3 | D36: Short-term Debt | F36: ='3. Data_Input_Sheet'!M57 -> 0 | J36: =$J$44*F36 -> 0 | L36: ='3. Data_Input_Sheet'!M65 -> 0 | P36: =L36*J36 -> 0
B37: 4 | D37: Total Debt | F37: =SUM(F34:F36) -> 0 | J37: =SUM(J34:J36) -> 0 | L37: =IF(F37=0,0,SUMPRODUCT(F34:F36,L34:L36)/F37) -> 0 | P37: =SUM(P34:P36) -> 0
D39: Equity
B40: 5 | D40: Common Equity | F40: ='3. Data_Input_Sheet'!M58 -> 0 | J40: =$J$44*F40 -> 0 | L40: ='3. Data_Input_Sheet'!M66 -> 0 | P40: =L40*J40 -> 0
B41: 6 | D41: Preferred Shares | F41: ='3. Data_Input_Sheet'!M59 -> 0 | J41: =$J$44*F41 -> 0 | L41: ='3. Data_Input_Sheet'!M67 -> 0 | P41: =L41*J41 -> 0
B42: 7 | D42: Total Equity | F42: =SUM(F40:F41) -> 0 | J42: =SUM(J40:J41) -> 0 | L42: =IF(F42=0,0,SUMPRODUCT(F40:F41,L40:L41)/F42) -> 0 | P42: =SUM(P40:P41) -> 0
B44: 8 | D44: Total | F44: =F37+F42 -> 0 | J44: ='4. Rate_Base'!O19 -> 0 | L44: =(L37*F37)+(L42*F42) -> 0 | P44: =P37+P42 -> 0
F47: ='1. Info'!AC2 -> Settlement Agreement
F49: (%) | J49: ($) | L49: (%) | P49: ($)
D50: Debt
B51: 1 | D51: Long-term Debt (Notional) | F51: =IF(ISBLANK('3. Data_Input_Sheet'!U55),F34,'3. Data_Input_Sheet'!U55) -> 0 | J51: =$J$61*F51 -> 0 | L51: =IF(ISBLANK('3. Data_Input_Sheet'!U63),L17,'3. Data_Input_Sheet'!U63) -> 0.0387997922 | P51: =L51*J51 -> 0
B52: 2 | D52: Long-term Debt (Actual) | F52: =IF(ISBLANK('3. Data_Input_Sheet'!U56),F35,'3. Data_Input_Sheet'!U56) -> 0 | J52: =$J$61*F52 -> 0 | L52: =IF(ISBLANK('3. Data_Input_Sheet'!U64),L18,'3. Data_Input_Sheet'!U64) -> 0.0387997922 | P52: =L52*J52 -> 0
B53: 3 | D53: Short-term Debt | F53: =IF(ISBLANK('3. Data_Input_Sheet'!U57),F36,'3. Data_Input_Sheet'!U57) -> 0 | J53: =$J$61*F53 -> 0 | L53: =IF(ISBLANK('3. Data_Input_Sheet'!U65),L19,'3. Data_Input_Sheet'!U65) -> 0.0272 | P53: =L53*J53 -> 0
B54: 4 | D54: Total Debt | F54: =SUM(F51:F53) -> 0 | J54: =SUM(J51:J53) -> 0 | L54: =IF(F54=0,0,SUMPRODUCT(F51:F53,L51:L53)/F54) -> 0 | P54: =SUM(P51:P53) -> 0
D56: Equity
B57: 5 | D57: Common Equity | F57: =IF(ISBLANK('3. Data_Input_Sheet'!U58),F40,'3. Data_Input_Sheet'!U58) -> 0 | J57: =$J$61*F57 -> 0 | L57: =IF(ISBLANK('3. Data_Input_Sheet'!U66),L23,'3. Data_Input_Sheet'!U66) -> 0.0911 | P57: =L57*J57 -> 0
B58: 6 | D58: Preferred Shares | F58: =IF(ISBLANK('3. Data_Input_Sheet'!U59),F41,'3. Data_Input_Sheet'!U59) -> 0 | J58: =$J$61*F58 -> 0 | L58: =IF(ISBLANK('3. Data_Input_Sheet'!U67),L24,'3. Data_Input_Sheet'!U67) -> 0 | P58: =L58*J58 -> 0
B59: 7 | D59: Total Equity | F59: =SUM(F57:F58) -> 0 | J59: =SUM(J57:J58) -> 0 | L59: =IF(F59=0,0,SUMPRODUCT(F57:F58,L57:L58)/F59) -> 0 | P59: =SUM(P57:P58) -> 0
B61: 8 | D61: Total | F61: =F54+F59 -> 0 | J61: ='4. Rate_Base'!W19 -> 0 | L61: =(L54*F54)+(L59*F59) -> 0 | P61: =P54+P59 -> 0
F64: Per Board Decision
F66: (%) | J66: ($) | L66: (%) | P66: ($)
D67: Debt
B68: 1 | D68: Long-term Debt (Notional) | F68: =IF(ISBLANK('3. Data_Input_Sheet'!AC55),F51,'3. Data_Input_Sheet'!AC55) -> 0 | J68: =$J$78*F68 -> 0 | L68: =IF(ISBLANK('3. Data_Input_Sheet'!AC63),L51,'3. Data_Input_Sheet'!AC63) -> 0.0387997922 | P68: =L68*J68 -> 0
B69: 2 | D69: Long-term Debt (Actual) | F69: =IF(ISBLANK('3. Data_Input_Sheet'!AC56),F52,'3. Data_Input_Sheet'!AC56) -> 0 | J69: =$J$78*F69 -> 0 | L69: =IF(ISBLANK('3. Data_Input_Sheet'!AC64),L52,'3. Data_Input_Sheet'!AC64) -> 0.0387997922 | P69: =L69*J69 -> 0
B70: 3 | D70: Short-term Debt | F70: =IF(ISBLANK('3. Data_Input_Sheet'!AC57),F53,'3. Data_Input_Sheet'!AC57) -> 0 | J70: =$J$78*F70 -> 0 | L70: =IF(ISBLANK('3. Data_Input_Sheet'!AC65),L53,'3. Data_Input_Sheet'!AC65) -> 0.0272 | P70: =L70*J70 -> 0
B71: 4 | D71: Total Debt | F71: =SUM(F68:F70) -> 0 | J71: =SUM(J68:J70) -> 0 | L71: =IF(F71=0,0,SUMPRODUCT(F68:F70,L68:L70)/F71) -> 0 | P71: =SUM(P68:P70) -> 0
D73: Equity
B74: 5 | D74: Common Equity | F74: =IF(ISBLANK('3. Data_Input_Sheet'!AC58),F57,'3. Data_Input_Sheet'!AC58) -> 0 | J74: =$J$78*F74 -> 0 | L74: =IF(ISBLANK('3. Data_Input_Sheet'!AC66),L57,'3. Data_Input_Sheet'!AC66) -> 0.0911 | P74: =L74*J74 -> 0
B75: 6 | D75: Preferred Shares | F75: =IF(ISBLANK('3. Data_Input_Sheet'!AC59),F58,'3. Data_Input_Sheet'!AC59) -> 0 | J75: =$J$61*F75 -> 0 | L75: =IF(ISBLANK('3. Data_Input_Sheet'!AC67),L58,'3. Data_Input_Sheet'!AC67) -> 0 | P75: =L75*J75 -> 0
B76: 7 | D76: Total Equity | F76: =SUM(F74:F75) -> 0 | J76: =SUM(J74:J75) -> 0 | L76: =IF(F76=0,0,SUMPRODUCT(F74:F75,L74:L75)/F76) -> 0 | P76: =SUM(P74:P75) -> 0
B78: 8 | D78: Total | F78: =F71+F76 -> 0 | J78: ='4. Rate_Base'!AC19 -> 0 | L78: =(L71*F71)+(L76*F76) -> 0 | P78: =P71+P76 -> 0
B81: Notes

Sheet 8. Rev_Def_Suff
P1: =CONCATENATE('2. Table of Contents'!$F$6," ",'2. Table of Contents'!$G$6) -> 
B10: Revenue Deficiency/Sufficiency
F13: Initial Application | J13: =IF(ISBLANK('3. Data_Input_Sheet'!M12),"",'3. Data_Input_Sheet'!M12) -> Interrogatory Responses | N13: =IF(ISBLANK('3. Data_Input_Sheet'!U12),"",'3. Data_Input_Sheet'!U12) -> Settlement Agreement | R13: ='3. Data_Input_Sheet'!AC12 -> Per Board Decision
B15: Line No. | D15: Particulars | F15: At Current Approved Rates | H15: At Proposed Rates | J15: At Current Approved Rates | L15: At Proposed Rates | N15: At Current Approved Rates | P15: At Proposed Rates | R15: At Current Approved Rates | T15: At Proposed Rates
B19: 1 | D19: Revenue Deficiency from Below | H19: =F52 -> 1268827.859 | L19: =J52 -> 0 | P19: =N52 -> 0 | T19: =R52 -> 0
B20: 2 | D20: Distribution Revenue | F20: ='3. Data_Input_Sheet'!E25 -> 4026602.876 | H20: ='3. Data_Input_Sheet'!E26-H19 -> 3690363.494 | J20: =IF(ISBLANK('3. Data_Input_Sheet'!M25),,'3. Data_Input_Sheet'!M25) -> 0 | L20: ='3. Data_Input_Sheet'!M26-L19 -> 0 | N20: =IF(ISBLANK('3. Data_Input_Sheet'!U25),,'3. Data_Input_Sheet'!U25) -> 0 | P20: ='3. Data_Input_Sheet'!U26-P19 -> 0 | R20: =IF(ISBLANK('3. Data_Input_Sheet'!AC25),,'3. Data_Input_Sheet'!AC25) -> 0 | T20: ='3. Data_Input_Sheet'!AC26-T19 -> 0
B21: 3 | D21: Other Operating Revenue Offsets - net | F21: ='5. Utility Income'!F48 -> 400306.0451 | H21: ='5. Utility Income'!F48 -> 400306.0451 | J21: ='5. Utility Income'!N48 -> 0 | L21: =J21 -> 0 | N21: ='5. Utility Income'!V48 -> 0 | P21: ='5. Utility Income'!V48 -> 0 | R21: ='5. Utility Income'!AD48 -> 0 | T21: ='5. Utility Income'!AD48 -> 0
B22: 4 | D22: Total Revenue | F22: =SUM(F20:F21) -> 4426908.921 | H22: =SUM(H19:H21) -> 5359497.397 | J22: =SUM(J20:J21) -> 0 | L22: =SUM(L19:L21) -> 0 | N22: =SUM(N20:N21) -> 0 | P22: =SUM(P19:P21) -> 0 | R22: =SUM(R20:R21) -> 0 | T22: =SUM(T19:T21) -> 0
B24: 5 | D24: Operating Expenses | F24: ='5. Utility Income'!F27 -> 4438324.496 | H24: ='5. Utility Income'!F27 -> 4438324.496 | J24: ='5. Utility Income'!N27 -> 0 | L24: ='5. Utility Income'!N27 -> 0 | N24: ='5. Utility Income'!V27 -> 0 | P24: ='5. Utility Income'!V27 -> 0 | R24: ='5. Utility Income'!AD27 -> 0 | T24: ='5. Utility Income'!AD27 -> 0
B25: 6 | D25: Deemed Interest Expense | F25: ='5. Utility Income'!F30 -> 354688.386 | H25: ='5. Utility Income'!F30 -> 354688.386 | J25: ='5. Utility Income'!N30 -> 0 | L25: ='5. Utility Income'!N30 -> 0 | N25: ='5. Utility Income'!V30 -> 0 | P25: ='5. Utility Income'!V30 -> 0 | R25: ='5. Utility Income'!AD30 -> 0 | T25: ='5. Utility Income'!AD30 -> 0
B26: 8 | D26: Total Cost and Expenses | F26: =SUM(F24:F25) -> 4793012.882 | H26: =SUM(H24:H25) -> 4793012.882 | J26: =SUM(J24:J25) -> 0 | L26: =SUM(L24:L25) -> 0 | N26: =SUM(N24:N25) -> 0 | P26: =SUM(P24:P25) -> 0 | R26: =SUM(R24:R25) -> 0 | T26: =SUM(T24:T25) -> 0
B28: 9 | D28: Utility Income Before Income Taxes | F28: =F22-F26 -> -366103.9605 | H28: =H22-H26 -> 566484.5156 | J28: =J22-J26 -> 0 | L28: =L22-L26 -> 0 | N28: =N22-N26 -> 0 | P28: =P22-P26 -> 0 | R28: =R22-R26 -> 0 | T28: =T22-T26 -> 0
B30: 10 | D30: Tax Adjustments to Accounting Income per 2013 PILs model | F30: ='3. Data_Input_Sheet'!E44 -> -619053.1872 | H30: ='3. Data_Input_Sheet'!E44 -> -619053.1872 | J30: ='3. Data_Input_Sheet'!M44 -> 0 | L30: ='3. Data_Input_Sheet'!M44 -> 0 | N30: ='3. Data_Input_Sheet'!U44 -> 0 | P30: ='3. Data_Input_Sheet'!U44 -> 0 | R30: ='3. Data_Input_Sheet'!AC44 -> 0 | T30: ='3. Data_Input_Sheet'!AC44 -> 0
B31: 11 | D31: Taxable Income | F31: =SUM(F28:F30) -> -985157.1477 | H31: =SUM(H28:H30) -> -52568.67161 | J31: =SUM(J28+J30) -> 0 | L31: =L28+L30 -> 0 | N31: =SUM(N28+N30) -> 0 | P31: =P28+P30 -> 0 | R31: =SUM(R28+R30) -> 0 | T31: =T28+T30 -> 0
B33: 12 | D33: Income Tax Rate | F33: ='6. Taxes_PILs'!G41 -> 0.265 | H33: ='6. Taxes_PILs'!G41 -> 0.265 | J33: ='6. Taxes_PILs'!K41 -> 0.265 | L33: ='6. Taxes_PILs'!K41 -> 0.265 | N33: ='6. Taxes_PILs'!O41 -> 0.265 | P33: ='6. Taxes_PILs'!O41 -> 0.265 | R33: ='6. Taxes_PILs'!S41 -> 0.265 | T33: ='6. Taxes_PILs'!S41 -> 0.265
B34: 13 | D34: Income Tax on Taxable Income | F34: =MAX(F31*F33,0) -> 0 | H34: =MAX(H31*H33,0) -> 0 | J34: =MAX(J31*J33,0) -> 0 | L34: =MAX(L31*L33,0) -> 0 | N34: =MAX(N31*N33,0) -> 0 | P34: =MAX(P31*P33,0) -> 0 | R34: =MAX(R31*R33,0) -> 0 | T34: =MAX(T31*T33,0) -> 0
B35: 14 | D35: Income Tax Credits | F35: ='3. Data_Input_Sheet'!E51 -> 0 | H35: ='3. Data_Input_Sheet'!E51 -> 0 | J35: ='3. Data_Input_Sheet'!M51 -> 0 | L35: ='3. Data_Input_Sheet'!M51 -> 0 | N35: ='3. Data_Input_Sheet'!U51 -> 0 | P35: ='3. Data_Input_Sheet'!U51 -> 0 | R35: ='3. Data_Input_Sheet'!AC51 -> 0 | T35: ='3. Data_Input_Sheet'!AC51 -> 0
B36: 15 | D36: Utility Net Income | F36: =F28-SUM(F34:F35) -> -366103.9605 | H36: ='5. Utility Income'!F37 -> 566484.5156 | J36: =J28-SUM(J34:J35) -> 0 | L36: ='5. Utility Income'!N37 -> 0 | N36: =N28-SUM(N34:N35) -> 0 | P36: ='5. Utility Income'!V37 -> 0 | R36: =R28-SUM(R34:R35) -> 0 | T36: ='5. Utility Income'!AD37 -> 0
B38: 16 | D38: Utility Rate Base | F38: ='4. Rate_Base'!G19 -> 15545678.25 | H38: ='4. Rate_Base'!G19 -> 15545678.25 | J38: ='4. Rate_Base'!O19 -> 0 | L38: ='4. Rate_Base'!O19 -> 0 | N38: ='4. Rate_Base'!W19 -> 0 | P38: ='4. Rate_Base'!W19 -> 0 | R38: ='4. Rate_Base'!AC19 -> 0 | T38: ='4. Rate_Base'!AC19 -> 0
B40: 17 | D40: Deemed Equity Portion of Rate Base | F40: ='7. Cost_of_Capital'!J25 -> 6218271.302 | H40: =F40 -> 6218271.302 | J40: ='7. Cost_of_Capital'!J42 -> 0 | L40: =J40 -> 0 | N40: ='7. Cost_of_Capital'!J59 -> 0 | P40: =N40 -> 0 | R40: ='7. Cost_of_Capital'!J76 -> 0 | T40: =R40 -> 0
B42: 18 | D42: Income/(Equity Portion of Rate Base) | F42: =IF(F40=0,0,F36/F40) -> -0.05887552066 | H42: =IF(H40=0,0,H36/H40) -> 0.0911 | J42: =IF(J40=0,0,J36/J40) -> 0 | L42: =IF(L40=0,0,L36/L40) -> 0 | N42: =IF(N40=0,0,N36/N40) -> 0 | P42: =IF(P40=0,0,P36/P40) -> 0 | R42: =IF(R40=0,0,R36/R40) -> 0 | T42: =IF(T40=0,0,T36/T40) -> 0
B43: 19 | D43: Target Return - Equity on Rate Base | F43: ='7. Cost_of_Capital'!L25 -> 0.0911 | H43: ='7. Cost_of_Capital'!L25 -> 0.0911 | J43: ='7. Cost_of_Capital'!L42 -> 0 | L43: ='7. Cost_of_Capital'!L42 -> 0 | N43: ='7. Cost_of_Capital'!L59 -> 0 | P43: ='7. Cost_of_Capital'!L59 -> 0 | R43: ='7. Cost_of_Capital'!L76 -> 0 | T43: ='7. Cost_of_Capital'!L76 -> 0
B44: 20 | D44: Deficiency/Sufficiency in Return on Equity | F44: =F42-F43 -> -0.1499755207 | H44: =H42-H43 -> 0 | J44: =J42-J43 -> 0 | L44: =L42-L43 -> 0 | N44: =N42-N43 -> 0 | P44: =P42-P43 -> 0 | R44: =R42-R43 -> 0 | T44: =T42-T43 -> 0
B46: 21 | D46: Indicated Rate of Return | F46: =IF(F38=0,0,(F36+F25)/F38) -> -0.0007343246322 | H46: =IF(H38=0,0,(H36+H25)/H38) -> 0.05925588363 | J46: =IF(J38=0,0,(J36+J25)/J38) -> 0 | L46: =IF(L40=0,0,(L36+L25)/L38) -> 0 | N46: =IF(N38=0,0,(N36+N25)/N38) -> 0 | P46: =IF(P40=0,0,(P36+P25)/P38) -> 0 | R46: =IF(R38=0,0,(R36+R25)/R38) -> 0 | T46: =IF(T40=0,0,(T36+T25)/T38) -> 0
B47: 22 | D47: Requested Rate of Return on Rate Base | F47: ='7. Cost_of_Capital'!L27 -> 0.05925588363 | H47: ='7. Cost_of_Capital'!L27 -> 0.05925588363 | J47: ='7. Cost_of_Capital'!L44 -> 0 | L47: ='7. Cost_of_Capital'!L44 -> 0 | N47: ='7. Cost_of_Capital'!L61 -> 0 | P47: ='7. Cost_of_Capital'!L61 -> 0 | R47: ='7. Cost_of_Capital'!L78 -> 0 | T47: ='7. Cost_of_Capital'!L78 -> 0
B48: 23 | D48: Deficiency/Sufficiency in Rate of Return | F48: =F46-F47 -> -0.05999020826 | H48: =H46-H47 -> 0 | J48: =J46-J47 -> 0 | L48: =L46-L47 -> 0 | N48: =N46-N47 -> 0 | P48: =P46-P47 -> 0 | R48: =R46-R47 -> 0 | T48: =T46-T47 -> 0
B50: 24 | D50: Target Return on Equity | F50: =H50 -> 566484.5156 | H50: ='7. Cost_of_Capital'!P25 -> 566484.5156 | J50: =L50 -> 0 | L50: ='7. Cost_of_Capital'!P42 -> 0 | N50: =P50 -> 0 | P50: ='7. Cost_of_Capital'!P59 -> 0 | R50: =T50 -> 0 | T50: ='7. Cost_of_Capital'!P76 -> 0
B51: 25 | D51: Revenue Deficiency/(Sufficiency) | F51: =F50-F36 -> 932588.4761 | H51: =H38*H48 -> 0 | J51: =J50-J36 -> 0 | L51: =L38*L48 -> 0 | N51: =N50-N36 -> 0 | P51: =P38*P48 -> 0 | R51: =R50-R36 -> 0 | T51: =T38*T48 -> 0
B52: 26 | D52: Gross Revenue Deficiency/(Sufficiency) | F52: =F51/(1-F33) -> 1268827.859 | G52: (1) | J52: =J51/(1-J33) -> 0 | K52: (1) | N52: =N51/(1-N33) -> 0 | O52: (1) | R52: =R51/(1-R33) -> 0 | S52: (1)
B55: Notes:
B56: (1) | D56: Revenue Deficiency/Sufficiency divided by (1 - Tax Rate)

Sheet 9. Rev_Reqt
B11: Revenue Requirement
B13: Line No. | D13: Particulars | F13: Application | J13: =IF(ISBLANK('3. Data_Input_Sheet'!M12),"",'3. Data_Input_Sheet'!M12) -> Interrogatory Responses | N13: =IF(ISBLANK('3. Data_Input_Sheet'!U12),"",'3. Data_Input_Sheet'!U12) -> Settlement Agreement | R13: ='3. Data_Input_Sheet'!AC12 -> Per Board Decision
B15: 1 | D15: OM&A Expenses | F15: ='5. Utility Income'!F22 -> 3718936.318 | J15: ='5. Utility Income'!N22 -> 0 | N15: ='5. Utility Income'!V22 -> 0 | R15: ='5. Utility Income'!AD22 -> 0
B16: 2 | D16: Amortization/Depreciation | F16: ='5. Utility Income'!F23 -> 685011.58 | J16: ='5. Utility Income'!N23 -> 0 | N16: ='5. Utility Income'!V23 -> 0 | R16: ='5. Utility Income'!AD23 -> 0
B17: 3 | D17: Property Taxes | F17: ='5. Utility Income'!F24 -> 34376.59732 | J17: ='5. Utility Income'!N24 -> 0 | N17: ='5. Utility Income'!V24 -> 0 | R17: ='5. Utility Income'!AD24 -> 0
B18: 4 | D18: Capital Taxes | F18: ='6. Taxes_PILs'!G25 -> 0 | J18: ='6. Taxes_PILs'!K25 -> 0 | N18: ='6. Taxes_PILs'!O25 -> 0 | R18: ='6. Taxes_PILs'!S25 -> 0
B19: 5 | D19: Income Taxes (Grossed up) | F19: ='6. Taxes_PILs'!G33 -> 0 | J19: ='6. Taxes_PILs'!K33 -> 0 | N19: ='6. Taxes_PILs'!O33 -> 0 | R19: ='6. Taxes_PILs'!S33 -> 0
B20: 6 | D20: Other Expenses | F20: ='5. Utility Income'!F26 -> 0 | J20: ='5. Utility Income'!N26 -> 0 | N20: ='5. Utility Income'!V26 -> 0 | R20: ='5. Utility Income'!AD26 -> 0
B21: 7 | D21: Return
D22: Deemed Interest Expense | F22: ='8. Rev_Def_Suff'!F25 -> 354688.386 | J22: ='8. Rev_Def_Suff'!L25 -> 0 | N22: ='8. Rev_Def_Suff'!P25 -> 0 | R22: ='8. Rev_Def_Suff'!T25 -> 0
D23: Return on Deemed Equity | F23: ='8. Rev_Def_Suff'!F50 -> 566484.5156 | J23: ='8. Rev_Def_Suff'!L50 -> 0 | N23: ='8. Rev_Def_Suff'!P50 -> 0 | R23: ='8. Rev_Def_Suff'!T50 -> 0
B25: 8 | D25: Service Revenue Requirement (before Revenues) | F25: =SUM(F15:F23) -> 5359497.397 | J25: =SUM(J15:J23) -> 0 | N25: =SUM(N15:N23) -> 0 | R25: =SUM(R15:R23) -> 0
B27: 9 | D27: Revenue Offsets | F27: ='3. Data_Input_Sheet'!E33 -> 400306.0451 | J27: ='3. Data_Input_Sheet'!M33 -> 0 | N27: ='3. Data_Input_Sheet'!U33 -> 0 | R27: ='3. Data_Input_Sheet'!AC33 -> 0
B28: 10 | D28: Base Revenue Requirement | F28: =F25-F27 -> 4959191.352 | J28: =J25-J27 -> 0 | N28: =N25-N27 -> 0 | R28: =R25-R27 -> 0
D29: (excluding Tranformer Owership Allowance credit adjustment)
B31: 11 | D31: Distribution revenue | F31: ='5. Utility Income'!F16 -> 4959191.352 | J31: ='5. Utility Income'!N16 -> 0 | N31: ='5. Utility Income'!V16 -> 0 | R31: ='5. Utility Income'!AD16 -> 0
B32: 12 | D32: Other revenue | F32: ='5. Utility Income'!F17 -> 400306.0451 | J32: ='5. Utility Income'!N17 -> 0 | N32: ='5. Utility Income'!V17 -> 0 | R32: ='5. Utility Income'!AD17 -> 0
B34: 13 | D34: Total revenue | F34: =SUM(F31:F32) -> 5359497.397 | J34: =SUM(J31:J32) -> 0 | N34: =SUM(N31:N32) -> 0 | R34: =SUM(R31:R32) -> 0
B36: 14 | D36: Difference (Total Revenue Less Distribution Revenue Requirement before Revenues) | F36: =F34-F25 -> 0 | H36: (1) | J36: =J34-J25 -> 0 | L36: (1) | N36: =N34-N25 -> 0 | P36: (1) | R36: =R34-R25 -> 0 | T36: (1)
D39: Summary Table of Revenue Requirement and Revenue Deficiency/Sufficiency
F41: =F13 -> Application | J41: =J13 -> Interrogatory Responses | L41: Δ% (2) | N41: =N13 -> Settlement Agreement | P41: Δ% (2) | R41: =R13 -> Per Board Decision | T41: Δ% (2)
D42: Service Revenue Requirement | F42: =F25 -> 5359497.397 | J42: =J25 -> 0 | L42: =IF($F42=0," ",(J42-$F42)/$F42) -> -1 | N42: =N25 -> 0 | P42: =IF($F42=0," ",(N42-$F42)/$F42) -> -1 | R42: =R25 -> 0 | T42: =IF($F42=0," ",(R42-$F42)/$F42) -> -1
D43: Grossed-Up Revenue Deficiency/(Sufficiency) | F43: ='8. Rev_Def_Suff'!F52 -> 1268827.859 | J43: ='8. Rev_Def_Suff'!J52 -> 0 | L43: =IF($F43=0," ",(J43-$F43)/$F43) -> -1 | N43: ='8. Rev_Def_Suff'!N52 -> 0 | P43: =IF($F43=0," ",(N43-$F43)/$F43) -> -1 | R43: ='8. Rev_Def_Suff'!R52 -> 0 | T43: =IF($F43=0," ",(R43-$F43)/$F43) -> -1
D45: Base Revenue Requirement (to be recovered from Distribution Rates) | F45: =F28 -> 4959191.352 | J45: =J28 -> 0 | L45: =IF($F45=0," ",(J45-$F45)/$F45) -> -1 | N45: =N28 -> 0 | P45: =IF($F45=0," ",(N45-$F45)/$F45) -> -1 | R45: =R28 -> 0 | T45: =IF($F45=0," ",(R45-$F45)/$F45) -> -1
D46: Revenue Deficiency/(Sufficiency) Associated with Base Revenue Requirement | F46: ='3. Data_Input_Sheet'!E26-'3. Data_Input_Sheet'!E25 -> 932588.4761 | J46: ='3. Data_Input_Sheet'!M26-'3. Data_Input_Sheet'!M25 -> 0 | L46: =IF($F46=0," ",(J46-$F46)/$F46) -> -1 | N46: ='3. Data_Input_Sheet'!U26-'3. Data_Input_Sheet'!U25 -> 0 | P46: =IF($F46=0," ",(N46-$F46)/$F46) -> -1 | R46: ='3. Data_Input_Sheet'!AC26-'3. Data_Input_Sheet'!AC25 -> 0 | T46: =IF($F46=0," ",(R46-$F46)/$F46) -> -1
B49: Notes
B50: (1) | D50: Line 11 - Line 8
B51: (2) | D51: Percentage Change Relative to Initial Application

Sheet Hidden Data_Rev Reqt (hidden)
A1: Utility Name | B1: EB Number | C1: Test Year | D1: Bridge Year | E1: Last Rebasing Year | F1: Data Elements | G1: Intital Application | H1: Per Board Decision
A2: ='1. Info'!$G$16 -> Rideau St. Lawrence Distribution Inc. | B2: ='1. Info'!$G$20 -> EB-2026-0069 | C2: ='1. Info'!$G$28 -> 2027 | D2: ='1. Info'!$G$30 -> 2026 | E2: ='1. Info'!$G$32 -> 2022 | F2: Service Revenue Requirement (before Revenues) | G2: ='9. Rev_Reqt'!F25 -> 5359497.397 | H2: ='9. Rev_Reqt'!N25 -> 0
A3: ='1. Info'!$G$16 -> Rideau St. Lawrence Distribution Inc. | B3: ='1. Info'!$G$20 -> EB-2026-0069 | C3: ='1. Info'!$G$28 -> 2027 | D3: ='1. Info'!$G$30 -> 2026 | E3: ='1. Info'!$G$32 -> 2022 | F3: Base Revenue Requirement | G3: ='9. Rev_Reqt'!F28 -> 4959191.352 | H3: ='9. Rev_Reqt'!N28 -> 0
A4: ='1. Info'!$G$16 -> Rideau St. Lawrence Distribution Inc. | B4: ='1. Info'!$G$20 -> EB-2026-0069 | C4: ='1. Info'!$G$28 -> 2027 | D4: ='1. Info'!$G$30 -> 2026 | E4: ='1. Info'!$G$32 -> 2022 | F4: Revenue Deficiency/(Sufficiency) Associated with Base Revenue Requirement | G4: ='9. Rev_Reqt'!F46 -> 932588.4761 | H4: ='9. Rev_Reqt'!N46 -> 0

Sheet 10. Load Forecast
B14: Load Forecast Summary
B16: This spreadsheet provides a summary of the customer and load forecast on which the test year revenue requirement is derived. The amounts serve as the denominators for deriving the rates to recover the test year revenue requirement for purposes of this RRWF.
B18: The information to be input is inclusive of any adjustments to kWh and kW to reflect the impacts of CDM programs up to and including CDM programs planned to be executed in the test year. i.e., the load forecast adjustments determined in Appendix 2-IB should be incorporated into the entries. The inputs should correspond with the summary of the Load Forecast for the Test Year in Appendix 2-IB and in Exhibit 3 of the application.
B20: Appendix 2-IB is still required to be filled out, as it also provides a year-over-year variance analysis of demand growth and trends from historical actuals to the Bridge and Test Year forecasts.
D22: Stage in Process: | F22: Initial Application
D24: Customer Class | F24: =IF(ISBLANK('3. Data_Input_Sheet'!E12)," ",'3. Data_Input_Sheet'!E12) -> Initial Application | L24: =IF(ISBLANK('3. Data_Input_Sheet'!M12)," ",'3. Data_Input_Sheet'!M12) -> Interrogatory Responses | R24: =IF(ISBLANK('3. Data_Input_Sheet'!U12)," ",'3. Data_Input_Sheet'!U12) -> Settlement Agreement | X24: =IF(ISBLANK('3. Data_Input_Sheet'!AC12)," ",'3. Data_Input_Sheet'!AC12) -> Per Board Decision
D26: Input the name of each customer class. | F26: Customer / Connections | H26: kWh | J26: kW/kVA (1) | L26: =F26 -> Customer / Connections | N26: =H26 -> kWh | P26: kW/kVA (1) | R26: =F26 -> Customer / Connections | T26: =H26 -> kWh | V26: kW/kVA (1) | X26: =L26 -> Customer / Connections | Z26: =N26 -> kWh | AB26: kW/kVA (1)
F27: Test Year average or mid-year | H27: Annual | J27: Annual | L27: =F27 -> Test Year average or mid-year | N27: =H27 -> Annual | P27: =J27 -> Annual | R27: =F27 -> Test Year average or mid-year | T27: =H27 -> Annual | V27: =J27 -> Annual | X27: =L27 -> Test Year average or mid-year | Z27: =N27 -> Annual | AB27: =P27 -> Annual
B29: 1 | D29: Residential | F29: 5376.252456 | H29: 50042036.12 | J29: 0
B30: 2 | D30: General Service < 50 kW | F30: 741.6299557 | H30: 22686576.89 | J30: 0
B31: 3 | D31: General Service > 50 to 4999 kW | F31: 65.94047096 | H31: 44638220.49 | J31: 121843.8868
B32: 4 | D32: Unmetered Scattered Load | F32: 60.45372766 | H32: 638256.9192 | J32: 0
B33: 5 | D33: Sentinel | F33: 69.35025782 | H33: 137576.679 | J33: 152.3950293
B34: 6 | D34: StreetLights | F34: 1713.444762 | H34: 647807.3304 | J34: 1620.825263
B35: 7
B36: 8
B37: 9
B38: 10
B39: 11
B40: 12
B41: 13
B42: 14
B43: 15
B44: 16
B45: 17
B46: 18
B47: 19
B48: 20
D50: Total | F50: =SUM(F29:F48) -> 8027.07163 | H50: =SUM(H29:H48) -> 118790474.4 | J50: =SUM(J29:J48) -> 123617.1071 | L50: =SUM(L29:L48) -> 0 | N50: =SUM(N29:N48) -> 0 | P50: =SUM(P29:P48) -> 0 | R50: =SUM(R29:R48) -> 0 | T50: =SUM(T29:T48) -> 0 | V50: =SUM(V29:V48) -> 0 | X50: =SUM(X29:X48) -> 0 | Z50: =SUM(Z29:Z48) -> 0 | AB50: =SUM(AB29:AB48) -> 0
B52: Notes:
B54: (1) | C54: Input kW or kVA for those customer classes for which billing is based on demand (kW or kVA) versus energy consumption (kWh)

Sheet 11. Cost_Allocation
B14: Cost Allocation and Rate Design
B16: This spreadsheet replaces Appendix 2-P and provides a summary of the results from the Cost Allocation spreadsheet, and is used in the determination of the class revenue requirement and, hence, ultimately, the determination of rates from customers in all classes to recover the revenue requirement.
C20: Stage in Application Process: | E20: =IF(ISBLANK('10. Load Forecast'!F22),"",'10. Load Forecast'!F22) -> Initial Application
B22: A) | C22: Allocated Costs
C24: Name of Customer Class (3) | E24: Costs Allocated from Previous Study (1) | G24: % | I24: Allocated Class Revenue Requirement (1) | K24: %
C25: From Sheet 10. Load Forecast
I26: (7A)
B28: 1 | C28: =IF(ISBLANK('10. Load Forecast'!D29),"",'10. Load Forecast'!D29) -> Residential | G28: =IF(E$49=0,"",E28/E$49) ->  | I28: 3155186.236 | K28: =IF(I$49=0,"",I28/I$49) -> 0.5887093513
B29: 2 | C29: =IF(ISBLANK('10. Load Forecast'!D30),"",'10. Load Forecast'!D30) -> General Service < 50 kW | G29: =IF(E$49=0,"",E29/E$49) ->  | I29: 864927.6223 | K29: =IF(I$49=0,"",I29/I$49) -> 0.1613822264
B30: 3 | C30: =IF(ISBLANK('10. Load Forecast'!D31),"",'10. Load Forecast'!D31) -> General Service > 50 to 4999 kW | G30: =IF(E$49=0,"",E30/E$49) ->  | I30: 1032405.008 | K30: 0.1926309375
B31: 4 | C31: =IF(ISBLANK('10. Load Forecast'!D32),"",'10. Load Forecast'!D32) -> Unmetered Scattered Load | G31: =IF(E$49=0,"",E31/E$49) ->  | I31: 19636.77953 | K31: 0.003663921833
B32: 5 | C32: =IF(ISBLANK('10. Load Forecast'!D33),"",'10. Load Forecast'!D33) -> Sentinel | I32: 26645.89141 | K32: 0.004971714592
B33: 6 | C33: =IF(ISBLANK('10. Load Forecast'!D34),"",'10. Load Forecast'!D34) -> StreetLights | I33: 260695.8597 | K33: 0.04864184835
B34: 7 | C34: =IF(ISBLANK('10. Load Forecast'!D35),"",'10. Load Forecast'!D35) ->  | K34: 0
B35: 8 | C35: =IF(ISBLANK('10. Load Forecast'!D36),"",'10. Load Forecast'!D36) ->  | K35: 0
B36: 9 | C36: =IF(ISBLANK('10. Load Forecast'!D37),"",'10. Load Forecast'!D37) ->  | K36: 0
B37: 10 | C37: =IF(ISBLANK('10. Load Forecast'!D38),"",'10. Load Forecast'!D38) ->  | K37: 0
B38: 11 | C38: =IF(ISBLANK('10. Load Forecast'!D39),"",'10. Load Forecast'!D39) ->  | K38: 0
B39: 12 | C39: =IF(ISBLANK('10. Load Forecast'!D40),"",'10. Load Forecast'!D40) ->  | K39: 0
B40: 13 | C40: =IF(ISBLANK('10. Load Forecast'!D41),"",'10. Load Forecast'!D41) ->  | K40: 0
B41: 14 | C41: =IF(ISBLANK('10. Load Forecast'!D42),"",'10. Load Forecast'!D42) ->  | K41: 0
B42: 15 | C42: =IF(ISBLANK('10. Load Forecast'!D43),"",'10. Load Forecast'!D43) ->  | K42: 0
B43: 16 | C43: =IF(ISBLANK('10. Load Forecast'!D44),"",'10. Load Forecast'!D44) ->  | K43: 0
B44: 17 | C44: =IF(ISBLANK('10. Load Forecast'!D45),"",'10. Load Forecast'!D45) ->  | K44: 0
B45: 18 | C45: =IF(ISBLANK('10. Load Forecast'!D46),"",'10. Load Forecast'!D46) ->  | K45: 0
B46: 19 | C46: =IF(ISBLANK('10. Load Forecast'!D47),"",'10. Load Forecast'!D47) ->  | K46: 0
B47: 20 | C47: =IF(ISBLANK('10. Load Forecast'!D48),"",'10. Load Forecast'!D48) ->  | K47: 0
K48: 0
C49: Total | E49: =SUM(E28:E47) -> 0 | G49: =SUM(G28:G47) -> 0 | I49: =SUM(I28:I48) -> 5359497.397 | K49: =SUM(K28:K48) -> 1
C51: =IF(I51=0,"",IF(ABS(I51-I49)<(0.001*I51)," ","Allocated Revenue Requirement does not match Base Revenue Requirement from Sheet 9. Check data.")) ->  | E51: Service Revenue Requirement (from Sheet 9) | I51: =IF(ISBLANK(E20),"",IF(E20='13. Rate Design'!AC4,'9. Rev_Reqt'!F25,IF(E20='13. Rate Design'!AC6,'9. Rev_Reqt'!N25,'9. Rev_Reqt'!J25))) -> 5359497.397
B53: (1) | C53: Class Allocated Revenue Requirement, from Sheet O-1, Revenue to Cost || RR, row 40, from the Cost Allocation Study in this application. This excludes costs in deferral and variance accounts. For Embedded Distributors, Account 4750 - Low Voltage (LV) Costs are also excluded.
B54: (2) | C54: Host Distributors - Provide information on any embedded distributor(s) as a separate class, if applicable. If embedded distributors are billed in a General Service class, include the allocated costs and revenues of the embedded distributor(s) in the applicable class, and also complete Appendix 2-Q.
B55: (3) | C55: Customer Classes - If these differ from those in place in the previous cost allocation study, modify the customer classes to match the proposal in the current application as closely as possible.
B57: B) | C57: Calculated Class Revenues
C59: Name of Customer Class | E59: Load Forecast (LF) X current approved rates | G59: LF X current approved rates X (1+d) | I59: LF X Proposed Rates | K59: Miscellaneous Revenues
E60: (7B) | G60: (7C) | I60: (7D) | K60: (7E)
B62: 1 | C62: =IF(ISBLANK(C28),"",C28) -> Residential | E62: 2358669.477 | G62: 2904953.291 | I62: 2903639.547 | K62: 261012.2481
B63: 2 | C63: =IF(ISBLANK(C29),"",C29) -> General Service < 50 kW | E63: 760152.1301 | G63: 936208.5077 | I63: 918478.9706 | K63: 59695.22287
B64: 3 | C64: General Service > 50 to 4999 kW | E64: 747071.7251 | G64: 920098.5925 | I64: 919706.6358 | K64: 43527.23701
B65: 4 | C65: Unmetered Scattered Load | E65: 22702.58843 | G65: 27960.66155 | I65: 21931.00906 | K65: 1633.126375
B66: 5 | C66: Sentinel | E66: 8404.232067 | G66: 10350.70909 | I66: 19319.24897 | K66: 1997.464162
B67: 6 | C67: StreetLights | E67: 129602.723 | G67: 159619.5908 | I67: 176115.9411 | K67: 32440.7466
B68: 7
B69: 8
B70: 9
B71: 10
B72: 11
B73: 12
B74: 13
B75: 14
B76: 15
B77: 16
B78: 17
B79: 18
B80: 19
B81: 20
C83: Total | E83: =SUM(E62:E81) -> 4026602.876 | G83: =SUM(G62:G81) -> 4959191.352 | I83: =SUM(I62:I81) -> 4959191.352 | K83: =SUM(K62:K81) -> 400306.0451
B86: (4) | C86: In columns 7B to 7D, LF means Load Forecast of Annual Billing Quantities (i.e., customers or connections, as applicable X 12 months, and kWh, kW or kVA as applicable. Revenue quantities should be net of the Transformer Ownership Allowance for applicable customer classes. Exclude revenues from rate adders and rate riders.
B87: (5) | C87: Columns 7C and 7D - Column Total should equal the Base Revenue Requirement for each.
B88: (6) | C88: Column 7C - The OEB-issued cost allocation model calculates "1+d" on worksheet O-1, cell C22. "d" is defined as Revenue Deficiency/Revenue at Current Rates.
B89: (7) | C89: Column 7E - If using the OEB-issued cost allocation model, enter Miscellaneous Revenues as it appears on worksheet O-1, row 19.
B91: C) | C91: Rebalancing Revenue-to-Cost Ratios
C93: Name of Customer Class | E93: Previously Approved Ratios | G93: Status Quo Ratios | I93: Proposed Ratios | K93: Policy Range
E94: Most Recent Year: | G94: (7C + 7E) / (7A) | I94: (7D + 7E) / (7A)
E95: 2022
E96: % | G96: % | I96: % | K96: %
B98: 1 | C98: =IF(ISBLANK(C62),"",C62) -> Residential | E98: 0.9108 | G98: =IF(ISBLANK(I28),"",(G62+K62)/I28) -> 1.003416376 | I98: =IF(ISBLANK(I28),"",(I62+K62)/I28) -> 1.003 | K98: 85 - 115 | M98: =IF(ISBLANK(K98),"",LEFT(K98,2)/100) -> 0.85 | N98: =IF(ISBLANK(K98),"",RIGHT(K98,3)/100) -> 1.15 | O98: 85 - 115
B99: 2 | C99: General Service < 50 kW | E99: 1.2 | G99: 1.151430137 | I99: 1.130931847 | M99: =IF(ISBLANK(K99),"",LEFT(K99,2)/100) ->  | N99: =IF(ISBLANK(K99),"",RIGHT(K99,3)/100) ->  | O99: 80 - 120
B100: 3 | C100: General Service > 50 to 4999 kW | E100: 1.2 | G100: 0.933379654 | I100: 0.933
B101: 4 | C101: Unmetered Scattered Load | E101: 1.0868 | G101: 1.507059133 | I101: 1.2
B102: 5 | C102: Sentinel | E102: 0.8999 | G102: 0.4634175325 | I102: 0.8
B103: 6 | C103: StreetLights | E103: 1.0728 | G103: 0.7367218552 | I103: 0.8
B104: 7
B105: 8
B106: 9
B107: 10
B108: 11
B109: 12
B110: 13
B111: 14
B112: 15
B113: 16
B114: 17
B115: 18
B116: 19
B117: 20
B120: (8) | C120: Previously Approved Revenue-to-Cost (R/C) Ratios - For most applicants, the most recent year would be the third year (at the latest) of the Price Cap IR period. For example, if the applicant, rebased in 2021 with further adjustments to move within the range over two years, the Most Recent Year would be 2024. However, the ratios in 2025 would be equal to those after the adjustment in 2023.
B121: (9) | C121: Status Quo Ratios - The OEB-issued cost allocation model provides the Status Quo Ratios on Worksheet O-1. The Status Quo means "Before Rebalancing".
B122: (10) | C122: Ratios shown in red are outside of the allowed range. Applies to both Tables C and D.
B124: (D) | C124: Proposed Revenue-to-Cost Ratios (11)
C126: Name of Customer Class | E126: Proposed Revenue-to-Cost Ratio | K126: Policy Range
E127: Test Year | G127: Price Cap IR Period
E128: ='1. Info'!G28 -> 2027 | G128: =E128+1 -> 2028 | I128: =G128+1 -> 2029
B130: 1 | C130: =IF(ISBLANK(C98),"",C98) -> Residential | E130: =I98 -> 1.003 | G130: =IF(E130=0,"",E130) -> 1.003 | I130: =IF(G130=0,"",G130) -> 1.003 | K130: =IF(ISBLANK(K98),"",K98) -> 85 - 115 | M130: =IF(K130="","",LEFT(K130,2)/100) -> 0.85 | N130: =IF(K130="","",RIGHT(K130,3)/100) -> 1.15
B131: 2 | C131: =IF(ISBLANK(C99),"",C99) -> General Service < 50 kW | E131: =I99 -> 1.130931847 | G131: =IF(E131=0,"",E131) -> 1.130931847 | I131: =IF(G131=0,"",G131) -> 1.130931847 | K131: =IF(ISBLANK(K99),"",K99) ->  | M131: =IF(K131="","",LEFT(K131,2)/100) ->  | N131: =IF(K131="","",RIGHT(K131,3)/100) -> 
B132: 3 | C132: General Service > 50 to 4999 kW | E132: 0.933 | G132: 0.933 | I132: 0.933
B133: 4 | C133: Unmetered Scattered Load | E133: 1.2 | G133: 1.2 | I133: 1.2
B134: 5 | C134: Sentinel | E134: 0.8 | G134: 0.8 | I134: 0.8
B135: 6 | C135: StreetLights | E135: 0.8 | G135: 0.8 | I135: 0.8
B136: 7
B137: 8
B138: 9
B139: 10
B140: 11
B141: 12
B142: 13
B143: 14
B144: 15
B145: 16
B146: 17
B147: 18
B148: 19
B149: 20
B152: (11) | C152: The applicant should complete Table D if it is applying for approval of a revenue-to-cost ratio in 2027 that is outside of the OEB's policy range for any customer class. Table D will show that the distributor is likely to enter into the 2028 and 2029 Price Cap IR models, as necessary. For 2028 and 2029, enter the planned revenue-to-cost ratios that will be "Change" or "No Change" in 2028 (in the current Revenue/Cost Ratio Adjustment Workform, Worksheet C1.1 'Decision - Cost Revenue Adjustment, column d), and enter TBD for class(es) that will be entered as 'Rebalance'.

Sheet 12. Res_Rate_Design (hidden)
B14: New Rate Design Policy For Residential Customers
B16: Please complete the following tables.
B18: A | C18: Data Inputs (from Sheet 10. Load Forecast)
C20: Test Year Billing Determinants for Residential Class
C21: Customers | D21: =VLOOKUP("Residential",'13. Rate Design'!D28:L47,5,FALSE) -> 5376.252456
C22: kWh | D22: =VLOOKUP("Residential",'13. Rate Design'!D28:L47,7,FALSE) -> 50042036.12
C24: Proposed Residential Class Specific Revenue Requirement1 | D24: =VLOOKUP("Residential",'11. Cost_Allocation'!C62:K81,7,FALSE) -> 2903639.547
C26: Residential Base Rates on Current Tariff
C27: Monthly Fixed Charge ($)
C28: Distribution Volumetric Rate ($/kWh)
B31: B | C31: Current Fixed/Variable Split
D33: Base Rates | E33: Billing Determinants | F33: Revenue | G33: % of Total Revenue
C34: Fixed | D34: =IF(D27="","",D27) ->  | E34: =IF(D21="","",D21) -> 5376.252456 | F34: =IF(ISERROR(D34*E34*12),"",D34*E34*12) ->  | G34: =IF(ISERROR(F34/F36),"",F34/F36) -> 
C35: Variable | D35: =IF(D28="","",D28) ->  | E35: =IF(D22="","",D22) -> 50042036.12 | F35: =IF(ISERROR(D35*E35),"",D35*E35) ->  | G35: =IF(ISERROR(F35/F36),"",F35/F36) -> 
C36: TOTAL | D36: - | E36: - | F36: =IF(ISERROR(F34+F35),"",F34+F35) ->  | G36: -
B38: C | C38: Calculating Test Year Base Rates
C40: Number of Remaining Rate Design Policy Transition Years2
D42: Test Year Revenue @ Current F/V Split | E42: Test Year Base Rates @ Current F/V Split | F42: Reconciliation - Test Year Base Rates @ Current F/V Split
C43: Fixed | D43: =IF(ISERROR(D$24*G34),"",D$24*G34) ->  | E43: =IF(ISERROR(ROUND(D43/D21/12,2)),"",ROUND(D43/D21/12,2)) ->  | F43: =IF(ISERROR(E43*D21*12),"",E43*D21*12) -> 
C44: Variable | D44: =IF(ISERROR(D$24*G35),"",D$24*G35) ->  | E44: =IF(ISERROR(ROUND(D44/D22,4)),"",ROUND(D44/D22,4)) ->  | F44: =IF(ISERROR(E44*D22),"",E44*D22) -> 
C45: TOTAL | D45: =IF(ISERROR(D43+D44),"",D43+D44) ->  | E45: - | F45: =IF(ISERROR(F43+F44),"",F43+F44) -> 
D47: New F/V Split | E47: Revenue @ new F/V Split | F47: Final Adjusted Base Rates | G47: Revenue Reconciliation @ Adjusted Rates
C48: Fixed | D48: =IF(ISERROR(((1-G34)/D40)+G34),"",((1-G34)/D40)+G34) ->  | E48: =IF(ISERROR(D48*D$24),"",D48*D$24) ->  | F48: =IF(ISERROR(ROUND(E48/D21/12,2)),"",ROUND(E48/D21/12,2)) ->  | G48: =IF(ISERROR(F48*12*D21),"",F48*12*D21) -> 
C49: Variable | D49: =IF(ISERROR(1-D48),"",1-D48) ->  | E49: =IF(ISERROR(D49*D$24),"",D49*D$24) ->  | F49: =IF(ISERROR(ROUND(E49/D22,4)),"",ROUND(E49/D22,4)) ->  | G49: =IF(ISERROR(F49*D22),"",F49*D22) -> 
C50: TOTAL | D50: - | E50: =IF(ISERROR(SUM(E48:E49)),"",SUM(E48:E49)) -> 0 | F50: - | G50: =IF(ISERROR(G48+G49),"",G48+G49) -> 
C52: Checks3
C53: Change in Fixed Rate | D53: =IF(ISERROR(F48-E43),"",F48-E43) -> 
C54: Difference Between Revenues @ Proposed Rates and Class Specific Revenue Requirement | D54: =IF(ISERROR((F48*12*D21)+(F49*D22)-D24),"",(F48*12*D21)+(F49*D22)-D24) -> 
D55: =IF(ISERROR(D54/D24), "", D54/D24) -> 
B57: Notes:
B59: 1 | C59: The final residential class specific revenue requirement, excluding allocated Miscellaneous Revenues, as shown on Sheet 11. Cost Allocation, should be used (i.e. the revenue requirement after any proposed adjustments to R/C ratios).
B62: 2 | C62: The distributor should enter the number of years remaining before the transition to fully fixed rates is completed. The change in residential rate design is almost complete and distributors should have either 0 or 1 year remaining. If the distributor has fully transitioned to fixed rates put "0" in cell D40. If the distributor has proposed an additional transition year because the change in the residential rate design will result in the fixed charge increasing by more than $4/year, put "1" in cell D40.
B67: 3 | C67: Change in fixed rate due to rate design policy should be less than $4. The difference between the proposed class revenue requirement and the revenue at calculated base rates should be minimal (i.e. should be reasonably considered as a rounding error)

Sheet 13. Rate Design
AC4: ='3. Data_Input_Sheet'!E12 -> Initial Application | AD4: 1 | AE4: F | AF4: H | AG4: J
AC5: =IF(ISBLANK('3. Data_Input_Sheet'!M12)," ",'3. Data_Input_Sheet'!M12) -> Interrogatory Responses | AD5: 2 | AE5: L | AF5: N | AG5: P
AC6: =IF(ISBLANK('3. Data_Input_Sheet'!U12)," ",'3. Data_Input_Sheet'!U12) -> Settlement Agreement | AD6: 3 | AE6: R | AF6: T | AG6: V
AC7: ='3. Data_Input_Sheet'!AC12 -> Per Board Decision
B15: Rate Design and Revenue Reconciliation
B17: This sheet replaces Appendix 2-V, and provides a simplified model for calculating the standard monthly and voluemtric rates based on the allocated class revenues and fixed/variable split resulting from the cost allocation study and rate design and as proposed by the applicant. However, the RRWF does not replace the rate generator model that an applicant distributor may use in support of its application. The RRWF provides a demonstrative check on the derivation of the revenue requirement and on the proposed base distribution rates to recover the revenue requirement, based on summary information from a more detailed rate generator model and other models that applicants use for cost allocation, load forecasting, taxes/PILs, etc.
D20: Stage in Process: | H20: =IF(ISBLANK('10. Load Forecast'!F22),"",'10. Load Forecast'!F22) -> Initial Application | O20: Class Allocated Revenues | AA20: Distribution Rates | AK20: Revenue Reconciliation
D22: Customer and Load Forecast | O22: From Sheet 11. Cost Allocation and Sheet 12. Residential Rate Design | U22: Fixed / Variable Splits 2,3
U23: Percentage to be entered as a fraction between 0 and 1
D24: Customer Class | F24: Volumetric Charge Determinant | H24: Customers / Connections | J24: kWh | L24: kW or kVA | O24: Total Class Revenue Requirement | Q24: Monthly Service Charge | S24: Volumetric | Y24: Transformer Ownership Allowance 1 ($) | AA24: Monthly Service Charge 2 | AE24: Volumetric Rate 3 | AO24: Distribution Revenues less Transformer Ownership Allowance
U25: Fixed | W25: Variable
D26: From sheet 10. Load Forecast | AA26: Rate | AC26: No. of decimals | AE26: Rate | AI26: No. of decimals | AK26: MSC Revenues | AM26: Volumetric revenues
B28: 1 | D28: =IF(ISBLANK('10. Load Forecast'!D29),"",'10. Load Forecast'!D29) -> Residential | F28: kWh | H28: =IF(ISBLANK($H$20),0,IF($H$20=$AC$4,'10. Load Forecast'!F29,IF($H$20=$AC$5,'10. Load Forecast'!L29,IF($H$20=$AC$6,'10. Load Forecast'!R29,'10. Load Forecast'!X29)))) -> 5376.252456 | J28: =IF(ISBLANK($H$20),0,IF($H$20=$AC$4,'10. Load Forecast'!H29,IF($H$20=$AC$5,'10. Load Forecast'!N29,IF($H$20=$AC$6,'10. Load Forecast'!T29,'10. Load Forecast'!Z29)))) -> 50042036.12 | L28: =IF(ISBLANK($H$20),0,IF($H$20=$AC$4,'10. Load Forecast'!J29,IF($H$20=$AC$5,'10. Load Forecast'!P29,IF($H$20=$AC$6,'10. Load Forecast'!V29,'10. Load Forecast'!AB29)))) -> 0 | O28: =IF(ISBLANK('11. Cost_Allocation'!I62),"",'11. Cost_Allocation'!I62) -> 2903639.547 | Q28: =IF(ISBLANK(U28),"",O28*U28) -> 2903639.547 | S28: =IF(Q28="","",O28-Q28) -> 4.656612873e-10 | U28: 1 | W28: =IF(ISBLANK(U28),"",1-U28) -> 1.110223025e-16 | AA28: =IF(O28="","",IF(H28=0,0,IF(U28=0,0,ROUND(Q28/(H28*12),AC28)))) -> 45.01 | AC28: 2 | AE28: =IF(S28="","",ROUND(IF(F28="kWh",(S28+Y28)/J28,(S28+Y28)/L28),AI28)) -> 0 | AG28: =IF(ISBLANK(F28),"",CONCATENATE("/",F28)) -> /kWh | AI28: 4 | AK28: =IF(AA28="",0,AA28*H28*12) -> 2903821.476 | AM28: =ROUND(IF(AE28="",0,IF(F28="kWh",J28*AE28,IF(F28="kW",IF(AE28="",0,AE28*L28)))),AI28) -> 0 | AO28: =ROUND(AK28+AM28-Y28,2) -> 2903821.48
B29: 2 | D29: =IF(ISBLANK('10. Load Forecast'!D30),"",'10. Load Forecast'!D30) -> General Service < 50 kW | F29: kWh | H29: =IF(ISBLANK($H$20),0,IF($H$20=$AC$4,'10. Load Forecast'!F30,IF($H$20=$AC$5,'10. Load Forecast'!L30,IF($H$20=$AC$6,'10. Load Forecast'!R30,'10. Load Forecast'!X30)))) -> 741.6299557 | J29: =IF(ISBLANK($H$20),0,IF($H$20=$AC$4,'10. Load Forecast'!H30,IF($H$20=$AC$5,'10. Load Forecast'!N30,IF($H$20=$AC$6,'10. Load Forecast'!T30,'10. Load Forecast'!Z30)))) -> 22686576.89 | L29: =IF(ISBLANK($H$20),0,IF($H$20=$AC$4,'10. Load Forecast'!J30,IF($H$20=$AC$5,'10. Load Forecast'!P30,IF($H$20=$AC$6,'10. Load Forecast'!V30,'10. Load Forecast'!AB30)))) -> 0 | O29: =IF(ISBLANK('11. Cost_Allocation'!I63),"",'11. Cost_Allocation'!I63) -> 918478.9706 | Q29: =IF(ISBLANK(U29),"",O29*U29) -> 333644.4845 | S29: =IF(Q29="","",O29-Q29) -> 584834.4861 | U29: 0.3632576196 | W29: =IF(ISBLANK(U29),"",1-U29) -> 0.6367423804 | AA29: =IF(O29="","",IF(H29=0,0,IF(U29=0,0,ROUND(Q29/(H29*12),AC29)))) -> 37.49 | AC29: =AC28 -> 2 | AE29: =IF(S29="","",ROUND(IF(F29="kWh",(S29+Y29)/J29,(S29+Y29)/L29),AI29)) -> 0.0258 | AG29: /kWh | AI29: =AI28 -> 4 | AK29: =IF(AA29="",0,AA29*H29*12) -> 333644.4845 | AM29: =ROUND(IF(AE29="",0,IF(F29="kWh",J29*AE29,IF(F29="kW",IF(AE29="",0,AE29*L29)))),AI29) -> 585313.6839 | AO29: =ROUND(AK29+AM29-Y29,2) -> 918958.17
B30: 3 | D30: =IF(ISBLANK('10. Load Forecast'!D31),"",'10. Load Forecast'!D31) -> General Service > 50 to 4999 kW | F30: kW | H30: =IF(ISBLANK($H$20),0,IF($H$20=$AC$4,'10. Load Forecast'!F31,IF($H$20=$AC$5,'10. Load Forecast'!L31,IF($H$20=$AC$6,'10. Load Forecast'!R31,'10. Load Forecast'!X31)))) -> 65.94047096 | J30: =IF(ISBLANK($H$20),0,IF($H$20=$AC$4,'10. Load Forecast'!H31,IF($H$20=$AC$5,'10. Load Forecast'!N31,IF($H$20=$AC$6,'10. Load Forecast'!T31,'10. Load Forecast'!Z31)))) -> 44638220.49 | L30: =IF(ISBLANK($H$20),0,IF($H$20=$AC$4,'10. Load Forecast'!J31,IF($H$20=$AC$5,'10. Load Forecast'!P31,IF($H$20=$AC$6,'10. Load Forecast'!V31,'10. Load Forecast'!AB31)))) -> 121843.8868 | O30: =IF(ISBLANK('11. Cost_Allocation'!I64),"",'11. Cost_Allocation'!I64) -> 919706.6358 | Q30: 282718.4504 | S30: 636988.1854 | U30: 0.3074006856 | W30: 0.6925993144 | Y30: -33513.29104 | AA30: 357.29 | AC30: =AC29 -> 2 | AE30: 4.9529 | AG30: /kW | AI30: =AI29 -> 4 | AK30: 282718.4504 | AM30: 603480.5869 | AO30: 919712.33
B31: 4 | D31: =IF(ISBLANK('10. Load Forecast'!D32),"",'10. Load Forecast'!D32) -> Unmetered Scattered Load | F31: kWh | H31: =IF(ISBLANK($H$20),0,IF($H$20=$AC$4,'10. Load Forecast'!F32,IF($H$20=$AC$5,'10. Load Forecast'!L32,IF($H$20=$AC$6,'10. Load Forecast'!R32,'10. Load Forecast'!X32)))) -> 60.45372766 | J31: =IF(ISBLANK($H$20),0,IF($H$20=$AC$4,'10. Load Forecast'!H32,IF($H$20=$AC$5,'10. Load Forecast'!N32,IF($H$20=$AC$6,'10. Load Forecast'!T32,'10. Load Forecast'!Z32)))) -> 638256.9192 | L31: =IF(ISBLANK($H$20),0,IF($H$20=$AC$4,'10. Load Forecast'!J32,IF($H$20=$AC$5,'10. Load Forecast'!P32,IF($H$20=$AC$6,'10. Load Forecast'!V32,'10. Load Forecast'!AB32)))) -> 0 | O31: =IF(ISBLANK('11. Cost_Allocation'!I65),"",'11. Cost_Allocation'!I65) -> 21931.00906 | Q31: 4358.910523 | S31: 17572.09853 | U31: 0.1987555845 | W31: 0.8012444155 | AA31: 6.01 | AC31: 2 | AE31: =IF(S31="","",ROUND(IF(F31="kWh",(S31+Y31)/J31,(S31+Y31)/L31),AI31)) -> 0.0275 | AG31: /kWh | AI31: 4 | AK31: 4359.922839 | AM31: 17552.0653 | AO31: =ROUND(AK31+AM31-Y31,2) -> 21911.99
B32: 5 | D32: =IF(ISBLANK('10. Load Forecast'!D33),"",'10. Load Forecast'!D33) -> Sentinel | F32: kW | H32: =IF(ISBLANK($H$20),0,IF($H$20=$AC$4,'10. Load Forecast'!F33,IF($H$20=$AC$5,'10. Load Forecast'!L33,IF($H$20=$AC$6,'10. Load Forecast'!R33,'10. Load Forecast'!X33)))) -> 69.35025782 | J32: =IF(ISBLANK($H$20),0,IF($H$20=$AC$4,'10. Load Forecast'!H33,IF($H$20=$AC$5,'10. Load Forecast'!N33,IF($H$20=$AC$6,'10. Load Forecast'!T33,'10. Load Forecast'!Z33)))) -> 137576.679 | L32: =IF(ISBLANK($H$20),0,IF($H$20=$AC$4,'10. Load Forecast'!J33,IF($H$20=$AC$5,'10. Load Forecast'!P33,IF($H$20=$AC$6,'10. Load Forecast'!V33,'10. Load Forecast'!AB33)))) -> 152.3950293 | O32: =IF(ISBLANK('11. Cost_Allocation'!I66),"",'11. Cost_Allocation'!I66) -> 19319.24897 | Q32: 3595.117366 | S32: 15724.1316 | U32: 0.1860899133 | W32: 0.8139100867 | AA32: 4.32 | AC32: 2 | AE32: =IF(S32="","",ROUND(IF(F32="kWh",(S32+Y32)/J32,(S32+Y32)/L32),AI32)) -> 103.1801 | AG32: /kW | AI32: 4 | AK32: 3595.117366 | AM32: 15724.1344 | AO32: =ROUND(AK32+AM32-Y32,2) -> 19319.25
B33: 6 | D33: =IF(ISBLANK('10. Load Forecast'!D34),"",'10. Load Forecast'!D34) -> StreetLights | F33: kW | H33: =IF(ISBLANK($H$20),0,IF($H$20=$AC$4,'10. Load Forecast'!F34,IF($H$20=$AC$5,'10. Load Forecast'!L34,IF($H$20=$AC$6,'10. Load Forecast'!R34,'10. Load Forecast'!X34)))) -> 1713.444762 | J33: =IF(ISBLANK($H$20),0,IF($H$20=$AC$4,'10. Load Forecast'!H34,IF($H$20=$AC$5,'10. Load Forecast'!N34,IF($H$20=$AC$6,'10. Load Forecast'!T34,'10. Load Forecast'!Z34)))) -> 647807.3304 | L33: =IF(ISBLANK($H$20),0,IF($H$20=$AC$4,'10. Load Forecast'!J34,IF($H$20=$AC$5,'10. Load Forecast'!P34,IF($H$20=$AC$6,'10. Load Forecast'!V34,'10. Load Forecast'!AB34)))) -> 1620.825263 | O33: =IF(ISBLANK('11. Cost_Allocation'!I67),"",'11. Cost_Allocation'!I67) -> 176115.9411 | Q33: 99722.48514 | S33: 76393.45598 | U33: 0.5662320202 | W33: 0.4337679798 | AA33: 4.85 | AC33: 2 | AE33: 47.1324 | AG33: /kW | AI33: 4 | AK33: 99722.48514 | AM33: 76393.3846 | AO33: 176115.87
B34: 7 | D34: =IF(ISBLANK('10. Load Forecast'!D35),"",'10. Load Forecast'!D35) ->  | H34: =IF(ISBLANK($H$20),0,IF($H$20=$AC$4,'10. Load Forecast'!F35,IF($H$20=$AC$5,'10. Load Forecast'!L35,IF($H$20=$AC$6,'10. Load Forecast'!R35,'10. Load Forecast'!X35)))) -> 0 | J34: =IF(ISBLANK($H$20),0,IF($H$20=$AC$4,'10. Load Forecast'!H35,IF($H$20=$AC$5,'10. Load Forecast'!N35,IF($H$20=$AC$6,'10. Load Forecast'!T35,'10. Load Forecast'!Z35)))) -> 0 | L34: =IF(ISBLANK($H$20),0,IF($H$20=$AC$4,'10. Load Forecast'!J35,IF($H$20=$AC$5,'10. Load Forecast'!P35,IF($H$20=$AC$6,'10. Load Forecast'!V35,'10. Load Forecast'!AB35)))) -> 0 | O34: =IF(ISBLANK('11. Cost_Allocation'!I68),"",'11. Cost_Allocation'!I68) ->  | AC34: 2 | AI34: 4 | AK34: 0 | AM34: 0 | AO34: 0
B35: 8 | D35: =IF(ISBLANK('10. Load Forecast'!D36),"",'10. Load Forecast'!D36) ->  | H35: =IF(ISBLANK($H$20),0,IF($H$20=$AC$4,'10. Load Forecast'!F36,IF($H$20=$AC$5,'10. Load Forecast'!L36,IF($H$20=$AC$6,'10. Load Forecast'!R36,'10. Load Forecast'!X36)))) -> 0 | J35: =IF(ISBLANK($H$20),0,IF($H$20=$AC$4,'10. Load Forecast'!H36,IF($H$20=$AC$5,'10. Load Forecast'!N36,IF($H$20=$AC$6,'10. Load Forecast'!T36,'10. Load Forecast'!Z36)))) -> 0 | L35: =IF(ISBLANK($H$20),0,IF($H$20=$AC$4,'10. Load Forecast'!J36,IF($H$20=$AC$5,'10. Load Forecast'!P36,IF($H$20=$AC$6,'10. Load Forecast'!V36,'10. Load Forecast'!AB36)))) -> 0 | O35: =IF(ISBLANK('11. Cost_Allocation'!I69),"",'11. Cost_Allocation'!I69) ->  | AC35: 2 | AI35: 4 | AK35: 0 | AM35: 0 | AO35: 0
B36: 9 | D36: =IF(ISBLANK('10. Load Forecast'!D37),"",'10. Load Forecast'!D37) ->  | H36: =IF(ISBLANK($H$20),0,IF($H$20=$AC$4,'10. Load Forecast'!F37,IF($H$20=$AC$5,'10. Load Forecast'!L37,IF($H$20=$AC$6,'10. Load Forecast'!R37,'10. Load Forecast'!X37)))) -> 0 | J36: =IF(ISBLANK($H$20),0,IF($H$20=$AC$4,'10. Load Forecast'!H37,IF($H$20=$AC$5,'10. Load Forecast'!N37,IF($H$20=$AC$6,'10. Load Forecast'!T37,'10. Load Forecast'!Z37)))) -> 0 | L36: =IF(ISBLANK($H$20),0,IF($H$20=$AC$4,'10. Load Forecast'!J37,IF($H$20=$AC$5,'10. Load Forecast'!P37,IF($H$20=$AC$6,'10. Load Forecast'!V37,'10. Load Forecast'!AB37)))) -> 0 | O36: =IF(ISBLANK('11. Cost_Allocation'!I70),"",'11. Cost_Allocation'!I70) ->  | AC36: 2 | AI36: 4 | AK36: 0 | AM36: 0 | AO36: 0
B37: 10 | D37: =IF(ISBLANK('10. Load Forecast'!D38),"",'10. Load Forecast'!D38) ->  | H37: =IF(ISBLANK($H$20),0,IF($H$20=$AC$4,'10. Load Forecast'!F38,IF($H$20=$AC$5,'10. Load Forecast'!L38,IF($H$20=$AC$6,'10. Load Forecast'!R38,'10. Load Forecast'!X38)))) -> 0 | J37: =IF(ISBLANK($H$20),0,IF($H$20=$AC$4,'10. Load Forecast'!H38,IF($H$20=$AC$5,'10. Load Forecast'!N38,IF($H$20=$AC$6,'10. Load Forecast'!T38,'10. Load Forecast'!Z38)))) -> 0 | L37: =IF(ISBLANK($H$20),0,IF($H$20=$AC$4,'10. Load Forecast'!J38,IF($H$20=$AC$5,'10. Load Forecast'!P38,IF($H$20=$AC$6,'10. Load Forecast'!V38,'10. Load Forecast'!AB38)))) -> 0 | O37: =IF(ISBLANK('11. Cost_Allocation'!I71),"",'11. Cost_Allocation'!I71) ->  | AC37: 2 | AI37: 4 | AK37: 0 | AM37: 0 | AO37: 0
B38: 11 | D38: =IF(ISBLANK('10. Load Forecast'!D39),"",'10. Load Forecast'!D39) ->  | H38: =IF(ISBLANK($H$20),0,IF($H$20=$AC$4,'10. Load Forecast'!F39,IF($H$20=$AC$5,'10. Load Forecast'!L39,IF($H$20=$AC$6,'10. Load Forecast'!R39,'10. Load Forecast'!X39)))) -> 0 | J38: =IF(ISBLANK($H$20),0,IF($H$20=$AC$4,'10. Load Forecast'!H39,IF($H$20=$AC$5,'10. Load Forecast'!N39,IF($H$20=$AC$6,'10. Load Forecast'!T39,'10. Load Forecast'!Z39)))) -> 0 | L38: =IF(ISBLANK($H$20),0,IF($H$20=$AC$4,'10. Load Forecast'!J39,IF($H$20=$AC$5,'10. Load Forecast'!P39,IF($H$20=$AC$6,'10. Load Forecast'!V39,'10. Load Forecast'!AB39)))) -> 0 | O38: =IF(ISBLANK('11. Cost_Allocation'!I72),"",'11. Cost_Allocation'!I72) ->  | AC38: 2 | AI38: 4 | AK38: 0 | AM38: 0 | AO38: 0
B39: 12 | D39: =IF(ISBLANK('10. Load Forecast'!D40),"",'10. Load Forecast'!D40) ->  | H39: =IF(ISBLANK($H$20),0,IF($H$20=$AC$4,'10. Load Forecast'!F40,IF($H$20=$AC$5,'10. Load Forecast'!L40,IF($H$20=$AC$6,'10. Load Forecast'!R40,'10. Load Forecast'!X40)))) -> 0 | J39: =IF(ISBLANK($H$20),0,IF($H$20=$AC$4,'10. Load Forecast'!H40,IF($H$20=$AC$5,'10. Load Forecast'!N40,IF($H$20=$AC$6,'10. Load Forecast'!T40,'10. Load Forecast'!Z40)))) -> 0 | L39: =IF(ISBLANK($H$20),0,IF($H$20=$AC$4,'10. Load Forecast'!J40,IF($H$20=$AC$5,'10. Load Forecast'!P40,IF($H$20=$AC$6,'10. Load Forecast'!V40,'10. Load Forecast'!AB40)))) -> 0 | O39: =IF(ISBLANK('11. Cost_Allocation'!I73),"",'11. Cost_Allocation'!I73) ->  | AC39: 2 | AI39: 4 | AK39: 0 | AM39: 0 | AO39: 0
B40: 13 | D40: =IF(ISBLANK('10. Load Forecast'!D41),"",'10. Load Forecast'!D41) ->  | H40: =IF(ISBLANK($H$20),0,IF($H$20=$AC$4,'10. Load Forecast'!F41,IF($H$20=$AC$5,'10. Load Forecast'!L41,IF($H$20=$AC$6,'10. Load Forecast'!R41,'10. Load Forecast'!X41)))) -> 0 | J40: =IF(ISBLANK($H$20),0,IF($H$20=$AC$4,'10. Load Forecast'!H41,IF($H$20=$AC$5,'10. Load Forecast'!N41,IF($H$20=$AC$6,'10. Load Forecast'!T41,'10. Load Forecast'!Z41)))) -> 0 | L40: =IF(ISBLANK($H$20),0,IF($H$20=$AC$4,'10. Load Forecast'!J41,IF($H$20=$AC$5,'10. Load Forecast'!P41,IF($H$20=$AC$6,'10. Load Forecast'!V41,'10. Load Forecast'!AB41)))) -> 0 | O40: =IF(ISBLANK('11. Cost_Allocation'!I74),"",'11. Cost_Allocation'!I74) ->  | AC40: 2 | AI40: 4 | AK40: 0 | AM40: 0 | AO40: 0
B41: 14 | D41: =IF(ISBLANK('10. Load Forecast'!D42),"",'10. Load Forecast'!D42) ->  | H41: =IF(ISBLANK($H$20),0,IF($H$20=$AC$4,'10. Load Forecast'!F42,IF($H$20=$AC$5,'10. Load Forecast'!L42,IF($H$20=$AC$6,'10. Load Forecast'!R42,'10. Load Forecast'!X42)))) -> 0 | J41: =IF(ISBLANK($H$20),0,IF($H$20=$AC$4,'10. Load Forecast'!H42,IF($H$20=$AC$5,'10. Load Forecast'!N42,IF($H$20=$AC$6,'10. Load Forecast'!T42,'10. Load Forecast'!Z42)))) -> 0 | L41: =IF(ISBLANK($H$20),0,IF($H$20=$AC$4,'10. Load Forecast'!J42,IF($H$20=$AC$5,'10. Load Forecast'!P42,IF($H$20=$AC$6,'10. Load Forecast'!V42,'10. Load Forecast'!AB42)))) -> 0 | O41: =IF(ISBLANK('11. Cost_Allocation'!I75),"",'11. Cost_Allocation'!I75) ->  | AC41: 2 | AI41: 4 | AK41: 0 | AM41: 0 | AO41: 0
B42: 15 | D42: =IF(ISBLANK('10. Load Forecast'!D43),"",'10. Load Forecast'!D43) ->  | H42: =IF(ISBLANK($H$20),0,IF($H$20=$AC$4,'10. Load Forecast'!F43,IF($H$20=$AC$5,'10. Load Forecast'!L43,IF($H$20=$AC$6,'10. Load Forecast'!R43,'10. Load Forecast'!X43)))) -> 0 | J42: =IF(ISBLANK($H$20),0,IF($H$20=$AC$4,'10. Load Forecast'!H43,IF($H$20=$AC$5,'10. Load Forecast'!N43,IF($H$20=$AC$6,'10. Load Forecast'!T43,'10. Load Forecast'!Z43)))) -> 0 | L42: =IF(ISBLANK($H$20),0,IF($H$20=$AC$4,'10. Load Forecast'!J43,IF($H$20=$AC$5,'10. Load Forecast'!P43,IF($H$20=$AC$6,'10. Load Forecast'!V43,'10. Load Forecast'!AB43)))) -> 0 | O42: =IF(ISBLANK('11. Cost_Allocation'!I76),"",'11. Cost_Allocation'!I76) ->  | AC42: 2 | AI42: 4 | AK42: 0 | AM42: 0 | AO42: 0
B43: 16 | D43: =IF(ISBLANK('10. Load Forecast'!D44),"",'10. Load Forecast'!D44) ->  | H43: =IF(ISBLANK($H$20),0,IF($H$20=$AC$4,'10. Load Forecast'!F44,IF($H$20=$AC$5,'10. Load Forecast'!L44,IF($H$20=$AC$6,'10. Load Forecast'!R44,'10. Load Forecast'!X44)))) -> 0 | J43: =IF(ISBLANK($H$20),0,IF($H$20=$AC$4,'10. Load Forecast'!H44,IF($H$20=$AC$5,'10. Load Forecast'!N44,IF($H$20=$AC$6,'10. Load Forecast'!T44,'10. Load Forecast'!Z44)))) -> 0 | L43: =IF(ISBLANK($H$20),0,IF($H$20=$AC$4,'10. Load Forecast'!J44,IF($H$20=$AC$5,'10. Load Forecast'!P44,IF($H$20=$AC$6,'10. Load Forecast'!V44,'10. Load Forecast'!AB44)))) -> 0 | O43: =IF(ISBLANK('11. Cost_Allocation'!I77),"",'11. Cost_Allocation'!I77) ->  | AC43: 2 | AI43: 4 | AK43: 0 | AM43: 0 | AO43: 0
B44: 17 | D44: =IF(ISBLANK('10. Load Forecast'!D45),"",'10. Load Forecast'!D45) ->  | H44: =IF(ISBLANK($H$20),0,IF($H$20=$AC$4,'10. Load Forecast'!F45,IF($H$20=$AC$5,'10. Load Forecast'!L45,IF($H$20=$AC$6,'10. Load Forecast'!R45,'10. Load Forecast'!X45)))) -> 0 | J44: =IF(ISBLANK($H$20),0,IF($H$20=$AC$4,'10. Load Forecast'!H45,IF($H$20=$AC$5,'10. Load Forecast'!N45,IF($H$20=$AC$6,'10. Load Forecast'!T45,'10. Load Forecast'!Z45)))) -> 0 | L44: =IF(ISBLANK($H$20),0,IF($H$20=$AC$4,'10. Load Forecast'!J45,IF($H$20=$AC$5,'10. Load Forecast'!P45,IF($H$20=$AC$6,'10. Load Forecast'!V45,'10. Load Forecast'!AB45)))) -> 0 | O44: =IF(ISBLANK('11. Cost_Allocation'!I78),"",'11. Cost_Allocation'!I78) ->  | AC44: 2 | AI44: 4 | AK44: 0 | AM44: 0 | AO44: 0
B45: 18 | D45: =IF(ISBLANK('10. Load Forecast'!D46),"",'10. Load Forecast'!D46) ->  | H45: =IF(ISBLANK($H$20),0,IF($H$20=$AC$4,'10. Load Forecast'!F46,IF($H$20=$AC$5,'10. Load Forecast'!L46,IF($H$20=$AC$6,'10. Load Forecast'!R46,'10. Load Forecast'!X46)))) -> 0 | J45: =IF(ISBLANK($H$20),0,IF($H$20=$AC$4,'10. Load Forecast'!H46,IF($H$20=$AC$5,'10. Load Forecast'!N46,IF($H$20=$AC$6,'10. Load Forecast'!T46,'10. Load Forecast'!Z46)))) -> 0 | L45: =IF(ISBLANK($H$20),0,IF($H$20=$AC$4,'10. Load Forecast'!J46,IF($H$20=$AC$5,'10. Load Forecast'!P46,IF($H$20=$AC$6,'10. Load Forecast'!V46,'10. Load Forecast'!AB46)))) -> 0 | O45: =IF(ISBLANK('11. Cost_Allocation'!I79),"",'11. Cost_Allocation'!I79) ->  | AC45: 2 | AI45: 4 | AK45: 0 | AM45: 0 | AO45: 0 | AQ45: Distribution Revenues including TOA Credit Recovery in Rates
B46: 19 | D46: =IF(ISBLANK('10. Load Forecast'!D47),"",'10. Load Forecast'!D47) ->  | H46: =IF(ISBLANK($H$20),0,IF($H$20=$AC$4,'10. Load Forecast'!F47,IF($H$20=$AC$5,'10. Load Forecast'!L47,IF($H$20=$AC$6,'10. Load Forecast'!R47,'10. Load Forecast'!X47)))) -> 0 | J46: =IF(ISBLANK($H$20),0,IF($H$20=$AC$4,'10. Load Forecast'!H47,IF($H$20=$AC$5,'10. Load Forecast'!N47,IF($H$20=$AC$6,'10. Load Forecast'!T47,'10. Load Forecast'!Z47)))) -> 0 | L46: =IF(ISBLANK($H$20),0,IF($H$20=$AC$4,'10. Load Forecast'!J47,IF($H$20=$AC$5,'10. Load Forecast'!P47,IF($H$20=$AC$6,'10. Load Forecast'!V47,'10. Load Forecast'!AB47)))) -> 0 | O46: =IF(ISBLANK('11. Cost_Allocation'!I80),"",'11. Cost_Allocation'!I80) ->  | AC46: 2 | AI46: 4 | AK46: 0 | AM46: 0 | AO46: 0
B47: 20 | D47: =IF(ISBLANK('10. Load Forecast'!D48),"",'10. Load Forecast'!D48) ->  | H47: =IF(ISBLANK($H$20),0,IF($H$20=$AC$4,'10. Load Forecast'!F48,IF($H$20=$AC$5,'10. Load Forecast'!L48,IF($H$20=$AC$6,'10. Load Forecast'!R48,'10. Load Forecast'!X48)))) -> 0 | J47: =IF(ISBLANK($H$20),0,IF($H$20=$AC$4,'10. Load Forecast'!H48,IF($H$20=$AC$5,'10. Load Forecast'!N48,IF($H$20=$AC$6,'10. Load Forecast'!T48,'10. Load Forecast'!Z48)))) -> 0 | L47: =IF(ISBLANK($H$20),0,IF($H$20=$AC$4,'10. Load Forecast'!J48,IF($H$20=$AC$5,'10. Load Forecast'!P48,IF($H$20=$AC$6,'10. Load Forecast'!V48,'10. Load Forecast'!AB48)))) -> 0 | O47: =IF(ISBLANK('11. Cost_Allocation'!I81),"",'11. Cost_Allocation'!I81) ->  | AC47: 2 | AI47: 4 | AK47: 0 | AM47: 0 | AO47: 0
S49: Total Transformer Ownership Allowance | Y49: =SUM(Y28:Y47) -> -33513.29104 | AJ49: Total Distribution Revenues | AO49: =SUM(AO28:AO47) -> 4959839.09 | AQ49: =SUM(AK28:AK47)+SUM(AM28:AM47) -> 4926325.792
AQ50: =AO49+Y49 -> 4926325.799
AE51: =IF(AO54="","",IF((ABS(AO54)<=0.5%),"Rates recover revenue requirement","Revenues recovered from rates deviate materially from revenue requirement - check data inputs and calculations")) -> Rates recover revenue requirement | AJ51: Base Revenue Requirement | AO51: =IF(SIP="",0,IF(SIP=IA,BRRAPP,IF(SIP=IR,BRRIR,IF(SIP=SA,BRRSA,IF(SIP=PBD,BRRPBD))))) -> 4959191.352
B52: Notes:
AJ53: Difference | AO53: =AO49-AO51 -> 647.7378888
B54: 1 | D54: Transformer Ownership Allowance is entered as a positive amount, and only for those classes to which it applies. | AJ54: % Difference | AO54: =IF(AO51=0,"",AO53/AO51) -> 0.0001306136107
B56: 2 | D56: The Fixed/Variable split, for each customer class, drives the "rate generator" portion of this sheet of the RRWF. Only the "fixed" fraction is entered, as the sum of the "fixed" and "variable" portions must sum to 100%. For a distributor that may set the Monthly Service Charge, the "fixed" ratio is calcutated as: [MSC x (average number of customers or connections) x 12 months] / (Class Allocated Revenue Requirement).
B59: 3 | D59: The Volumetric rate is calculated as [(allocated volumetric revenue requirement for the class + transformer allowance credit for the class)/(annual estimate of the charge determinant for the test year (either kW or kVA for demand-billed customer classes, or kWh for non-demand-billed classes)]

Sheet 14. Tracking_Sheet (hidden)
B14: Tracking Form
B15: The first row shown, labelled "Original Application", summarizes key statistics based on the data inputs into the RRWF. After the original application filing, the applicant provides key changes in capital and operating expenses, load forecasts, cost of capital, etc., as revised through the processing of the application. This could be due to revisions or responses to interrogatories. The last row shown is the most current estimate of the cost of service data reflecting the original application and any updates provided by the applicant distributor (for updated evidence, responses to interrogatories, undertakings, etc.) Please ensure a Reference (Column B) and/or Item Description (Column C) is entered. (1) Short reference to evidence material (interrogatory response, undertaking, exhibit number, Board Decision, Code, Guideline, Report of the Board, etc.) (2) Short description of change, issue, etc. 60 Tracking Rows have been provided below. If you require more, please contact Industry Relations @ IndustryRelations@ontarioenergyboard.ca.
B16: Summary of Proposed Changes
D18: Cost of Capital | F18: Rate Base and Capital Expenditures | I18: Operating Expenses | L18: Revenue Requirement
B19: Reference (1) | C19: Item / Description (2) | D19: Regulated Return on Capital | E19: Regulated Rate of Return | F19: Rate Base | G19: Working Capital | H19: Working Capital Allowance ($) | I19: Amortization / Depreciation | J19: Taxes/PILs | K19: OM&A | L19: Service Revenue Requirement | M19: Other Revenues | N19: Base Revenue Requirement | O19: Grossed up Revenue Deficiency / Sufficiency
C21: Original Application | D21: ='7. Cost_of_Capital'!P27 -> 921172.9016 | E21: ='7. Cost_of_Capital'!L27 -> 0.05925588363 | F21: ='4. Rate_Base'!G19 -> 15545678.25 | G21: ='4. Rate_Base'!G26 -> 19640390.28 | H21: ='4. Rate_Base'!G30 -> 1473029.271 | I21: ='9. Rev_Reqt'!F16 -> 685011.58 | J21: ='9. Rev_Reqt'!F19 -> 0 | K21: ='9. Rev_Reqt'!F15 -> 3718936.318 | L21: ='9. Rev_Reqt'!F25 -> 5359497.397 | M21: ='9. Rev_Reqt'!F32 -> 400306.0451 | N21: ='9. Rev_Reqt'!F28 -> 4959191.352 | O21: ='8. Rev_Def_Suff'!F52 -> 1268827.859
A23: 1 | Q23: =IF(AND(ISBLANK(B23), ISBLANK(C23)), "X", "") -> X
C24: Change | D24: =IF(D23="","",D23-D21) ->  | E24: =IF(E23="","",E23-E21) -> 
A26: 2 | Q26: =IF(AND(ISBLANK(B26), ISBLANK(C26)), "X", "") -> X
C27: Change | D27: =IF(D26="","",D26-D23) -> 
A29: 3 | Q29: =IF(AND(ISBLANK(B29), ISBLANK(C29)), "X", "") -> X
C30: Change | D30: =IF(D29="","",D29-D26) ->  | E30: =IF(E29="","",E29-E26) -> 
A32: 4 | Q32: =IF(AND(ISBLANK(B32), ISBLANK(C32)), "X", "") -> X
C33: Change | D33: =IF(D32="","",D32-D29) ->  | E33: =IF(E32="","",E32-E29) -> 
A35: 5 | Q35: =IF(AND(ISBLANK(B35), ISBLANK(C35)), "X", "") -> X
C36: Change | D36: =IF(D35="","",D35-D32) ->  | E36: =IF(E35="","",E35-E32) -> 
A38: 6 | Q38: =IF(AND(ISBLANK(B38), ISBLANK(C38)), "X", "") -> X
C39: Change | D39: =IF(D38="","",D38-D35) ->  | E39: =IF(E38="","",E38-E35) -> 
A41: 7 | Q41: =IF(AND(ISBLANK(B41), ISBLANK(C41)), "X", "") -> X
C42: Change | D42: =IF(D41="","",D41-D38) ->  | E42: =IF(E41="","",E41-E38) -> 
A44: 8 | Q44: =IF(AND(ISBLANK(B44), ISBLANK(C44)), "X", "") -> X
C45: Change | D45: =IF(D44="","",D44-D41) ->  | E45: =IF(E44="","",E44-E41) -> 
A47: 9 | Q47: =IF(AND(ISBLANK(B47), ISBLANK(C47)), "X", "") -> X
C48: Change | D48: =IF(D47="","",D47-D44) ->  | E48: =IF(E47="","",E47-E44) -> 
A50: 10 | Q50: =IF(AND(ISBLANK(B50), ISBLANK(C50)), "X", "") -> X
C51: Change | D51: =IF(D50="","",D50-D47) ->  | E51: =IF(E50="","",E50-E47) -> 
A53: 11 | Q53: =IF(AND(ISBLANK(B53), ISBLANK(C53)), "X", "") -> X
C54: Change | D54: =IF(D53="","",D53-D50) ->  | E54: =IF(E53="","",E53-E50) -> 
A56: 12 | Q56: =IF(AND(ISBLANK(B56), ISBLANK(C56)), "X", "") -> X
C57: Change | D57: =IF(D56="","",D56-D53) ->  | E57: =IF(E56="","",E56-E53) -> 
A59: 13 | Q59: =IF(AND(ISBLANK(B59), ISBLANK(C59)), "X", "") -> X
C60: Change | D60: =IF(D59="","",D59-D56) ->  | E60: =IF(E59="","",E59-E56) -> 
A62: 14 | Q62: =IF(AND(ISBLANK(B62), ISBLANK(C62)), "X", "") -> X
C63: Change | D63: =IF(D62="","",D62-D59) ->  | E63: =IF(E62="","",E62-E59) -> 
A65: 15 | Q65: =IF(AND(ISBLANK(B65), ISBLANK(C65)), "X", "") -> X
C66: Change | D66: =IF(D65="","",D65-D62) ->  | E66: =IF(E65="","",E65-E62) -> 
A68: 16 | Q68: =IF(AND(ISBLANK(B68), ISBLANK(C68)), "X", "") -> X
C69: Change | D69: =IF(D68="","",D68-D65) ->  | E69: =IF(E68="","",E68-E65) -> 
A71: 17 | Q71: =IF(AND(ISBLANK(B71), ISBLANK(C71)), "X", "") -> X
C72: Change | D72: =IF(D71="","",D71-D68) ->  | E72: =IF(E71="","",E71-E68) -> 
A74: 18 | Q74: =IF(AND(ISBLANK(B74), ISBLANK(C74)), "X", "") -> X
C75: Change | D75: =IF(D74="","",D74-D71) ->  | E75: =IF(E74="","",E74-E71) -> 
R76: Page Break 1
A77: 19 | Q77: =IF(AND(ISBLANK(B77), ISBLANK(C77)), "X", "") -> X
C78: Change | D78: =IF(D77="","",D77-D74) ->  | E78: =IF(E77="","",E77-E74) -> 
A80: 20 | Q80: =IF(AND(ISBLANK(B80), ISBLANK(C80)), "X", "") -> X
C81: Change | D81: =IF(D80="","",D80-D77) ->  | E81: =IF(E80="","",E80-E77) -> 
A83: 21 | Q83: =IF(AND(ISBLANK(B83), ISBLANK(C83)), "X", "") -> X
C84: Change | D84: =IF(D83="","",D83-D80) ->  | E84: =IF(E83="","",E83-E80) -> 
A86: 22 | Q86: =IF(AND(ISBLANK(B86), ISBLANK(C86)), "X", "") -> X
C87: Change | D87: =IF(D86="","",D86-D83) ->  | E87: =IF(E86="","",E86-E83) -> 
A89: 23 | Q89: =IF(AND(ISBLANK(B89), ISBLANK(C89)), "X", "") -> X
C90: Change | D90: =IF(D89="","",D89-D86) ->  | E90: =IF(E89="","",E89-E86) -> 
A92: 24 | Q92: =IF(AND(ISBLANK(B92), ISBLANK(C92)), "X", "") -> X
C93: Change | D93: =IF(D92="","",D92-D89) ->  | E93: =IF(E92="","",E92-E89) -> 
A95: 25 | Q95: =IF(AND(ISBLANK(B95), ISBLANK(C95)), "X", "") -> X
C96: Change | D96: =IF(D95="","",D95-D92) ->  | E96: =IF(E95="","",E95-E92) -> 
A98: 26 | Q98: =IF(AND(ISBLANK(B98), ISBLANK(C98)), "X", "") -> X
C99: Change | D99: =IF(D98="","",D98-D95) ->  | E99: =IF(E98="","",E98-E95) -> 
A101: 27 | Q101: =IF(AND(ISBLANK(B101), ISBLANK(C101)), "X", "") -> X
C102: Change | D102: =IF(D101="","",D101-D98) ->  | E102: =IF(E101="","",E101-E98) -> 
A104: 28 | Q104: =IF(AND(ISBLANK(B104), ISBLANK(C104)), "X", "") -> X
C105: Change | D105: =IF(D104="","",D104-D101) ->  | E105: =IF(E104="","",E104-E101) -> 
A107: 29 | Q107: =IF(AND(ISBLANK(B107), ISBLANK(C107)), "X", "") -> X
C108: Change | D108: =IF(D107="","",D107-D104) ->  | E108: =IF(E107="","",E107-E104) -> 
A110: 30 | Q110: =IF(AND(ISBLANK(B110), ISBLANK(C110)), "X", "") -> X
C111: Change | D111: =IF(D110="","",D110-D107) ->  | E111: =IF(E110="","",E110-E107) -> 
A113: 31 | Q113: =IF(AND(ISBLANK(B113), ISBLANK(C113)), "X", "") -> X
C114: Change | D114: =IF(D113="","",D113-D110) ->  | E114: =IF(E113="","",E113-E110) -> 
A116: 32 | Q116: =IF(AND(ISBLANK(B116), ISBLANK(C116)), "X", "") -> X
C117: Change | D117: =IF(D116="","",D116-D113) ->  | E117: =IF(E116="","",E116-E113) -> 
A119: 33 | Q119: =IF(AND(ISBLANK(B119), ISBLANK(C119)), "X", "") -> X
C120: Change | D120: =IF(D119="","",D119-D116) ->  | E120: =IF(E119="","",E119-E116) -> 
A122: 34 | Q122: =IF(AND(ISBLANK(B122), ISBLANK(C122)), "X", "") -> X
C123: Change | D123: =IF(D122="","",D122-D119) ->  | E123: =IF(E122="","",E122-E119) -> 
A125: 35 | Q125: =IF(AND(ISBLANK(B125), ISBLANK(C125)), "X", "") -> X
C126: Change | D126: =IF(D125="","",D125-D122) ->  | E126: =IF(E125="","",E125-E122) -> 
A128: 36 | Q128: =IF(AND(ISBLANK(B128), ISBLANK(C128)), "X", "") -> X
C129: Change | D129: =IF(D128="","",D128-D125) ->  | E129: =IF(E128="","",E128-E125) -> 
R130: Page Break 2
A131: 37 | Q131: =IF(AND(ISBLANK(B131), ISBLANK(C131)), "X", "") -> X
C132: Change | D132: =IF(D131="","",D131-D128) ->  | E132: =IF(E131="","",E131-E128) -> 
A134: 38 | Q134: =IF(AND(ISBLANK(B134), ISBLANK(C134)), "X", "") -> X
C135: Change | D135: =IF(D134="","",D134-D131) ->  | E135: =IF(E134="","",E134-E131) -> 
A137: 39 | Q137: =IF(AND(ISBLANK(B137), ISBLANK(C137)), "X", "") -> X
C138: Change | D138: =IF(D137="","",D137-D134) ->  | E138: =IF(E137="","",E137-E134) -> 
A140: 40 | Q140: =IF(AND(ISBLANK(B140), ISBLANK(C140)), "X", "") -> X
C141: Change | D141: =IF(D140="","",D140-D137) ->  | E141: =IF(E140="","",E140-E137) -> 
A143: 41 | Q143: =IF(AND(ISBLANK(B143), ISBLANK(C143)), "X", "") -> X
C144: Change | D144: =IF(D143="","",D143-D140) ->  | E144: =IF(E143="","",E143-E140) -> 
A146: 42 | Q146: =IF(AND(ISBLANK(B146), ISBLANK(C146)), "X", "") -> X
C147: Change | D147: =IF(D146="","",D146-D143) ->  | E147: =IF(E146="","",E146-E143) -> 
A149: 43 | Q149: =IF(AND(ISBLANK(B149), ISBLANK(C149)), "X", "") -> X
C150: Change | D150: =IF(D149="","",D149-D146) ->  | E150: =IF(E149="","",E149-E146) -> 
A152: 44 | Q152: =IF(AND(ISBLANK(B152), ISBLANK(C152)), "X", "") -> X
C153: Change | D153: =IF(D152="","",D152-D149) ->  | E153: =IF(E152="","",E152-E149) -> 
A155: 45 | Q155: =IF(AND(ISBLANK(B155), ISBLANK(C155)), "X", "") -> X
C156: Change | D156: =IF(D155="","",D155-D152) ->  | E156: =IF(E155="","",E155-E152) -> 
A158: 46 | Q158: =IF(AND(ISBLANK(B158), ISBLANK(C158)), "X", "") -> X
C159: Change | D159: =IF(D158="","",D158-D155) ->  | E159: =IF(E158="","",E158-E155) -> 
A161: 47 | Q161: =IF(AND(ISBLANK(B161), ISBLANK(C161)), "X", "") -> X
C162: Change | D162: =IF(D161="","",D161-D158) ->  | E162: =IF(E161="","",E161-E158) -> 
A164: 48 | Q164: =IF(AND(ISBLANK(B164), ISBLANK(C164)), "X", "") -> X
C165: Change | D165: =IF(D164="","",D164-D161) ->  | E165: =IF(E164="","",E164-E161) -> 
A167: 49 | Q167: =IF(AND(ISBLANK(B167), ISBLANK(C167)), "X", "") -> X
C168: Change | D168: =IF(D167="","",D167-D164) ->  | E168: =IF(E167="","",E167-E164) -> 
A170: 50 | Q170: =IF(AND(ISBLANK(B170), ISBLANK(C170)), "X", "") -> X
C171: Change | D171: =IF(D170="","",D170-D167) ->  | E171: =IF(E170="","",E170-E167) -> 
A173: 51 | Q173: =IF(AND(ISBLANK(B173), ISBLANK(C173)), "X", "") -> X
C174: Change | D174: =IF(D173="","",D173-D170) ->  | E174: =IF(E173="","",E173-E170) -> 
A176: 52 | Q176: =IF(AND(ISBLANK(B176), ISBLANK(C176)), "X", "") -> X
C177: Change | D177: =IF(D176="","",D176-D173) ->  | E177: =IF(E176="","",E176-E173) -> 
A179: 53 | Q179: =IF(AND(ISBLANK(B179), ISBLANK(C179)), "X", "") -> X
C180: Change | D180: =IF(D179="","",D179-D176) ->  | E180: =IF(E179="","",E179-E176) -> 
R181: Page Break 3
A182: 54 | Q182: =IF(AND(ISBLANK(B182), ISBLANK(C182)), "X", "") -> X
C183: Change | D183: =IF(D182="","",D182-D179) ->  | E183: =IF(E182="","",E182-E179) -> 
A185: 55 | Q185: =IF(AND(ISBLANK(B185), ISBLANK(C185)), "X", "") -> X
C186: Change | D186: =IF(D185="","",D185-D182) ->  | E186: =IF(E185="","",E185-E182) -> 
A188: 56 | Q188: =IF(AND(ISBLANK(B188), ISBLANK(C188)), "X", "") -> X
C189: Change | D189: =IF(D188="","",D188-D185) ->  | E189: =IF(E188="","",E188-E185) -> 
A191: 57 | Q191: =IF(AND(ISBLANK(B191), ISBLANK(C191)), "X", "") -> X
C192: Change | D192: =IF(D191="","",D191-D188) ->  | E192: =IF(E191="","",E191-E188) -> 
A194: 58 | Q194: =IF(AND(ISBLANK(B194), ISBLANK(C194)), "X", "") -> X
C195: Change | D195: =IF(D194="","",D194-D191) ->  | E195: =IF(E194="","",E194-E191) -> 
A197: 59 | Q197: =IF(AND(ISBLANK(B197), ISBLANK(C197)), "X", "") -> X
C198: Change | D198: =IF(D197="","",D197-D194) ->  | E198: =IF(E197="","",E197-E194) -> 
A200: 60 | Q200: =IF(AND(ISBLANK(B200), ISBLANK(C200)), "X", "") -> X
C201: Change | D201: =IF(D200="","",D200-D197) ->  | E201: =IF(E200="","",E200-E197) -> 
R203: Page Break 4

Sheet 11. Cost_Allocation RSL
B14: Cost Allocation and Rate Design
D17: ='3. Data_Input_Sheet'!E12 -> Initial Application
M18: Multi Year Adjustments
C19: Name of Customer Class | D19: Revenue To Expense Status Quo % | E19: Service Rev Req ($) | F19: Cost Allocation Results (Base Rev Req) | H19: Proposed Allocation (Base Rev Req) | J19: Misc. Revenues $ | K19: Cost Allocation Results (Serv Rev Req) | L19: Proposed Ratios (Test Year) | M19: Test Year (+1) | N19: Test Year (+2) | O19: Policy Range
D20: (CA Row 75) | E20: (CA Row 40) | F20: $ | G20: % | H20: $ | I20: % | J20: (CA Row 19) | K20: $
B22: 1 | C22: =IF(ISBLANK('10. Load Forecast'!D28),"",'10. Load Forecast'!D28) ->  | D22: 1.003416376 | E22: 3155186.236 | F22: ='9. Rev_Reqt'!$F$31*G22 -> 2894173.988 | G22: =(E22-J22)/($E$43-$J$43) -> 0.5835979664 | H22: ='11. Cost_Allocation'!I62 -> 2903639.547 | I22: =H22/$H$43 -> 0.5855066563 | J22: ='11. Cost_Allocation'!K62 -> 261012.2481 | K22: =F22+J22 -> 3155186.236 | L22: =IF(ISBLANK(H22),"",(H22+J22)/E22) -> 1.003 | O22: 85-115
B23: 2 | C23: =IF(ISBLANK('10. Load Forecast'!D29),"",'10. Load Forecast'!D29) -> Residential | D23: 1.151430137 | E23: 864927.6223 | F23: ='9. Rev_Reqt'!$F$31*G23 -> 805232.3995 | G23: 0.1623717139 | H23: ='11. Cost_Allocation'!I63 -> 918478.9706 | I23: =H23/$H$43 -> 0.1852074069 | J23: ='11. Cost_Allocation'!K63 -> 59695.22287 | K23: =F23+J23 -> 864927.6223 | L23: =IF(ISBLANK(H23),"",(H23+J23)/E23) -> 1.130931847 | O23: 80-120
B24: 3 | C24: =IF(ISBLANK('10. Load Forecast'!D30),"",'10. Load Forecast'!D30) -> General Service < 50 kW | D24: 0.933379654 | E24: 1032405.008 | F24: ='9. Rev_Reqt'!$F$31*G24 -> 988877.7713 | G24: 0.1994030279 | H24: ='11. Cost_Allocation'!I64 -> 919706.6358 | I24: 0.1854549604 | J24: ='11. Cost_Allocation'!K64 -> 43527.23701 | K24: 1032405.008 | L24: 0.933 | O24: 80-120
B25: 4 | C25: =IF(ISBLANK('10. Load Forecast'!D31),"",'10. Load Forecast'!D31) -> General Service > 50 to 4999 kW | D25: 1.507059133 | E25: 19636.77953 | F25: ='9. Rev_Reqt'!$F$31*G25 -> 18003.65315 | G25: 0.003630360652 | H25: ='11. Cost_Allocation'!I65 -> 21931.00906 | I25: 0.00442229539 | J25: ='11. Cost_Allocation'!K65 -> 1633.126375 | K25: 19636.77953 | L25: 1.2 | O25: 80-120
B26: 5 | C26: =IF(ISBLANK('10. Load Forecast'!D32),"",'10. Load Forecast'!D32) -> Unmetered Scattered Load | D26: 0.4634175325 | E26: 26645.89141 | F26: ='9. Rev_Reqt'!$F$31*G26 -> 24648.42725 | G26: 0.004970251298 | H26: ='11. Cost_Allocation'!I66 -> 19319.24897 | I26: 0.003895644995 | J26: ='11. Cost_Allocation'!K66 -> 1997.464162 | K26: 26645.89141 | L26: 0.8 | O26: 80-120
B27: 6 | C27: =IF(ISBLANK('10. Load Forecast'!D33),"",'10. Load Forecast'!D33) -> Sentinel | D27: 0.7367218552 | E27: 260695.8597 | F27: ='9. Rev_Reqt'!$F$31*G27 -> 228255.1131 | G27: 0.04602667993 | H27: ='11. Cost_Allocation'!I67 -> 176115.9411 | I27: 0.03551303602 | J27: ='11. Cost_Allocation'!K67 -> 32440.7466 | K27: 260695.8597 | L27: =IF(ISBLANK(H27),"",(H27+J27)/K27) -> 0.8 | O27: 80-120
B28: 7 | C28: =IF(ISBLANK('10. Load Forecast'!D34),"",'10. Load Forecast'!D34) -> StreetLights | F28: ='9. Rev_Reqt'!$F$31*G28 -> 0 | G28: =IF(ISBLANK(E28),0,(E28-J28)/($E$43-$J$43)) -> 0 | I28: 0 | K28: 0 | O28: 80-120
B29: 8 | C29: =IF(ISBLANK('10. Load Forecast'!D35),"",'10. Load Forecast'!D35) ->  | F29: ='9. Rev_Reqt'!$F$31*G29 -> 0 | G29: =IF(ISBLANK(E29),0,(E29-J29)/($E$43-$J$43)) -> 0 | I29: 0 | K29: 0 | O29: 80-120
B30: 9 | C30: =IF(ISBLANK('10. Load Forecast'!D36),"",'10. Load Forecast'!D36) ->  | F30: ='9. Rev_Reqt'!$F$31*G30 -> 0 | G30: 0 | I30: 0 | K30: 0 | O30: 80-120
B31: 10 | C31: =IF(ISBLANK('10. Load Forecast'!D37),"",'10. Load Forecast'!D37) ->  | F31: ='9. Rev_Reqt'!$F$31*G31 -> 0 | G31: 0 | I31: 0 | K31: 0 | O31: 80-120
B32: 11 | C32: =IF(ISBLANK('10. Load Forecast'!D38),"",'10. Load Forecast'!D38) ->  | F32: ='9. Rev_Reqt'!$F$31*G32 -> 0 | G32: 0 | I32: 0 | K32: 0 | O32: 80-120
B33: 12 | C33: =IF(ISBLANK('10. Load Forecast'!D39),"",'10. Load Forecast'!D39) ->  | F33: ='9. Rev_Reqt'!$F$31*G33 -> 0 | G33: 0 | I33: 0 | K33: 0 | O33: 80-120
B34: 13 | C34: =IF(ISBLANK('10. Load Forecast'!D40),"",'10. Load Forecast'!D40) ->  | F34: ='9. Rev_Reqt'!$F$31*G34 -> 0 | G34: 0 | I34: 0 | K34: 0 | O34: 80-120
B35: 14 | C35: =IF(ISBLANK('10. Load Forecast'!D41),"",'10. Load Forecast'!D41) ->  | F35: ='9. Rev_Reqt'!$F$31*G35 -> 0 | G35: 0 | I35: 0 | K35: 0 | O35: 80-120
B36: 15 | C36: =IF(ISBLANK('10. Load Forecast'!D42),"",'10. Load Forecast'!D42) ->  | F36: ='9. Rev_Reqt'!$F$31*G36 -> 0 | G36: 0 | I36: 0 | K36: 0 | O36: 80-120
B37: 16 | C37: =IF(ISBLANK('10. Load Forecast'!D43),"",'10. Load Forecast'!D43) ->  | F37: ='9. Rev_Reqt'!$F$31*G37 -> 0 | G37: 0 | I37: 0 | K37: 0 | O37: 80-120
B38: 17 | C38: =IF(ISBLANK('10. Load Forecast'!D44),"",'10. Load Forecast'!D44) ->  | F38: ='9. Rev_Reqt'!$F$31*G38 -> 0 | G38: 0 | I38: 0 | K38: 0 | O38: 80-120
B39: 18 | C39: =IF(ISBLANK('10. Load Forecast'!D45),"",'10. Load Forecast'!D45) ->  | F39: ='9. Rev_Reqt'!$F$31*G39 -> 0 | G39: 0 | I39: 0 | K39: 0 | O39: 80-120
B40: 19 | C40: =IF(ISBLANK('10. Load Forecast'!D46),"",'10. Load Forecast'!D46) ->  | F40: ='9. Rev_Reqt'!$F$31*G40 -> 0 | G40: 0 | I40: 0 | K40: 0 | O40: 80-120
B41: 20 | C41: =IF(ISBLANK('10. Load Forecast'!D47),"",'10. Load Forecast'!D47) ->  | F41: ='9. Rev_Reqt'!$F$31*G41 -> 0 | G41: 0 | I41: 0 | K41: 0 | O41: 80-120
C43: Total | E43: =SUM(E22:E41) -> 5359497.397 | F43: 4959191.352 | G43: 1 | H43: 4959191.352 | I43: 1 | J43: 400306.0451 | K43: =SUM(K22:K42) -> 5359497.397
D45: ='3. Data_Input_Sheet'!M12 -> Interrogatory Responses
M46: Multi Year Adjustments
C47: Name of Customer Class | D47: Revenue To Expense Status Quo % | E47: Service Rev Req % | F47: Cost Allocation Results (Base Rev Req) | H47: Proposed Allocation (Base Rev Req) | J47: Misc. Revenues $ | K47: Cost Allocation Results (Serv Rev Req) | L47: Prposed Ratios | M47: Test Year +1 | N47: Test Year +2 | O47: Policy Range
D48: (CA Row 75) | E48: (CA Row 40) | F48: $ | G48: % | H48: $ | I48: % | J48: (CA Row 19) | K48: $
B50: 1 | C50: =IF(ISBLANK('10. Load Forecast'!D28),"",'10. Load Forecast'!D28) ->  | F50: ='9. Rev_Reqt'!$J$31*G50 ->  | G50: =(E50-J50)/($E$71-$J$71) ->  | I50: =H50/$H$71 ->  | K50: =F50+J50 ->  | L50: =IF(ISBLANK(H50),"",(H50+J50)/E50) ->  | O50: 85-115
B51: 2 | C51: =IF(ISBLANK('10. Load Forecast'!D29),"",'10. Load Forecast'!D29) -> Residential | F51: ='9. Rev_Reqt'!$J$31*G51 ->  | G51: =(E51-J51)/($E$71-$J$71) ->  | I51: =H51/$H$71 ->  | K51: =F51+J51 ->  | L51: =IF(ISBLANK(H51),"",(H51+J51)/E51) ->  | O51: 80-120
B52: 3 | C52: =IF(ISBLANK('10. Load Forecast'!D30),"",'10. Load Forecast'!D30) -> General Service < 50 kW | F52: ='9. Rev_Reqt'!$J$31*G52 ->  | O52: 80-120
B53: 4 | C53: =IF(ISBLANK('10. Load Forecast'!D31),"",'10. Load Forecast'!D31) -> General Service > 50 to 4999 kW | F53: ='9. Rev_Reqt'!$J$31*G53 ->  | O53: 80-120
B54: 5 | C54: =IF(ISBLANK('10. Load Forecast'!D32),"",'10. Load Forecast'!D32) -> Unmetered Scattered Load | F54: ='9. Rev_Reqt'!$J$31*G54 ->  | O54: 80-120
B55: 6 | C55: =IF(ISBLANK('10. Load Forecast'!D33),"",'10. Load Forecast'!D33) -> Sentinel | F55: ='9. Rev_Reqt'!$J$31*G55 ->  | L55: =IF(ISBLANK(H55),"",(H55+J55)/K55) ->  | O55: 80-120
B56: 7 | C56: =IF(ISBLANK('10. Load Forecast'!D34),"",'10. Load Forecast'!D34) -> StreetLights | F56: ='9. Rev_Reqt'!$J$31*G56 -> 0 | G56: =(E56-J56)/($E$43-$J$43) -> 0 | K56: 0 | O56: 80-120
B57: 8 | C57: =IF(ISBLANK('10. Load Forecast'!D35),"",'10. Load Forecast'!D35) ->  | F57: ='9. Rev_Reqt'!$J$31*G57 -> 0 | G57: 0 | K57: 0 | O57: 80-120
B58: 9 | C58: =IF(ISBLANK('10. Load Forecast'!D36),"",'10. Load Forecast'!D36) ->  | F58: ='9. Rev_Reqt'!$J$31*G58 -> 0 | G58: 0 | K58: 0 | O58: 80-120
B59: 10 | C59: =IF(ISBLANK('10. Load Forecast'!D37),"",'10. Load Forecast'!D37) ->  | F59: ='9. Rev_Reqt'!$J$31*G59 -> 0 | G59: 0 | K59: 0 | O59: 80-120
B60: 11 | C60: =IF(ISBLANK('10. Load Forecast'!D38),"",'10. Load Forecast'!D38) ->  | F60: ='9. Rev_Reqt'!$J$31*G60 -> 0 | G60: 0 | K60: 0 | O60: 80-120
B61: 12 | C61: =IF(ISBLANK('10. Load Forecast'!D39),"",'10. Load Forecast'!D39) ->  | F61: ='9. Rev_Reqt'!$J$31*G61 -> 0 | G61: 0 | K61: 0 | O61: 80-120
B62: 13 | C62: =IF(ISBLANK('10. Load Forecast'!D40),"",'10. Load Forecast'!D40) ->  | F62: ='9. Rev_Reqt'!$J$31*G62 -> 0 | G62: 0 | K62: 0 | O62: 80-120
B63: 14 | C63: =IF(ISBLANK('10. Load Forecast'!D41),"",'10. Load Forecast'!D41) ->  | F63: ='9. Rev_Reqt'!$J$31*G63 -> 0 | G63: 0 | K63: 0 | O63: 80-120
B64: 15 | C64: =IF(ISBLANK('10. Load Forecast'!D42),"",'10. Load Forecast'!D42) ->  | F64: ='9. Rev_Reqt'!$J$31*G64 -> 0 | G64: 0 | K64: 0 | O64: 80-120
B65: 16 | C65: =IF(ISBLANK('10. Load Forecast'!D43),"",'10. Load Forecast'!D43) ->  | F65: ='9. Rev_Reqt'!$J$31*G65 -> 0 | G65: 0 | K65: 0 | O65: 80-120
B66: 17 | C66: =IF(ISBLANK('10. Load Forecast'!D44),"",'10. Load Forecast'!D44) ->  | F66: ='9. Rev_Reqt'!$J$31*G66 -> 0 | G66: 0 | K66: 0 | O66: 80-120
B67: 18 | C67: =IF(ISBLANK('10. Load Forecast'!D45),"",'10. Load Forecast'!D45) ->  | F67: ='9. Rev_Reqt'!$J$31*G67 -> 0 | G67: 0 | K67: 0 | O67: 80-120
B68: 19 | C68: =IF(ISBLANK('10. Load Forecast'!D46),"",'10. Load Forecast'!D46) ->  | F68: ='9. Rev_Reqt'!$J$31*G68 -> 0 | G68: 0 | K68: 0 | O68: 80-120
B69: 20 | C69: =IF(ISBLANK('10. Load Forecast'!D47),"",'10. Load Forecast'!D47) ->  | F69: ='9. Rev_Reqt'!$J$31*G69 -> 0 | G69: 0 | K69: 0 | O69: 80-120
C71: Total | E71: =SUM(E50:E69) -> 0 | H71: 0 | J71: 0 | K71: =SUM(K50:K70) -> 
D74: ='3. Data_Input_Sheet'!U12 -> Settlement Agreement
M75: Multi Year Adjustments
C76: Name of Customer Class | D76: Revenue To Expense Status Quo % | E76: Service Rev Req % | F76: Cost Allocation Results (Base Rev Req) | H76: Proposed Allocation (Base Rev Req) | J76: Misc. Revenues $ | K76: Cost Allocation Results (Serv Rev Req) | L76: Prposed Ratios | M76: Test Year +1 | N76: Test Year +2 | O76: Policy Range
D77: (CA Row 75) | E77: (CA Row 40) | F77: $ | G77: % | H77: $ | I77: % | J77: (CA Row 19) | K77: $
B79: 1 | C79: =IF(ISBLANK('10. Load Forecast'!D28),"",'10. Load Forecast'!D28) ->  | F79: ='9. Rev_Reqt'!$N$31*G79 -> 0 | G79: =(E79-J79)/($E$43-$J$43) -> 0 | I79: =H79/$H$100 ->  | K79: =F79+J79 -> 0 | L79: =IF(ISBLANK(H79),"",(H79+J79)/E79) ->  | O79: 85-115
B80: 2 | C80: =IF(ISBLANK('10. Load Forecast'!D29),"",'10. Load Forecast'!D29) -> Residential | F80: ='9. Rev_Reqt'!$N$31*G80 -> 0 | G80: 0 | I80: =H80/$H$100 ->  | K80: =F80+J80 -> 0 | L80: =IF(ISBLANK(H80),"",(H80+J80)/E80) ->  | O80: 80-120
B81: 3 | C81: =IF(ISBLANK('10. Load Forecast'!D30),"",'10. Load Forecast'!D30) -> General Service < 50 kW | F81: ='9. Rev_Reqt'!$N$31*G81 -> 0 | G81: 0 | K81: 0 | O81: 80-120
B82: 4 | C82: =IF(ISBLANK('10. Load Forecast'!D31),"",'10. Load Forecast'!D31) -> General Service > 50 to 4999 kW | F82: ='9. Rev_Reqt'!$N$31*G82 -> 0 | G82: 0 | K82: 0 | O82: 80-120
B83: 5 | C83: =IF(ISBLANK('10. Load Forecast'!D32),"",'10. Load Forecast'!D32) -> Unmetered Scattered Load | F83: ='9. Rev_Reqt'!$N$31*G83 -> 0 | G83: 0 | K83: 0 | O83: 80-120
B84: 6 | C84: =IF(ISBLANK('10. Load Forecast'!D33),"",'10. Load Forecast'!D33) -> Sentinel | F84: ='9. Rev_Reqt'!$N$31*G84 -> 0 | G84: 0 | K84: 0 | L84: =IF(ISBLANK(H84),"",(H84+J84)/K84) ->  | O84: 80-120
B85: 7 | C85: =IF(ISBLANK('10. Load Forecast'!D34),"",'10. Load Forecast'!D34) -> StreetLights | F85: ='9. Rev_Reqt'!$N$31*G85 -> 0 | G85: 0 | K85: 0 | O85: 80-120
B86: 8 | C86: =IF(ISBLANK('10. Load Forecast'!D35),"",'10. Load Forecast'!D35) ->  | F86: ='9. Rev_Reqt'!$N$31*G86 -> 0 | G86: 0 | K86: 0 | O86: 80-120
B87: 9 | C87: =IF(ISBLANK('10. Load Forecast'!D36),"",'10. Load Forecast'!D36) ->  | F87: ='9. Rev_Reqt'!$N$31*G87 -> 0 | G87: 0 | K87: 0 | O87: 80-120
B88: 10 | C88: =IF(ISBLANK('10. Load Forecast'!D37),"",'10. Load Forecast'!D37) ->  | F88: ='9. Rev_Reqt'!$N$31*G88 -> 0 | G88: 0 | K88: 0 | O88: 80-120
B89: 11 | C89: =IF(ISBLANK('10. Load Forecast'!D38),"",'10. Load Forecast'!D38) ->  | F89: ='9. Rev_Reqt'!$N$31*G89 -> 0 | G89: 0 | K89: 0 | O89: 80-120
B90: 12 | C90: =IF(ISBLANK('10. Load Forecast'!D39),"",'10. Load Forecast'!D39) ->  | F90: ='9. Rev_Reqt'!$N$31*G90 -> 0 | G90: 0 | K90: 0 | O90: 80-120
B91: 13 | C91: =IF(ISBLANK('10. Load Forecast'!D40),"",'10. Load Forecast'!D40) ->  | F91: ='9. Rev_Reqt'!$N$31*G91 -> 0 | G91: 0 | K91: 0 | O91: 80-120
B92: 14 | C92: =IF(ISBLANK('10. Load Forecast'!D41),"",'10. Load Forecast'!D41) ->  | F92: ='9. Rev_Reqt'!$N$31*G92 -> 0 | G92: 0 | K92: 0 | O92: 80-120
B93: 15 | C93: =IF(ISBLANK('10. Load Forecast'!D42),"",'10. Load Forecast'!D42) ->  | F93: ='9. Rev_Reqt'!$N$31*G93 -> 0 | G93: 0 | K93: 0 | O93: 80-120
B94: 16 | C94: =IF(ISBLANK('10. Load Forecast'!D43),"",'10. Load Forecast'!D43) ->  | F94: ='9. Rev_Reqt'!$N$31*G94 -> 0 | G94: 0 | K94: 0 | O94: 80-120
B95: 17 | C95: =IF(ISBLANK('10. Load Forecast'!D44),"",'10. Load Forecast'!D44) ->  | F95: ='9. Rev_Reqt'!$N$31*G95 -> 0 | G95: 0 | K95: 0 | O95: 80-120
B96: 18 | C96: =IF(ISBLANK('10. Load Forecast'!D45),"",'10. Load Forecast'!D45) ->  | F96: ='9. Rev_Reqt'!$N$31*G96 -> 0 | G96: 0 | K96: 0 | O96: 80-120
B97: 19 | C97: =IF(ISBLANK('10. Load Forecast'!D46),"",'10. Load Forecast'!D46) ->  | F97: ='9. Rev_Reqt'!$N$31*G97 -> 0 | G97: 0 | K97: 0 | O97: 80-120
B98: 20 | C98: =IF(ISBLANK('10. Load Forecast'!D47),"",'10. Load Forecast'!D47) ->  | F98: ='9. Rev_Reqt'!$N$31*G98 -> 0 | G98: 0 | K98: 0 | O98: 80-120
C100: Total | E100: =SUM(E79:E98) -> 0 | F100: 0 | G100: 0 | H100: 0 | J100: 0 | K100: =SUM(K79:K99) -> 0
D103: ='3. Data_Input_Sheet'!AC12 -> Per Board Decision
M104: Multi Year Adjustments
C105: Name of Customer Class | D105: Revenue To Expense Status Quo % | E105: Service Rev Req % | F105: Cost Allocation Results (Base Rev Req) | H105: Proposed Allocation (Base Rev Req) | J105: Misc. Revenues $ | K105: Cost Allocation Results (Serv Rev Req) | L105: Prposed Ratios % | M105: Test Year +1 | N105: Test Year +2 | O105: Policy Range
D106: (CA Row 75) | E106: (CA Row 40) | F106: $ | G106: % | H106: $ | I106: % | J106: (CA Row 19) | K106: $
B108: 1 | C108: =IF(ISBLANK('10. Load Forecast'!D28),"",'10. Load Forecast'!D28) ->  | F108: ='9. Rev_Reqt'!$R$31*G108 -> 0 | G108: =(E108-J108)/($E$43-$J$43) -> 0 | I108: =H108/$H$129 ->  | K108: =F108+J108 -> 0 | L108: =IF(ISBLANK(H108),"",(H108+J108)/K108) ->  | O108: 85-115
B109: 2 | C109: =IF(ISBLANK('10. Load Forecast'!D29),"",'10. Load Forecast'!D29) -> Residential | F109: ='9. Rev_Reqt'!$R$31*G109 -> 0 | G109: 0 | I109: =H109/$H$129 ->  | K109: =F109+J109 -> 0 | O109: 80-120
B110: 3 | C110: =IF(ISBLANK('10. Load Forecast'!D30),"",'10. Load Forecast'!D30) -> General Service < 50 kW | F110: ='9. Rev_Reqt'!$R$31*G110 -> 0 | G110: 0 | K110: 0 | O110: 80-120
B111: 4 | C111: =IF(ISBLANK('10. Load Forecast'!D31),"",'10. Load Forecast'!D31) -> General Service > 50 to 4999 kW | F111: ='9. Rev_Reqt'!$R$31*G111 -> 0 | G111: 0 | K111: 0 | O111: 80-120
B112: 5 | C112: =IF(ISBLANK('10. Load Forecast'!D32),"",'10. Load Forecast'!D32) -> Unmetered Scattered Load | F112: ='9. Rev_Reqt'!$R$31*G112 -> 0 | G112: 0 | K112: 0 | O112: 80-120
B113: 6 | C113: =IF(ISBLANK('10. Load Forecast'!D33),"",'10. Load Forecast'!D33) -> Sentinel | F113: ='9. Rev_Reqt'!$R$31*G113 -> 0 | G113: =(E113-J113)/($E$43-$J$43) -> 0 | K113: 0 | O113: 80-120
B114: 7 | C114: =IF(ISBLANK('10. Load Forecast'!D34),"",'10. Load Forecast'!D34) -> StreetLights | F114: ='9. Rev_Reqt'!$R$31*G114 -> 0 | G114: =(E114-J114)/($E$43-$J$43) -> 0 | K114: 0 | O114: 80-120
B115: 8 | C115: =IF(ISBLANK('10. Load Forecast'!D35),"",'10. Load Forecast'!D35) ->  | F115: ='9. Rev_Reqt'!$R$31*G115 -> 0 | G115: 0 | K115: 0 | O115: 80-120
B116: 9 | C116: =IF(ISBLANK('10. Load Forecast'!D36),"",'10. Load Forecast'!D36) ->  | F116: ='9. Rev_Reqt'!$R$31*G116 -> 0 | G116: 0 | K116: 0 | O116: 80-120
B117: 10 | C117: =IF(ISBLANK('10. Load Forecast'!D37),"",'10. Load Forecast'!D37) ->  | F117: ='9. Rev_Reqt'!$R$31*G117 -> 0 | G117: 0 | K117: 0 | O117: 80-120
B118: 11 | C118: =IF(ISBLANK('10. Load Forecast'!D38),"",'10. Load Forecast'!D38) ->  | F118: ='9. Rev_Reqt'!$R$31*G118 -> 0 | G118: 0 | K118: 0 | O118: 80-120
B119: 12 | C119: =IF(ISBLANK('10. Load Forecast'!D39),"",'10. Load Forecast'!D39) ->  | F119: ='9. Rev_Reqt'!$R$31*G119 -> 0 | G119: 0 | K119: 0 | O119: 80-120
B120: 13 | C120: =IF(ISBLANK('10. Load Forecast'!D40),"",'10. Load Forecast'!D40) ->  | F120: ='9. Rev_Reqt'!$R$31*G120 -> 0 | G120: 0 | K120: 0 | O120: 80-120
B121: 14 | C121: =IF(ISBLANK('10. Load Forecast'!D41),"",'10. Load Forecast'!D41) ->  | F121: ='9. Rev_Reqt'!$R$31*G121 -> 0 | G121: 0 | K121: 0 | O121: 80-120
B122: 15 | C122: =IF(ISBLANK('10. Load Forecast'!D42),"",'10. Load Forecast'!D42) ->  | F122: ='9. Rev_Reqt'!$R$31*G122 -> 0 | G122: 0 | K122: 0 | O122: 80-120
B123: 16 | C123: =IF(ISBLANK('10. Load Forecast'!D43),"",'10. Load Forecast'!D43) ->  | F123: ='9. Rev_Reqt'!$R$31*G123 -> 0 | G123: 0 | K123: 0 | O123: 80-120
B124: 17 | C124: =IF(ISBLANK('10. Load Forecast'!D44),"",'10. Load Forecast'!D44) ->  | F124: ='9. Rev_Reqt'!$R$31*G124 -> 0 | G124: 0 | K124: 0 | O124: 80-120
B125: 18 | C125: =IF(ISBLANK('10. Load Forecast'!D45),"",'10. Load Forecast'!D45) ->  | F125: ='9. Rev_Reqt'!$R$31*G125 -> 0 | G125: 0 | K125: 0 | O125: 80-120
B126: 19 | C126: =IF(ISBLANK('10. Load Forecast'!D46),"",'10. Load Forecast'!D46) ->  | F126: ='9. Rev_Reqt'!$R$31*G126 -> 0 | G126: 0 | K126: 0 | O126: 80-120
B127: 20 | C127: =IF(ISBLANK('10. Load Forecast'!D47),"",'10. Load Forecast'!D47) ->  | F127: ='9. Rev_Reqt'!$R$31*G127 -> 0 | G127: 0 | K127: 0 | O127: 80-120
C129: Total | E129: =SUM(E108:E127) -> 0 | F129: 0 | G129: 0 | H129: 0 | J129: 0 | K129: =SUM(K108:K128) -> 0

Sheet 13. Rate Design RSL
L4: F
L5: L
L6: R
B15: Rate Design and Revenue Reconciliation
D17: ='3. Data_Input_Sheet'!E12 -> Initial Application
B19: Customer Class | D19: Billing Determinant | E19: Total Class Revenue Requirement ($) | F19: MSC Revenues (S) | G19: Volumetric revenues (S) | H19: Fixed (%) | I19: Variable (%) | J19: Transformer Ownership Allowance 1 ($) | K19: Monthly Service Charge ($) | L19: Volumetric Rate ($) | M19: MSC Revenues (S) | N19: Volumetric revenues (S) | O19: Distribution Revenues less Transformer Ownership Allowance | Q19: Integrity Check
A21: 1 | B21: ='10. Load Forecast'!D29 -> Residential | D21: kWh | E21: =IF(ISBLANK('11. Cost_Allocation RSL'!H22),"",'11. Cost_Allocation RSL'!H22) -> 2903639.547 | F21: =IF(ISBLANK(H21),"",E21*H21) -> 2903639.547 | G21: =IF(F21="","",E21-F21) -> 4.656612873e-10 | H21: ='13. Rate Design'!U28 -> 1 | I21: =IF(ISBLANK(H21),"",1-H21) -> 1.110223025e-16 | J21: ='13. Rate Design'!Y28 -> 0 | K21: =(F21/'10. Load Forecast'!F29)/12 -> 45.00718004 | L21: =IF(G21="","",ROUND(IF(D21="kWh",(G21+J21)/'10. Load Forecast'!H29,(G21+J21)/'10. Load Forecast'!J29),4)) -> 0 | M21: =IF(K21="",0,K21*'10. Load Forecast'!F29*12) -> 2903639.547 | N21: =ROUND(IF(L21="",0,IF(D21="kWh",'10. Load Forecast'!H29*L21,IF(D21="kW",IF(L21="",0,L21*'10. Load Forecast'!J29)))),4) -> 0 | O21: =ROUND(M21+N21-J21,2) -> 2903639.55
A22: 2 | B22: ='10. Load Forecast'!D30 -> General Service < 50 kW | D22: kWh | E22: =IF(ISBLANK('11. Cost_Allocation RSL'!H23),"",'11. Cost_Allocation RSL'!H23) -> 918478.9706 | F22: 333644.4845 | G22: 584834.4861 | H22: ='13. Rate Design'!U29 -> 0.3632576196 | I22: 0.6367423804 | J22: ='13. Rate Design'!Y29 -> 0 | K22: =(F22/'10. Load Forecast'!F30)/12 -> 37.49 | L22: =IF(G22="","",ROUND(IF(D22="kWh",(G22+J22)/'10. Load Forecast'!H30,(G22+J22)/'10. Load Forecast'!J30),4)) -> 0.0258 | M22: =IF(K22="",0,K22*'10. Load Forecast'!F30*12) -> 333644.4845 | N22: =ROUND(IF(L22="",0,IF(D22="kWh",'10. Load Forecast'!H30*L22,IF(D22="kW",IF(L22="",0,L22*'10. Load Forecast'!J30)))),4) -> 585313.6839 | O22: =ROUND(M22+N22-J22,2) -> 918958.17 | Q22: Total Distribution Revenues | S22: =SUM(O21:O40) -> 4959656.15
A23: 3 | B23: ='10. Load Forecast'!D31 -> General Service > 50 to 4999 kW | D23: kW | E23: =IF(ISBLANK('11. Cost_Allocation RSL'!H24),"",'11. Cost_Allocation RSL'!H24) -> 919706.6358 | F23: 282718.4504 | G23: 636988.1854 | H23: ='13. Rate Design'!U30 -> 0.3074006856 | I23: 0.6925993144 | J23: ='13. Rate Design'!Y30 -> -33513.29104 | K23: =(F23/'10. Load Forecast'!F31)/12 -> 357.29 | L23: =IF(G23="","",ROUND(IF(D23="kWh",(G23+J23)/'10. Load Forecast'!H31,(G23+J23)/'10. Load Forecast'!J31),4)) -> 4.9529 | M23: =IF(K23="",0,K23*'10. Load Forecast'!F31*12) -> 282718.4504 | N23: =ROUND(IF(L23="",0,IF(D23="kWh",'10. Load Forecast'!H31*L23,IF(D23="kW",IF(L23="",0,L23*'10. Load Forecast'!J31)))),4) -> 603480.5869 | O23: 919712.33
A24: 4 | B24: ='10. Load Forecast'!D32 -> Unmetered Scattered Load | D24: kWh | E24: =IF(ISBLANK('11. Cost_Allocation RSL'!H25),"",'11. Cost_Allocation RSL'!H25) -> 21931.00906 | F24: 4358.910523 | G24: 17572.09853 | H24: ='13. Rate Design'!U31 -> 0.1987555845 | I24: 0.8012444155 | J24: ='13. Rate Design'!Y31 -> 0 | K24: =(F24/'10. Load Forecast'!F32)/12 -> 6.008604558 | L24: =IF(G24="","",ROUND(IF(D24="kWh",(G24+J24)/'10. Load Forecast'!H32,(G24+J24)/'10. Load Forecast'!J32),4)) -> 0.0275 | M24: =IF(K24="",0,K24*'10. Load Forecast'!F32*12) -> 4358.910523 | N24: =ROUND(IF(L24="",0,IF(D24="kWh",'10. Load Forecast'!H32*L24,IF(D24="kW",IF(L24="",0,L24*'10. Load Forecast'!J32)))),4) -> 17552.0653 | O24: 21910.98 | Q24: Base Revenue Requirement | S24: ='9. Rev_Reqt'!F28 -> 4959191.352
A25: 5 | B25: ='10. Load Forecast'!D33 -> Sentinel | D25: kW | E25: =IF(ISBLANK('11. Cost_Allocation RSL'!H26),"",'11. Cost_Allocation RSL'!H26) -> 19319.24897 | F25: 3595.117366 | G25: 15724.1316 | H25: ='13. Rate Design'!U32 -> 0.1860899133 | I25: 0.8139100867 | J25: ='13. Rate Design'!Y32 -> 0 | K25: =(F25/'10. Load Forecast'!F33)/12 -> 4.32 | L25: =IF(G25="","",ROUND(IF(D25="kWh",(G25+J25)/'10. Load Forecast'!H33,(G25+J25)/'10. Load Forecast'!J33),4)) -> 103.1801 | M25: =IF(K25="",0,K25*'10. Load Forecast'!F33*12) -> 3595.117366 | N25: =ROUND(IF(L25="",0,IF(D25="kWh",'10. Load Forecast'!H33*L25,IF(D25="kW",IF(L25="",0,L25*'10. Load Forecast'!J33)))),4) -> 15724.1344 | O25: 19319.25
A26: 6 | B26: ='10. Load Forecast'!D34 -> StreetLights | D26: kW | E26: =IF(ISBLANK('11. Cost_Allocation RSL'!H27),"",'11. Cost_Allocation RSL'!H27) -> 176115.9411 | F26: 99722.48514 | G26: 76393.45598 | H26: ='13. Rate Design'!U33 -> 0.5662320202 | I26: 0.4337679798 | J26: ='13. Rate Design'!Y33 -> 0 | K26: =(F26/'10. Load Forecast'!F34)/12 -> 4.85 | L26: =IF(G26="","",ROUND(IF(D26="kWh",(G26+J26)/'10. Load Forecast'!H34,(G26+J26)/'10. Load Forecast'!J34),4)) -> 47.1324 | M26: =IF(K26="",0,K26*'10. Load Forecast'!F34*12) -> 99722.48514 | N26: =ROUND(IF(L26="",0,IF(D26="kWh",'10. Load Forecast'!H34*L26,IF(D26="kW",IF(L26="",0,L26*'10. Load Forecast'!J34)))),4) -> 76393.3846 | O26: 176115.87 | Q26: Difference | S26: =S22-S24 -> 464.7978888
A27: 7 | B27: =IF(ISBLANK('10. Load Forecast'!D34),"",'10. Load Forecast'!D34) -> StreetLights | E27: =IF(ISBLANK('11. Cost_Allocation RSL'!H28),"",'11. Cost_Allocation RSL'!H28) ->  | K27: =IF(E27="","",IF('10. Load Forecast'!F34=0,0,IF(H27=0,0,ROUND(F27/('10. Load Forecast'!F34*12),#REF!)))) ->  | L27: =IF(G27="","",ROUND(IF(D27="kWh",(G27+J27)/'10. Load Forecast'!H34,(G27+J27)/'10. Load Forecast'!J34),#REF!)) ->  | M27: =IF(K27="",0,K27*'10. Load Forecast'!F34*12) -> 0 | N27: =ROUND(IF(L27="",0,IF(D27="kWh",'10. Load Forecast'!H34*L27,IF(D27="kW",IF(L27="",0,L27*'10. Load Forecast'!J34)))),4) -> 0 | O27: 0 | Q27: % Difference | S27: =IF(S24=0,"",S26/S24) -> 9.372453205e-05
A28: 8 | B28: =IF(ISBLANK('10. Load Forecast'!D35),"",'10. Load Forecast'!D35) ->  | E28: =IF(ISBLANK('11. Cost_Allocation RSL'!H29),"",'11. Cost_Allocation RSL'!H29) ->  | K28: =IF(E28="","",IF('10. Load Forecast'!F35=0,0,IF(H28=0,0,ROUND(F28/('10. Load Forecast'!F35*12),#REF!)))) ->  | L28: =IF(G28="","",ROUND(IF(D28="kWh",(G28+J28)/'10. Load Forecast'!H35,(G28+J28)/'10. Load Forecast'!J35),#REF!)) ->  | M28: =IF(K28="",0,K28*'10. Load Forecast'!F35*12) -> 0 | N28: =ROUND(IF(L28="",0,IF(D28="kWh",'10. Load Forecast'!H35*L28,IF(D28="kW",IF(L28="",0,L28*'10. Load Forecast'!J35)))),4) -> 0 | O28: 0
A29: 9 | B29: =IF(ISBLANK('10. Load Forecast'!D36),"",'10. Load Forecast'!D36) ->  | E29: =IF(ISBLANK('11. Cost_Allocation RSL'!H30),"",'11. Cost_Allocation RSL'!H30) ->  | K29: =IF(E29="","",IF('10. Load Forecast'!F36=0,0,IF(H29=0,0,ROUND(F29/('10. Load Forecast'!F36*12),#REF!)))) ->  | L29: =IF(G29="","",ROUND(IF(D29="kWh",(G29+J29)/'10. Load Forecast'!H36,(G29+J29)/'10. Load Forecast'!J36),#REF!)) ->  | M29: =IF(K29="",0,K29*'10. Load Forecast'!F36*12) -> 0 | N29: =ROUND(IF(L29="",0,IF(D29="kWh",'10. Load Forecast'!H36*L29,IF(D29="kW",IF(L29="",0,L29*'10. Load Forecast'!J36)))),4) -> 0 | O29: 0
A30: 10 | B30: =IF(ISBLANK('10. Load Forecast'!D37),"",'10. Load Forecast'!D37) ->  | E30: =IF(ISBLANK('11. Cost_Allocation RSL'!H31),"",'11. Cost_Allocation RSL'!H31) ->  | K30: =IF(E30="","",IF('10. Load Forecast'!F37=0,0,IF(H30=0,0,ROUND(F30/('10. Load Forecast'!F37*12),#REF!)))) ->  | L30: =IF(G30="","",ROUND(IF(D30="kWh",(G30+J30)/'10. Load Forecast'!H37,(G30+J30)/'10. Load Forecast'!J37),#REF!)) ->  | M30: =IF(K30="",0,K30*'10. Load Forecast'!F37*12) -> 0 | N30: =ROUND(IF(L30="",0,IF(D30="kWh",'10. Load Forecast'!H37*L30,IF(D30="kW",IF(L30="",0,L30*'10. Load Forecast'!J37)))),4) -> 0 | O30: 0
A31: 11 | B31: =IF(ISBLANK('10. Load Forecast'!D38),"",'10. Load Forecast'!D38) ->  | E31: =IF(ISBLANK('11. Cost_Allocation RSL'!H32),"",'11. Cost_Allocation RSL'!H32) ->  | K31: =IF(E31="","",IF('10. Load Forecast'!F38=0,0,IF(H31=0,0,ROUND(F31/('10. Load Forecast'!F38*12),#REF!)))) ->  | L31: =IF(G31="","",ROUND(IF(D31="kWh",(G31+J31)/'10. Load Forecast'!H38,(G31+J31)/'10. Load Forecast'!J38),#REF!)) ->  | M31: =IF(K31="",0,K31*'10. Load Forecast'!F38*12) -> 0 | N31: =ROUND(IF(L31="",0,IF(D31="kWh",'10. Load Forecast'!H38*L31,IF(D31="kW",IF(L31="",0,L31*'10. Load Forecast'!J38)))),4) -> 0 | O31: 0
A32: 12 | B32: =IF(ISBLANK('10. Load Forecast'!D39),"",'10. Load Forecast'!D39) ->  | E32: =IF(ISBLANK('11. Cost_Allocation RSL'!H33),"",'11. Cost_Allocation RSL'!H33) ->  | K32: =IF(E32="","",IF('10. Load Forecast'!F39=0,0,IF(H32=0,0,ROUND(F32/('10. Load Forecast'!F39*12),#REF!)))) ->  | L32: =IF(G32="","",ROUND(IF(D32="kWh",(G32+J32)/'10. Load Forecast'!H39,(G32+J32)/'10. Load Forecast'!J39),#REF!)) ->  | M32: =IF(K32="",0,K32*'10. Load Forecast'!F39*12) -> 0 | N32: =ROUND(IF(L32="",0,IF(D32="kWh",'10. Load Forecast'!H39*L32,IF(D32="kW",IF(L32="",0,L32*'10. Load Forecast'!J39)))),4) -> 0 | O32: 0
A33: 13 | B33: =IF(ISBLANK('10. Load Forecast'!D40),"",'10. Load Forecast'!D40) ->  | E33: =IF(ISBLANK('11. Cost_Allocation RSL'!H34),"",'11. Cost_Allocation RSL'!H34) ->  | K33: =IF(E33="","",IF('10. Load Forecast'!F40=0,0,IF(H33=0,0,ROUND(F33/('10. Load Forecast'!F40*12),#REF!)))) ->  | L33: =IF(G33="","",ROUND(IF(D33="kWh",(G33+J33)/'10. Load Forecast'!H40,(G33+J33)/'10. Load Forecast'!J40),#REF!)) ->  | M33: =IF(K33="",0,K33*'10. Load Forecast'!F40*12) -> 0 | N33: =ROUND(IF(L33="",0,IF(D33="kWh",'10. Load Forecast'!H40*L33,IF(D33="kW",IF(L33="",0,L33*'10. Load Forecast'!J40)))),4) -> 0 | O33: 0
A34: 14 | B34: =IF(ISBLANK('10. Load Forecast'!D41),"",'10. Load Forecast'!D41) ->  | E34: =IF(ISBLANK('11. Cost_Allocation RSL'!H35),"",'11. Cost_Allocation RSL'!H35) ->  | K34: =IF(E34="","",IF('10. Load Forecast'!F41=0,0,IF(H34=0,0,ROUND(F34/('10. Load Forecast'!F41*12),#REF!)))) ->  | L34: =IF(G34="","",ROUND(IF(D34="kWh",(G34+J34)/'10. Load Forecast'!H41,(G34+J34)/'10. Load Forecast'!J41),#REF!)) ->  | M34: =IF(K34="",0,K34*'10. Load Forecast'!F41*12) -> 0 | N34: =ROUND(IF(L34="",0,IF(D34="kWh",'10. Load Forecast'!H41*L34,IF(D34="kW",IF(L34="",0,L34*'10. Load Forecast'!J41)))),4) -> 0 | O34: 0
A35: 15 | B35: =IF(ISBLANK('10. Load Forecast'!D42),"",'10. Load Forecast'!D42) ->  | E35: =IF(ISBLANK('11. Cost_Allocation RSL'!H36),"",'11. Cost_Allocation RSL'!H36) ->  | K35: =IF(E35="","",IF('10. Load Forecast'!F42=0,0,IF(H35=0,0,ROUND(F35/('10. Load Forecast'!F42*12),#REF!)))) ->  | L35: =IF(G35="","",ROUND(IF(D35="kWh",(G35+J35)/'10. Load Forecast'!H42,(G35+J35)/'10. Load Forecast'!J42),#REF!)) ->  | M35: =IF(K35="",0,K35*'10. Load Forecast'!F42*12) -> 0 | N35: =ROUND(IF(L35="",0,IF(D35="kWh",'10. Load Forecast'!H42*L35,IF(D35="kW",IF(L35="",0,L35*'10. Load Forecast'!J42)))),4) -> 0 | O35: 0
A36: 16 | B36: =IF(ISBLANK('10. Load Forecast'!D43),"",'10. Load Forecast'!D43) ->  | E36: =IF(ISBLANK('11. Cost_Allocation RSL'!H37),"",'11. Cost_Allocation RSL'!H37) ->  | K36: =IF(E36="","",IF('10. Load Forecast'!F43=0,0,IF(H36=0,0,ROUND(F36/('10. Load Forecast'!F43*12),#REF!)))) ->  | L36: =IF(G36="","",ROUND(IF(D36="kWh",(G36+J36)/'10. Load Forecast'!H43,(G36+J36)/'10. Load Forecast'!J43),#REF!)) ->  | M36: =IF(K36="",0,K36*'10. Load Forecast'!F43*12) -> 0 | N36: =ROUND(IF(L36="",0,IF(D36="kWh",'10. Load Forecast'!H43*L36,IF(D36="kW",IF(L36="",0,L36*'10. Load Forecast'!J43)))),4) -> 0 | O36: 0
A37: 17 | B37: =IF(ISBLANK('10. Load Forecast'!D44),"",'10. Load Forecast'!D44) ->  | E37: =IF(ISBLANK('11. Cost_Allocation RSL'!H38),"",'11. Cost_Allocation RSL'!H38) ->  | K37: =IF(E37="","",IF('10. Load Forecast'!F44=0,0,IF(H37=0,0,ROUND(F37/('10. Load Forecast'!F44*12),#REF!)))) ->  | L37: =IF(G37="","",ROUND(IF(D37="kWh",(G37+J37)/'10. Load Forecast'!H44,(G37+J37)/'10. Load Forecast'!J44),#REF!)) ->  | M37: =IF(K37="",0,K37*'10. Load Forecast'!F44*12) -> 0 | N37: =ROUND(IF(L37="",0,IF(D37="kWh",'10. Load Forecast'!H44*L37,IF(D37="kW",IF(L37="",0,L37*'10. Load Forecast'!J44)))),4) -> 0 | O37: 0
A38: 18 | B38: =IF(ISBLANK('10. Load Forecast'!D45),"",'10. Load Forecast'!D45) ->  | E38: =IF(ISBLANK('11. Cost_Allocation RSL'!H39),"",'11. Cost_Allocation RSL'!H39) ->  | K38: =IF(E38="","",IF('10. Load Forecast'!F45=0,0,IF(H38=0,0,ROUND(F38/('10. Load Forecast'!F45*12),#REF!)))) ->  | L38: =IF(G38="","",ROUND(IF(D38="kWh",(G38+J38)/'10. Load Forecast'!H45,(G38+J38)/'10. Load Forecast'!J45),#REF!)) ->  | M38: =IF(K38="",0,K38*'10. Load Forecast'!F45*12) -> 0 | N38: =ROUND(IF(L38="",0,IF(D38="kWh",'10. Load Forecast'!H45*L38,IF(D38="kW",IF(L38="",0,L38*'10. Load Forecast'!J45)))),4) -> 0 | O38: 0
A39: 19 | B39: =IF(ISBLANK('10. Load Forecast'!D46),"",'10. Load Forecast'!D46) ->  | E39: =IF(ISBLANK('11. Cost_Allocation RSL'!H40),"",'11. Cost_Allocation RSL'!H40) ->  | K39: =IF(E39="","",IF('10. Load Forecast'!F46=0,0,IF(H39=0,0,ROUND(F39/('10. Load Forecast'!F46*12),#REF!)))) ->  | L39: =IF(G39="","",ROUND(IF(D39="kWh",(G39+J39)/'10. Load Forecast'!H46,(G39+J39)/'10. Load Forecast'!J46),#REF!)) ->  | M39: =IF(K39="",0,K39*'10. Load Forecast'!F46*12) -> 0 | N39: =ROUND(IF(L39="",0,IF(D39="kWh",'10. Load Forecast'!H46*L39,IF(D39="kW",IF(L39="",0,L39*'10. Load Forecast'!J46)))),4) -> 0 | O39: 0
A40: 20 | B40: =IF(ISBLANK('10. Load Forecast'!D47),"",'10. Load Forecast'!D47) ->  | E40: =IF(ISBLANK('11. Cost_Allocation RSL'!H41),"",'11. Cost_Allocation RSL'!H41) ->  | K40: =IF(E40="","",IF('10. Load Forecast'!F47=0,0,IF(H40=0,0,ROUND(F40/('10. Load Forecast'!F47*12),#REF!)))) ->  | L40: =IF(G40="","",ROUND(IF(D40="kWh",(G40+J40)/'10. Load Forecast'!H47,(G40+J40)/'10. Load Forecast'!J47),#REF!)) ->  | M40: =IF(K40="",0,K40*'10. Load Forecast'!F47*12) -> 0 | N40: =ROUND(IF(L40="",0,IF(D40="kWh",'10. Load Forecast'!H47*L40,IF(D40="kW",IF(L40="",0,L40*'10. Load Forecast'!J47)))),4) -> 0 | O40: 0
D41: Total | E41: =SUM(E21:E40) -> 4959191.352 | F41: =SUM(F21:F40) -> 3627678.994 | G41: =SUM(G21:G40) -> 1331512.358 | M41: =SUM(M21:M40) -> 3627678.994 | N41: =SUM(N21:N40) -> 1298463.855 | O41: =SUM(O21:O40) -> 4959656.15
D43: ='3. Data_Input_Sheet'!M12 -> Interrogatory Responses
B45: Customer Class | D45: Billing Determinant | E45: Total Class Revenue Requirement | F45: MSC Revenues (S) | G45: Volumetric revenues (S) | H45: Fixed | I45: Variable | J45: Transformer Ownership Allowance 1 ($) | K45: Monthly Service Charge | L45: Volumetric Rate ($) | M45: MSC Revenues (S) | N45: Volumetric revenues (S) | O45: Distribution Revenues less Transformer Ownership Allowance | Q45: Integrity Check
A47: 1 | B47: =B21 -> Residential | D47: =D21 -> kWh | E47: =IF(ISBLANK('11. Cost_Allocation RSL'!H50),"",'11. Cost_Allocation RSL'!H50) ->  | F47: =IF(ISBLANK(H47),"",E47*H47) ->  | G47: =IF(F47="","",E47-F47) ->  | I47: =IF(ISBLANK(H47),"",1-H47) ->  | K47: =IF(E47="","",IF('10. Load Forecast'!L28=0,0,IF(H47=0,0,ROUND(F47/('10. Load Forecast'!L28*12),2)))) ->  | L47: =IF(G47="","",ROUND(IF(D47="kWh",(G47+J47)/'10. Load Forecast'!N28,(G47+J47)/'10. Load Forecast'!P28),4)) ->  | M47: =IF(K47="",0,K47*'10. Load Forecast'!L28*12) -> 0 | N47: =ROUND(IF(L47="",0,IF(D47="kWh",'10. Load Forecast'!N28*L47,IF(D47="kW",IF(L47="",0,L47*'10. Load Forecast'!P28)))),2) -> 0 | O47: =ROUND(M47+N47-J47,2) -> 0
A48: 2 | B48: =B22 -> General Service < 50 kW | D48: =D22 -> kWh | E48: =IF(ISBLANK('11. Cost_Allocation RSL'!H51),"",'11. Cost_Allocation RSL'!H51) ->  | G48: =IF(F48="","",E48-F48) ->  | K48: =IF(E48="","",IF('10. Load Forecast'!L29=0,0,IF(H48=0,0,ROUND(F48/('10. Load Forecast'!L29*12),2)))) ->  | L48: =IF(G48="","",ROUND(IF(D48="kWh",(G48+J48)/'10. Load Forecast'!N29,(G48+J48)/'10. Load Forecast'!P29),4)) ->  | M48: =IF(K48="",0,K48*'10. Load Forecast'!L29*12) -> 0 | N48: =ROUND(IF(L48="",0,IF(D48="kWh",'10. Load Forecast'!N29*L48,IF(D48="kW",IF(L48="",0,L48*'10. Load Forecast'!P29)))),2) -> 0 | O48: 0 | Q48: Total Distribution Revenues | S48: =SUM(O47:O66) -> 0
A49: 3 | B49: General Service > 50 to 4999 kW | D49: kW | E49: =IF(ISBLANK('11. Cost_Allocation RSL'!H52),"",'11. Cost_Allocation RSL'!H52) ->  | K49: =IF(E49="","",IF('10. Load Forecast'!L30=0,0,IF(H49=0,0,ROUND(F49/('10. Load Forecast'!L30*12),2)))) ->  | L49: =IF(G49="","",ROUND(IF(D49="kWh",(G49+J49)/'10. Load Forecast'!N30,(G49+J49)/'10. Load Forecast'!P30),4)) ->  | M49: =IF(K49="",0,K49*'10. Load Forecast'!L30*12) -> 0 | N49: =ROUND(IF(L49="",0,IF(D49="kWh",'10. Load Forecast'!N30*L49,IF(D49="kW",IF(L49="",0,L49*'10. Load Forecast'!P30)))),2) -> 0 | O49: 0
A50: 4 | B50: Unmetered Scattered Load | D50: kWh | E50: =IF(ISBLANK('11. Cost_Allocation RSL'!H53),"",'11. Cost_Allocation RSL'!H53) ->  | K50: =IF(E50="","",IF('10. Load Forecast'!L31=0,0,IF(H50=0,0,ROUND(F50/('10. Load Forecast'!L31*12),2)))) ->  | L50: =IF(G50="","",ROUND(IF(D50="kWh",(G50+J50)/'10. Load Forecast'!N31,(G50+J50)/'10. Load Forecast'!P31),4)) ->  | M50: =IF(K50="",0,K50*'10. Load Forecast'!L31*12) -> 0 | N50: =ROUND(IF(L50="",0,IF(D50="kWh",'10. Load Forecast'!N31*L50,IF(D50="kW",IF(L50="",0,L50*'10. Load Forecast'!P31)))),2) -> 0 | O50: 0 | Q50: Base Revenue Requirement | S50: ='9. Rev_Reqt'!J28 -> 0
A51: 5 | B51: Sentinel | D51: kW | E51: =IF(ISBLANK('11. Cost_Allocation RSL'!H54),"",'11. Cost_Allocation RSL'!H54) ->  | K51: =IF(E51="","",IF('10. Load Forecast'!L32=0,0,IF(H51=0,0,ROUND(F51/('10. Load Forecast'!L32*12),2)))) ->  | L51: =IF(G51="","",ROUND(IF(D51="kWh",(G51+J51)/'10. Load Forecast'!N32,(G51+J51)/'10. Load Forecast'!P32),4)) ->  | M51: =IF(K51="",0,K51*'10. Load Forecast'!L32*12) -> 0 | N51: =ROUND(IF(L51="",0,IF(D51="kWh",'10. Load Forecast'!N32*L51,IF(D51="kW",IF(L51="",0,L51*'10. Load Forecast'!P32)))),2) -> 0 | O51: 0
A52: 6 | B52: StreetLights | D52: kW | E52: =IF(ISBLANK('11. Cost_Allocation RSL'!H55),"",'11. Cost_Allocation RSL'!H55) ->  | K52: =IF(E52="","",IF('10. Load Forecast'!L33=0,0,IF(H52=0,0,ROUND(F52/('10. Load Forecast'!L33*12),2)))) ->  | L52: =IF(G52="","",ROUND(IF(D52="kWh",(G52+J52)/'10. Load Forecast'!N33,(G52+J52)/'10. Load Forecast'!P33),4)) ->  | M52: =IF(K52="",0,K52*'10. Load Forecast'!L33*12) -> 0 | N52: =ROUND(IF(L52="",0,IF(D52="kWh",'10. Load Forecast'!N33*L52,IF(D52="kW",IF(L52="",0,L52*'10. Load Forecast'!P33)))),2) -> 0 | O52: 0 | Q52: Difference | S52: =S48-S50 -> 0
A53: 7 | B53: =IF(ISBLANK('10. Load Forecast'!D34),"",'10. Load Forecast'!D34) -> StreetLights | D53: =IF(ISBLANK(D27), "",(D27)) ->  | E53: =IF(ISBLANK('11. Cost_Allocation RSL'!H28),"",'11. Cost_Allocation RSL'!H28) ->  | F53: =IF(ISBLANK(H27),"",E27*H27) ->  | K53: =IF(E53="","",IF('10. Load Forecast'!L34=0,0,IF(H53=0,0,ROUND(F53/('10. Load Forecast'!L34*12),2)))) ->  | L53: =IF(G53="","",ROUND(IF(D53="kWh",(G53+J53)/'10. Load Forecast'!N34,(G53+J53)/'10. Load Forecast'!P34),4)) ->  | M53: =IF(K53="",0,K27*'10. Load Forecast'!L34*12) -> 0 | N53: =ROUND(IF(L53="",0,IF(D53="kWh",'10. Load Forecast'!N34*L53,IF(D53="kW",IF(L53="",0,L53*'10. Load Forecast'!P34)))),2) -> 0 | O53: =ROUND(M27+N27-J27,2) -> 0 | Q53: % Difference | S53: =IF(S50=0,"",S52/S50) -> 
A54: 8 | B54: =IF(ISBLANK('10. Load Forecast'!D35),"",'10. Load Forecast'!D35) ->  | D54: =IF(ISBLANK(D28), "",(D28)) ->  | E54: =IF(ISBLANK('11. Cost_Allocation RSL'!H29),"",'11. Cost_Allocation RSL'!H29) ->  | K54: =IF(E54="","",IF('10. Load Forecast'!L35=0,0,IF(H54=0,0,ROUND(F54/('10. Load Forecast'!L35*12),2)))) ->  | L54: =IF(G54="","",ROUND(IF(D54="kWh",(G54+J54)/'10. Load Forecast'!N35,(G54+J54)/'10. Load Forecast'!P35),4)) ->  | M54: =IF(K54="",0,K28*'10. Load Forecast'!L35*12) -> 0 | N54: =ROUND(IF(L54="",0,IF(D54="kWh",'10. Load Forecast'!N35*L54,IF(D54="kW",IF(L54="",0,L54*'10. Load Forecast'!P35)))),2) -> 0 | O54: 0
A55: 9 | B55: =IF(ISBLANK('10. Load Forecast'!D36),"",'10. Load Forecast'!D36) ->  | E55: =IF(ISBLANK('11. Cost_Allocation RSL'!H30),"",'11. Cost_Allocation RSL'!H30) ->  | K55: =IF(E55="","",IF('10. Load Forecast'!L36=0,0,IF(H55=0,0,ROUND(F55/('10. Load Forecast'!L36*12),2)))) ->  | L55: =IF(G55="","",ROUND(IF(D55="kWh",(G55+J55)/'10. Load Forecast'!N36,(G55+J55)/'10. Load Forecast'!P36),4)) ->  | M55: =IF(K55="",0,K29*'10. Load Forecast'!L36*12) -> 0 | N55: =ROUND(IF(L55="",0,IF(D55="kWh",'10. Load Forecast'!N36*L55,IF(D55="kW",IF(L55="",0,L55*'10. Load Forecast'!P36)))),2) -> 0 | O55: 0
A56: 10 | B56: =IF(ISBLANK('10. Load Forecast'!D37),"",'10. Load Forecast'!D37) ->  | E56: =IF(ISBLANK('11. Cost_Allocation RSL'!H31),"",'11. Cost_Allocation RSL'!H31) ->  | K56: =IF(E56="","",IF('10. Load Forecast'!L37=0,0,IF(H56=0,0,ROUND(F56/('10. Load Forecast'!L37*12),2)))) ->  | L56: =IF(G56="","",ROUND(IF(D56="kWh",(G56+J56)/'10. Load Forecast'!N37,(G56+J56)/'10. Load Forecast'!P37),4)) ->  | M56: =IF(K56="",0,K30*'10. Load Forecast'!L37*12) -> 0 | N56: =ROUND(IF(L56="",0,IF(D56="kWh",'10. Load Forecast'!N37*L56,IF(D56="kW",IF(L56="",0,L56*'10. Load Forecast'!P37)))),2) -> 0 | O56: 0
A57: 11 | B57: =IF(ISBLANK('10. Load Forecast'!D38),"",'10. Load Forecast'!D38) ->  | E57: =IF(ISBLANK('11. Cost_Allocation RSL'!H32),"",'11. Cost_Allocation RSL'!H32) ->  | K57: =IF(E57="","",IF('10. Load Forecast'!L38=0,0,IF(H57=0,0,ROUND(F57/('10. Load Forecast'!L38*12),2)))) ->  | L57: =IF(G57="","",ROUND(IF(D57="kWh",(G57+J57)/'10. Load Forecast'!N38,(G57+J57)/'10. Load Forecast'!P38),4)) ->  | M57: =IF(K57="",0,K31*'10. Load Forecast'!L38*12) -> 0 | N57: =ROUND(IF(L57="",0,IF(D57="kWh",'10. Load Forecast'!N38*L57,IF(D57="kW",IF(L57="",0,L57*'10. Load Forecast'!P38)))),2) -> 0 | O57: 0
A58: 12 | B58: =IF(ISBLANK('10. Load Forecast'!D39),"",'10. Load Forecast'!D39) ->  | E58: =IF(ISBLANK('11. Cost_Allocation RSL'!H33),"",'11. Cost_Allocation RSL'!H33) ->  | K58: =IF(E58="","",IF('10. Load Forecast'!L39=0,0,IF(H58=0,0,ROUND(F58/('10. Load Forecast'!L39*12),2)))) ->  | L58: =IF(G58="","",ROUND(IF(D58="kWh",(G58+J58)/'10. Load Forecast'!N39,(G58+J58)/'10. Load Forecast'!P39),4)) ->  | M58: =IF(K58="",0,K32*'10. Load Forecast'!L39*12) -> 0 | N58: =ROUND(IF(L58="",0,IF(D58="kWh",'10. Load Forecast'!N39*L58,IF(D58="kW",IF(L58="",0,L58*'10. Load Forecast'!P39)))),2) -> 0 | O58: 0
A59: 13 | B59: =IF(ISBLANK('10. Load Forecast'!D40),"",'10. Load Forecast'!D40) ->  | E59: =IF(ISBLANK('11. Cost_Allocation RSL'!H34),"",'11. Cost_Allocation RSL'!H34) ->  | K59: =IF(E59="","",IF('10. Load Forecast'!L40=0,0,IF(H59=0,0,ROUND(F59/('10. Load Forecast'!L40*12),2)))) ->  | L59: =IF(G59="","",ROUND(IF(D59="kWh",(G59+J59)/'10. Load Forecast'!N40,(G59+J59)/'10. Load Forecast'!P40),4)) ->  | M59: =IF(K59="",0,K33*'10. Load Forecast'!L40*12) -> 0 | N59: =ROUND(IF(L59="",0,IF(D59="kWh",'10. Load Forecast'!N40*L59,IF(D59="kW",IF(L59="",0,L59*'10. Load Forecast'!P40)))),2) -> 0 | O59: 0
A60: 14 | B60: =IF(ISBLANK('10. Load Forecast'!D41),"",'10. Load Forecast'!D41) ->  | E60: =IF(ISBLANK('11. Cost_Allocation RSL'!H35),"",'11. Cost_Allocation RSL'!H35) ->  | K60: =IF(E60="","",IF('10. Load Forecast'!L41=0,0,IF(H60=0,0,ROUND(F60/('10. Load Forecast'!L41*12),2)))) ->  | L60: =IF(G60="","",ROUND(IF(D60="kWh",(G60+J60)/'10. Load Forecast'!N41,(G60+J60)/'10. Load Forecast'!P41),4)) ->  | M60: =IF(K60="",0,K34*'10. Load Forecast'!L41*12) -> 0 | N60: =ROUND(IF(L60="",0,IF(D60="kWh",'10. Load Forecast'!N41*L60,IF(D60="kW",IF(L60="",0,L60*'10. Load Forecast'!P41)))),2) -> 0 | O60: 0
A61: 15 | B61: =IF(ISBLANK('10. Load Forecast'!D42),"",'10. Load Forecast'!D42) ->  | E61: =IF(ISBLANK('11. Cost_Allocation RSL'!H36),"",'11. Cost_Allocation RSL'!H36) ->  | K61: =IF(E61="","",IF('10. Load Forecast'!L42=0,0,IF(H61=0,0,ROUND(F61/('10. Load Forecast'!L42*12),2)))) ->  | L61: =IF(G61="","",ROUND(IF(D61="kWh",(G61+J61)/'10. Load Forecast'!N42,(G61+J61)/'10. Load Forecast'!P42),4)) ->  | M61: =IF(K61="",0,K35*'10. Load Forecast'!L42*12) -> 0 | N61: =ROUND(IF(L61="",0,IF(D61="kWh",'10. Load Forecast'!N42*L61,IF(D61="kW",IF(L61="",0,L61*'10. Load Forecast'!P42)))),2) -> 0 | O61: 0
A62: 16 | B62: =IF(ISBLANK('10. Load Forecast'!D43),"",'10. Load Forecast'!D43) ->  | E62: =IF(ISBLANK('11. Cost_Allocation RSL'!H37),"",'11. Cost_Allocation RSL'!H37) ->  | K62: =IF(E62="","",IF('10. Load Forecast'!L43=0,0,IF(H62=0,0,ROUND(F62/('10. Load Forecast'!L43*12),2)))) ->  | L62: =IF(G62="","",ROUND(IF(D62="kWh",(G62+J62)/'10. Load Forecast'!N43,(G62+J62)/'10. Load Forecast'!P43),4)) ->  | M62: =IF(K62="",0,K36*'10. Load Forecast'!L43*12) -> 0 | N62: =ROUND(IF(L62="",0,IF(D62="kWh",'10. Load Forecast'!N43*L62,IF(D62="kW",IF(L62="",0,L62*'10. Load Forecast'!P43)))),2) -> 0 | O62: 0
A63: 17 | B63: =IF(ISBLANK('10. Load Forecast'!D44),"",'10. Load Forecast'!D44) ->  | E63: =IF(ISBLANK('11. Cost_Allocation RSL'!H38),"",'11. Cost_Allocation RSL'!H38) ->  | K63: =IF(E63="","",IF('10. Load Forecast'!L44=0,0,IF(H63=0,0,ROUND(F63/('10. Load Forecast'!L44*12),2)))) ->  | L63: =IF(G63="","",ROUND(IF(D63="kWh",(G63+J63)/'10. Load Forecast'!N44,(G63+J63)/'10. Load Forecast'!P44),4)) ->  | M63: =IF(K63="",0,K37*'10. Load Forecast'!L44*12) -> 0 | N63: =ROUND(IF(L63="",0,IF(D63="kWh",'10. Load Forecast'!N44*L63,IF(D63="kW",IF(L63="",0,L63*'10. Load Forecast'!P44)))),2) -> 0 | O63: 0
A64: 18 | B64: =IF(ISBLANK('10. Load Forecast'!D45),"",'10. Load Forecast'!D45) ->  | E64: =IF(ISBLANK('11. Cost_Allocation RSL'!H39),"",'11. Cost_Allocation RSL'!H39) ->  | K64: =IF(E64="","",IF('10. Load Forecast'!L45=0,0,IF(H64=0,0,ROUND(F64/('10. Load Forecast'!L45*12),2)))) ->  | L64: =IF(G64="","",ROUND(IF(D64="kWh",(G64+J64)/'10. Load Forecast'!N45,(G64+J64)/'10. Load Forecast'!P45),4)) ->  | M64: =IF(K64="",0,K38*'10. Load Forecast'!L45*12) -> 0 | N64: =ROUND(IF(L64="",0,IF(D64="kWh",'10. Load Forecast'!N45*L64,IF(D64="kW",IF(L64="",0,L64*'10. Load Forecast'!P45)))),2) -> 0 | O64: 0
A65: 19 | B65: =IF(ISBLANK('10. Load Forecast'!D46),"",'10. Load Forecast'!D46) ->  | E65: =IF(ISBLANK('11. Cost_Allocation RSL'!H40),"",'11. Cost_Allocation RSL'!H40) ->  | K65: =IF(E65="","",IF('10. Load Forecast'!L46=0,0,IF(H65=0,0,ROUND(F65/('10. Load Forecast'!L46*12),2)))) ->  | L65: =IF(G65="","",ROUND(IF(D65="kWh",(G65+J65)/'10. Load Forecast'!N46,(G65+J65)/'10. Load Forecast'!P46),4)) ->  | M65: =IF(K65="",0,K39*'10. Load Forecast'!L46*12) -> 0 | N65: =ROUND(IF(L65="",0,IF(D65="kWh",'10. Load Forecast'!N46*L65,IF(D65="kW",IF(L65="",0,L65*'10. Load Forecast'!P46)))),2) -> 0 | O65: 0
A66: 20 | B66: =IF(ISBLANK('10. Load Forecast'!D47),"",'10. Load Forecast'!D47) ->  | E66: =IF(ISBLANK('11. Cost_Allocation RSL'!H41),"",'11. Cost_Allocation RSL'!H41) ->  | K66: =IF(E66="","",IF('10. Load Forecast'!L47=0,0,IF(H66=0,0,ROUND(F66/('10. Load Forecast'!L47*12),2)))) ->  | L66: =IF(G66="","",ROUND(IF(D66="kWh",(G66+J66)/'10. Load Forecast'!N47,(G66+J66)/'10. Load Forecast'!P47),4)) ->  | M66: =IF(K66="",0,K40*'10. Load Forecast'!L47*12) -> 0 | N66: =ROUND(IF(L66="",0,IF(D66="kWh",'10. Load Forecast'!N47*L66,IF(D66="kW",IF(L66="",0,L66*'10. Load Forecast'!P47)))),2) -> 0 | O66: 0
D67: Total | E67: =SUM(E47:E66) -> 0 | F67: =SUM(F47:F66) -> 0 | G67: =SUM(G47:G66) -> 0 | M67: =SUM(M47:M66) -> 0 | N67: =SUM(N47:N66) -> 0 | O67: =SUM(O47:O66) -> 0
D69: ='3. Data_Input_Sheet'!U12 -> Settlement Agreement
B71: Customer Class | D71: Billing Determinant | E71: Total Class Revenue Requirement | F71: MSC Revenues (S) | G71: Volumetric revenues (S) | H71: Fixed | I71: Variable | J71: Transformer Ownership Allowance 1 ($) | K71: Monthly Service Charge | L71: Volumetric Rate ($) | M71: MSC Revenues (S) | N71: Volumetric revenues (S) | O71: Distribution Revenues less Transformer Ownership Allowance | Q71: Integrity Check
A73: 1 | B73: =B21 -> Residential | D73: =D47 -> kWh | E73: =IF(ISBLANK('11. Cost_Allocation RSL'!H79),"",'11. Cost_Allocation RSL'!H79) ->  | F73: =IF(ISBLANK(H73),"",E73*H73) ->  | G73: =IF(F73="","",E73-F73) ->  | I73: =IF(ISBLANK(H73),"",1-H73) ->  | K73: =IF(E73="","",IF('10. Load Forecast'!R28=0,0,IF(H73=0,0,ROUND(F73/('10. Load Forecast'!R28*12),2)))) ->  | L73: =IF(G73="","",ROUND(IF(D73="kWh",(G73+J73)/'10. Load Forecast'!T28,(G73+J73)/'10. Load Forecast'!V28),4)) ->  | M73: =IF(K73="",0,K73*'10. Load Forecast'!R28*12) -> 0 | N73: =ROUND(IF(L73="",0,IF(D73="kWh",'10. Load Forecast'!T28*L73,IF(D73="kW",IF(L73="",0,L73*'10. Load Forecast'!V28)))),2) -> 0 | O73: =ROUND(M73+N73-J73,2) -> 0
A74: 2 | B74: =B22 -> General Service < 50 kW | D74: =D48 -> kWh | E74: =IF(ISBLANK('11. Cost_Allocation RSL'!H80),"",'11. Cost_Allocation RSL'!H80) ->  | F74: =IF(ISBLANK(H74),"",E74*H74) ->  | G74: =IF(F74="","",E74-F74) ->  | K74: =IF(E74="","",IF('10. Load Forecast'!R29=0,0,IF(H74=0,0,ROUND(F74/('10. Load Forecast'!R29*12),2)))) ->  | L74: =IF(G74="","",ROUND(IF(D74="kWh",(G74+J74)/'10. Load Forecast'!T29,(G74+J74)/'10. Load Forecast'!V29),4)) ->  | M74: =IF(K74="",0,K74*'10. Load Forecast'!R29*12) -> 0 | N74: =ROUND(IF(L74="",0,IF(D74="kWh",'10. Load Forecast'!T29*L74,IF(D74="kW",IF(L74="",0,L74*'10. Load Forecast'!V29)))),2) -> 0 | O74: 0 | Q74: Total Distribution Revenues | S74: =SUM(O73:O92) -> 0
A75: 3 | B75: General Service > 50 to 4999 kW | D75: kW | E75: =IF(ISBLANK('11. Cost_Allocation RSL'!H81),"",'11. Cost_Allocation RSL'!H81) ->  | K75: =IF(E75="","",IF('10. Load Forecast'!R30=0,0,IF(H75=0,0,ROUND(F75/('10. Load Forecast'!R30*12),2)))) ->  | L75: =IF(G75="","",ROUND(IF(D75="kWh",(G75+J75)/'10. Load Forecast'!T30,(G75+J75)/'10. Load Forecast'!V30),4)) ->  | M75: =IF(K75="",0,K75*'10. Load Forecast'!R30*12) -> 0 | N75: =ROUND(IF(L75="",0,IF(D75="kWh",'10. Load Forecast'!T30*L75,IF(D75="kW",IF(L75="",0,L75*'10. Load Forecast'!V30)))),2) -> 0 | O75: 0
A76: 4 | B76: Unmetered Scattered Load | D76: kWh | E76: =IF(ISBLANK('11. Cost_Allocation RSL'!H82),"",'11. Cost_Allocation RSL'!H82) ->  | K76: =IF(E76="","",IF('10. Load Forecast'!R31=0,0,IF(H76=0,0,ROUND(F76/('10. Load Forecast'!R31*12),2)))) ->  | L76: =IF(G76="","",ROUND(IF(D76="kWh",(G76+J76)/'10. Load Forecast'!T31,(G76+J76)/'10. Load Forecast'!V31),4)) ->  | M76: =IF(K76="",0,K76*'10. Load Forecast'!R31*12) -> 0 | N76: =ROUND(IF(L76="",0,IF(D76="kWh",'10. Load Forecast'!T31*L76,IF(D76="kW",IF(L76="",0,L76*'10. Load Forecast'!V31)))),2) -> 0 | O76: 0 | Q76: Base Revenue Requirement | S76: ='9. Rev_Reqt'!N28 -> 0
A77: 5 | B77: Sentinel | D77: kW | E77: =IF(ISBLANK('11. Cost_Allocation RSL'!H83),"",'11. Cost_Allocation RSL'!H83) ->  | K77: =IF(E77="","",IF('10. Load Forecast'!R32=0,0,IF(H77=0,0,ROUND(F77/('10. Load Forecast'!R32*12),2)))) ->  | L77: =IF(G77="","",ROUND(IF(D77="kWh",(G77+J77)/'10. Load Forecast'!T32,(G77+J77)/'10. Load Forecast'!V32),4)) ->  | M77: =IF(K77="",0,K77*'10. Load Forecast'!R32*12) -> 0 | N77: =ROUND(IF(L77="",0,IF(D77="kWh",'10. Load Forecast'!T32*L77,IF(D77="kW",IF(L77="",0,L77*'10. Load Forecast'!V32)))),2) -> 0 | O77: 0
A78: 6 | B78: StreetLights | D78: kW | E78: =IF(ISBLANK('11. Cost_Allocation RSL'!H84),"",'11. Cost_Allocation RSL'!H84) ->  | K78: =IF(E78="","",IF('10. Load Forecast'!R33=0,0,IF(H78=0,0,ROUND(F78/('10. Load Forecast'!R33*12),2)))) ->  | L78: =IF(G78="","",ROUND(IF(D78="kWh",(G78+J78)/'10. Load Forecast'!T33,(G78+J78)/'10. Load Forecast'!V33),4)) ->  | M78: =IF(K78="",0,K78*'10. Load Forecast'!R33*12) -> 0 | N78: =ROUND(IF(L78="",0,IF(D78="kWh",'10. Load Forecast'!T33*L78,IF(D78="kW",IF(L78="",0,L78*'10. Load Forecast'!V33)))),2) -> 0 | O78: 0 | Q78: Difference | S78: =S74-S76 -> 0
A79: 7 | B79: =IF(ISBLANK('10. Load Forecast'!D34),"",'10. Load Forecast'!D34) -> StreetLights | D79: =IF(ISBLANK(D53), "",(D53)) ->  | E79: =IF(ISBLANK('11. Cost_Allocation RSL'!H85),"",'11. Cost_Allocation RSL'!H28) ->  | F79: =IF(ISBLANK(H27),"",E27*H27) ->  | G79: =IF(F27="","",E27-F27) ->  | I79: =IF(ISBLANK(H27),"",1-H27) ->  | K79: =IF(E79="","",IF('10. Load Forecast'!R34=0,0,IF(H79=0,0,ROUND(F79/('10. Load Forecast'!R34*12),2)))) ->  | L79: =IF(G79="","",ROUND(IF(D79="kWh",(G79+J79)/'10. Load Forecast'!T34,(G79+J79)/'10. Load Forecast'!V34),4)) ->  | M79: =IF(K79="",0,K79*'10. Load Forecast'!R34*12) -> 0 | N79: =ROUND(IF(L79="",0,IF(D79="kWh",'10. Load Forecast'!T34*L79,IF(D79="kW",IF(L79="",0,L79*'10. Load Forecast'!V34)))),2) -> 0 | O79: 0 | Q79: % Difference | S79: =IF(S76=0,"",S78/S76) -> 
A80: 8 | B80: =IF(ISBLANK('10. Load Forecast'!D35),"",'10. Load Forecast'!D35) ->  | D80: =IF(ISBLANK(D54), "",(D54)) ->  | E80: =IF(ISBLANK('11. Cost_Allocation RSL'!H86),"",'11. Cost_Allocation RSL'!H29) ->  | K80: =IF(E80="","",IF('10. Load Forecast'!R35=0,0,IF(H80=0,0,ROUND(F80/('10. Load Forecast'!R35*12),2)))) ->  | L80: =IF(G80="","",ROUND(IF(D80="kWh",(G80+J80)/'10. Load Forecast'!T35,(G80+J80)/'10. Load Forecast'!V35),4)) ->  | M80: =IF(K80="",0,K80*'10. Load Forecast'!R35*12) -> 0 | N80: =ROUND(IF(L80="",0,IF(D80="kWh",'10. Load Forecast'!T35*L80,IF(D80="kW",IF(L80="",0,L80*'10. Load Forecast'!V35)))),2) -> 0 | O80: 0
A81: 9 | B81: =IF(ISBLANK('10. Load Forecast'!D36),"",'10. Load Forecast'!D36) ->  | E81: =IF(ISBLANK('11. Cost_Allocation RSL'!H87),"",'11. Cost_Allocation RSL'!H30) ->  | K81: =IF(E81="","",IF('10. Load Forecast'!R36=0,0,IF(H81=0,0,ROUND(F81/('10. Load Forecast'!R36*12),2)))) ->  | L81: =IF(G81="","",ROUND(IF(D81="kWh",(G81+J81)/'10. Load Forecast'!T36,(G81+J81)/'10. Load Forecast'!V36),4)) ->  | M81: =IF(K81="",0,K81*'10. Load Forecast'!R36*12) -> 0 | N81: =ROUND(IF(L81="",0,IF(D81="kWh",'10. Load Forecast'!T36*L81,IF(D81="kW",IF(L81="",0,L81*'10. Load Forecast'!V36)))),2) -> 0 | O81: 0
A82: 10 | B82: =IF(ISBLANK('10. Load Forecast'!D37),"",'10. Load Forecast'!D37) ->  | E82: =IF(ISBLANK('11. Cost_Allocation RSL'!H88),"",'11. Cost_Allocation RSL'!H31) ->  | K82: =IF(E82="","",IF('10. Load Forecast'!R37=0,0,IF(H82=0,0,ROUND(F82/('10. Load Forecast'!R37*12),2)))) ->  | L82: =IF(G82="","",ROUND(IF(D82="kWh",(G82+J82)/'10. Load Forecast'!T37,(G82+J82)/'10. Load Forecast'!V37),4)) ->  | M82: =IF(K82="",0,K82*'10. Load Forecast'!R37*12) -> 0 | N82: =ROUND(IF(L82="",0,IF(D82="kWh",'10. Load Forecast'!T37*L82,IF(D82="kW",IF(L82="",0,L82*'10. Load Forecast'!V37)))),2) -> 0 | O82: 0
A83: 11 | B83: =IF(ISBLANK('10. Load Forecast'!D38),"",'10. Load Forecast'!D38) ->  | E83: =IF(ISBLANK('11. Cost_Allocation RSL'!H89),"",'11. Cost_Allocation RSL'!H32) ->  | K83: =IF(E83="","",IF('10. Load Forecast'!R38=0,0,IF(H83=0,0,ROUND(F83/('10. Load Forecast'!R38*12),2)))) ->  | L83: =IF(G83="","",ROUND(IF(D83="kWh",(G83+J83)/'10. Load Forecast'!T38,(G83+J83)/'10. Load Forecast'!V38),4)) ->  | M83: =IF(K83="",0,K83*'10. Load Forecast'!R38*12) -> 0 | N83: =ROUND(IF(L83="",0,IF(D83="kWh",'10. Load Forecast'!T38*L83,IF(D83="kW",IF(L83="",0,L83*'10. Load Forecast'!V38)))),2) -> 0 | O83: 0
A84: 12 | B84: =IF(ISBLANK('10. Load Forecast'!D39),"",'10. Load Forecast'!D39) ->  | E84: =IF(ISBLANK('11. Cost_Allocation RSL'!H90),"",'11. Cost_Allocation RSL'!H33) ->  | K84: =IF(E84="","",IF('10. Load Forecast'!R39=0,0,IF(H84=0,0,ROUND(F84/('10. Load Forecast'!R39*12),2)))) ->  | L84: =IF(G84="","",ROUND(IF(D84="kWh",(G84+J84)/'10. Load Forecast'!T39,(G84+J84)/'10. Load Forecast'!V39),4)) ->  | M84: =IF(K84="",0,K84*'10. Load Forecast'!R39*12) -> 0 | N84: =ROUND(IF(L84="",0,IF(D84="kWh",'10. Load Forecast'!T39*L84,IF(D84="kW",IF(L84="",0,L84*'10. Load Forecast'!V39)))),2) -> 0 | O84: 0
A85: 13 | B85: =IF(ISBLANK('10. Load Forecast'!D40),"",'10. Load Forecast'!D40) ->  | E85: =IF(ISBLANK('11. Cost_Allocation RSL'!H91),"",'11. Cost_Allocation RSL'!H34) ->  | K85: =IF(E85="","",IF('10. Load Forecast'!R40=0,0,IF(H85=0,0,ROUND(F85/('10. Load Forecast'!R40*12),2)))) ->  | L85: =IF(G85="","",ROUND(IF(D85="kWh",(G85+J85)/'10. Load Forecast'!T40,(G85+J85)/'10. Load Forecast'!V40),4)) ->  | M85: =IF(K85="",0,K85*'10. Load Forecast'!R40*12) -> 0 | N85: =ROUND(IF(L85="",0,IF(D85="kWh",'10. Load Forecast'!T40*L85,IF(D85="kW",IF(L85="",0,L85*'10. Load Forecast'!V40)))),2) -> 0 | O85: 0
A86: 14 | B86: =IF(ISBLANK('10. Load Forecast'!D41),"",'10. Load Forecast'!D41) ->  | E86: =IF(ISBLANK('11. Cost_Allocation RSL'!H92),"",'11. Cost_Allocation RSL'!H35) ->  | K86: =IF(E86="","",IF('10. Load Forecast'!R41=0,0,IF(H86=0,0,ROUND(F86/('10. Load Forecast'!R41*12),2)))) ->  | L86: =IF(G86="","",ROUND(IF(D86="kWh",(G86+J86)/'10. Load Forecast'!T41,(G86+J86)/'10. Load Forecast'!V41),4)) ->  | M86: =IF(K86="",0,K86*'10. Load Forecast'!R41*12) -> 0 | N86: =ROUND(IF(L86="",0,IF(D86="kWh",'10. Load Forecast'!T41*L86,IF(D86="kW",IF(L86="",0,L86*'10. Load Forecast'!V41)))),2) -> 0 | O86: 0
A87: 15 | B87: =IF(ISBLANK('10. Load Forecast'!D42),"",'10. Load Forecast'!D42) ->  | E87: =IF(ISBLANK('11. Cost_Allocation RSL'!H93),"",'11. Cost_Allocation RSL'!H36) ->  | K87: =IF(E87="","",IF('10. Load Forecast'!R42=0,0,IF(H87=0,0,ROUND(F87/('10. Load Forecast'!R42*12),2)))) ->  | L87: =IF(G87="","",ROUND(IF(D87="kWh",(G87+J87)/'10. Load Forecast'!T42,(G87+J87)/'10. Load Forecast'!V42),4)) ->  | M87: =IF(K87="",0,K87*'10. Load Forecast'!R42*12) -> 0 | N87: =ROUND(IF(L87="",0,IF(D87="kWh",'10. Load Forecast'!T42*L87,IF(D87="kW",IF(L87="",0,L87*'10. Load Forecast'!V42)))),2) -> 0 | O87: 0
A88: 16 | B88: =IF(ISBLANK('10. Load Forecast'!D43),"",'10. Load Forecast'!D43) ->  | E88: =IF(ISBLANK('11. Cost_Allocation RSL'!H94),"",'11. Cost_Allocation RSL'!H37) ->  | K88: =IF(E88="","",IF('10. Load Forecast'!R43=0,0,IF(H88=0,0,ROUND(F88/('10. Load Forecast'!R43*12),2)))) ->  | L88: =IF(G88="","",ROUND(IF(D88="kWh",(G88+J88)/'10. Load Forecast'!T43,(G88+J88)/'10. Load Forecast'!V43),4)) ->  | M88: =IF(K88="",0,K88*'10. Load Forecast'!R43*12) -> 0 | N88: =ROUND(IF(L88="",0,IF(D88="kWh",'10. Load Forecast'!T43*L88,IF(D88="kW",IF(L88="",0,L88*'10. Load Forecast'!V43)))),2) -> 0 | O88: 0
A89: 17 | B89: =IF(ISBLANK('10. Load Forecast'!D44),"",'10. Load Forecast'!D44) ->  | E89: =IF(ISBLANK('11. Cost_Allocation RSL'!H95),"",'11. Cost_Allocation RSL'!H38) ->  | K89: =IF(E89="","",IF('10. Load Forecast'!R44=0,0,IF(H89=0,0,ROUND(F89/('10. Load Forecast'!R44*12),2)))) ->  | L89: =IF(G89="","",ROUND(IF(D89="kWh",(G89+J89)/'10. Load Forecast'!T44,(G89+J89)/'10. Load Forecast'!V44),4)) ->  | M89: =IF(K89="",0,K89*'10. Load Forecast'!R44*12) -> 0 | N89: =ROUND(IF(L89="",0,IF(D89="kWh",'10. Load Forecast'!T44*L89,IF(D89="kW",IF(L89="",0,L89*'10. Load Forecast'!V44)))),2) -> 0 | O89: 0
A90: 18 | B90: =IF(ISBLANK('10. Load Forecast'!D45),"",'10. Load Forecast'!D45) ->  | E90: =IF(ISBLANK('11. Cost_Allocation RSL'!H96),"",'11. Cost_Allocation RSL'!H39) ->  | K90: =IF(E90="","",IF('10. Load Forecast'!R45=0,0,IF(H90=0,0,ROUND(F90/('10. Load Forecast'!R45*12),2)))) ->  | L90: =IF(G90="","",ROUND(IF(D90="kWh",(G90+J90)/'10. Load Forecast'!T45,(G90+J90)/'10. Load Forecast'!V45),4)) ->  | M90: =IF(K90="",0,K90*'10. Load Forecast'!R45*12) -> 0 | N90: =ROUND(IF(L90="",0,IF(D90="kWh",'10. Load Forecast'!T45*L90,IF(D90="kW",IF(L90="",0,L90*'10. Load Forecast'!V45)))),2) -> 0 | O90: 0
A91: 19 | B91: =IF(ISBLANK('10. Load Forecast'!D46),"",'10. Load Forecast'!D46) ->  | E91: =IF(ISBLANK('11. Cost_Allocation RSL'!H97),"",'11. Cost_Allocation RSL'!H40) ->  | K91: =IF(E91="","",IF('10. Load Forecast'!R46=0,0,IF(H91=0,0,ROUND(F91/('10. Load Forecast'!R46*12),2)))) ->  | L91: =IF(G91="","",ROUND(IF(D91="kWh",(G91+J91)/'10. Load Forecast'!T46,(G91+J91)/'10. Load Forecast'!V46),4)) ->  | M91: =IF(K91="",0,K91*'10. Load Forecast'!R46*12) -> 0 | N91: =ROUND(IF(L91="",0,IF(D91="kWh",'10. Load Forecast'!T46*L91,IF(D91="kW",IF(L91="",0,L91*'10. Load Forecast'!V46)))),2) -> 0 | O91: 0
A92: 20 | B92: =IF(ISBLANK('10. Load Forecast'!D47),"",'10. Load Forecast'!D47) ->  | E92: =IF(ISBLANK('11. Cost_Allocation RSL'!H98),"",'11. Cost_Allocation RSL'!H41) ->  | K92: =IF(E92="","",IF('10. Load Forecast'!R47=0,0,IF(H92=0,0,ROUND(F92/('10. Load Forecast'!R47*12),2)))) ->  | L92: =IF(G92="","",ROUND(IF(D92="kWh",(G92+J92)/'10. Load Forecast'!T47,(G92+J92)/'10. Load Forecast'!V47),4)) ->  | M92: =IF(K92="",0,K92*'10. Load Forecast'!R47*12) -> 0 | N92: =ROUND(IF(L92="",0,IF(D92="kWh",'10. Load Forecast'!T47*L92,IF(D92="kW",IF(L92="",0,L92*'10. Load Forecast'!V47)))),2) -> 0 | O92: 0
D93: Total | E93: =SUM(E73:E92) -> 0 | F93: =SUM(F73:F92) -> 0 | G93: =SUM(G73:G92) -> 0 | M93: =SUM(M73:M92) -> 0 | N93: =SUM(N73:N92) -> 0 | O93: =SUM(O73:O92) -> 0
D95: ='3. Data_Input_Sheet'!AC12 -> Per Board Decision
B97: Customer Class | D97: Billing Determinant | E97: Total Class Revenue Requirement | F97: MSC Revenues (S) | G97: Volumetric revenues (S) | H97: Fixed | I97: Variable | J97: Transformer Ownership Allowance 1 ($) | K97: Monthly Service Charge | L97: Volumetric Rate ($) | M97: MSC Revenues (S) | N97: Volumetric revenues (S) | O97: Distribution Revenues less Transformer Ownership Allowance | Q97: Integrity Check
A99: 1 | B99: =B73 -> Residential | D99: =D73 -> kWh | E99: =IF(ISBLANK('11. Cost_Allocation RSL'!H108),"",'11. Cost_Allocation RSL'!H108) ->  | F99: =IF(ISBLANK(H99),"",E99*H99) ->  | G99: =IF(F99="","",E99-F99) ->  | I99: =IF(ISBLANK(H99),"",1-H99) ->  | K99: =IF(E99="","",IF('10. Load Forecast'!X28=0,0,IF(H99=0,0,ROUND(F99/('10. Load Forecast'!X28*12),2)))) ->  | L99: =IF(G99="","",ROUND(IF(D99="kWh",(G99+J99)/'10. Load Forecast'!T28,(G99+J99)/'10. Load Forecast'!V28),4)) ->  | M99: =IF(K99="",0,K99*'10. Load Forecast'!X28*12) -> 0 | N99: =ROUND(IF(L99="",0,IF(D99="kWh",'10. Load Forecast'!Z28*L99,IF(D73="kW",IF(L99="",0,L99*'10. Load Forecast'!AB28)))),2) -> 0 | O99: =ROUND(M99+N99-J99,2) -> 0
A100: 2 | B100: =B74 -> General Service < 50 kW | D100: =D74 -> kWh | E100: =IF(ISBLANK('11. Cost_Allocation RSL'!H109),"",'11. Cost_Allocation RSL'!H109) ->  | F100: =IF(ISBLANK(H100),"",E100*H100) ->  | G100: =IF(F100="","",E100-F100) ->  | K100: =IF(E100="","",IF('10. Load Forecast'!X29=0,0,IF(H100=0,0,ROUND(F100/('10. Load Forecast'!X29*12),2)))) ->  | L100: =IF(G100="","",ROUND(IF(D100="kWh",(G100+J100)/'10. Load Forecast'!T29,(G100+J100)/'10. Load Forecast'!V29),4)) ->  | M100: =IF(K100="",0,K100*'10. Load Forecast'!X29*12) -> 0 | N100: =ROUND(IF(L100="",0,IF(D100="kWh",'10. Load Forecast'!Z29*L100,IF(D74="kW",IF(L100="",0,L100*'10. Load Forecast'!AB29)))),2) -> 0 | O100: 0 | Q100: Total Distribution Revenues | S100: =SUM(O99:O118) -> 0
A101: 3 | B101: General Service > 50 to 4999 kW | D101: kW | E101: =IF(ISBLANK('11. Cost_Allocation RSL'!H110),"",'11. Cost_Allocation RSL'!H110) ->  | K101: =IF(E101="","",IF('10. Load Forecast'!X30=0,0,IF(H101=0,0,ROUND(F101/('10. Load Forecast'!X30*12),2)))) ->  | L101: =IF(G101="","",ROUND(IF(D101="kWh",(G101+J101)/'10. Load Forecast'!T30,(G101+J101)/'10. Load Forecast'!V30),4)) ->  | M101: =IF(K101="",0,K101*'10. Load Forecast'!X30*12) -> 0 | N101: =ROUND(IF(L101="",0,IF(D101="kWh",'10. Load Forecast'!Z30*L101,IF(D75="kW",IF(L101="",0,L101*'10. Load Forecast'!AB30)))),2) -> 0 | O101: 0
A102: 4 | B102: Unmetered Scattered Load | D102: kWh | E102: =IF(ISBLANK('11. Cost_Allocation RSL'!H111),"",'11. Cost_Allocation RSL'!H111) ->  | K102: =IF(E102="","",IF('10. Load Forecast'!X31=0,0,IF(H102=0,0,ROUND(F102/('10. Load Forecast'!X31*12),2)))) ->  | L102: =IF(G102="","",ROUND(IF(D102="kWh",(G102+J102)/'10. Load Forecast'!T31,(G102+J102)/'10. Load Forecast'!V31),4)) ->  | M102: =IF(K102="",0,K102*'10. Load Forecast'!X31*12) -> 0 | N102: =ROUND(IF(L102="",0,IF(D102="kWh",'10. Load Forecast'!Z31*L102,IF(D76="kW",IF(L102="",0,L102*'10. Load Forecast'!AB31)))),2) -> 0 | O102: 0 | Q102: Base Revenue Requirement | S102: ='9. Rev_Reqt'!R28 -> 0
A103: 5 | B103: Sentinel | D103: kW | E103: =IF(ISBLANK('11. Cost_Allocation RSL'!H112),"",'11. Cost_Allocation RSL'!H112) ->  | K103: =IF(E103="","",IF('10. Load Forecast'!X32=0,0,IF(H103=0,0,ROUND(F103/('10. Load Forecast'!X32*12),2)))) ->  | L103: =IF(G103="","",ROUND(IF(D103="kWh",(G103+J103)/'10. Load Forecast'!T32,(G103+J103)/'10. Load Forecast'!V32),4)) ->  | M103: =IF(K103="",0,K103*'10. Load Forecast'!X32*12) -> 0 | N103: =ROUND(IF(L103="",0,IF(D103="kWh",'10. Load Forecast'!Z32*L103,IF(D77="kW",IF(L103="",0,L103*'10. Load Forecast'!AB32)))),2) -> 0 | O103: 0
A104: 6 | B104: StreetLights | D104: kW | E104: =IF(ISBLANK('11. Cost_Allocation RSL'!H113),"",'11. Cost_Allocation RSL'!H113) ->  | K104: =IF(E104="","",IF('10. Load Forecast'!X33=0,0,IF(H104=0,0,ROUND(F104/('10. Load Forecast'!X33*12),2)))) ->  | L104: =IF(G104="","",ROUND(IF(D104="kWh",(G104+J104)/'10. Load Forecast'!T33,(G104+J104)/'10. Load Forecast'!V33),4)) ->  | M104: =IF(K104="",0,K104*'10. Load Forecast'!X33*12) -> 0 | N104: =ROUND(IF(L104="",0,IF(D104="kWh",'10. Load Forecast'!Z33*L104,IF(D78="kW",IF(L104="",0,L104*'10. Load Forecast'!AB33)))),2) -> 0 | O104: 0 | Q104: Difference | S104: =S100-S102 -> 0
A105: 7 | B105: =IF(ISBLANK('10. Load Forecast'!D34),"",'10. Load Forecast'!D34) -> StreetLights | D105: =IF(ISBLANK(D79), "",(D79)) ->  | E105: =IF(ISBLANK('11. Cost_Allocation RSL'!H28),"",'11. Cost_Allocation RSL'!H28) ->  | F105: =IF(ISBLANK(H27),"",E27*H27) ->  | G105: =IF(F27="","",E27-F27) ->  | I105: =IF(ISBLANK(H27),"",1-H27) ->  | K105: =IF(E105="","",IF('10. Load Forecast'!X34=0,0,IF(H105=0,0,ROUND(F105/('10. Load Forecast'!X34*12),2)))) ->  | L105: =IF(G105="","",ROUND(IF(D105="kWh",(G105+J105)/'10. Load Forecast'!T34,(G105+J105)/'10. Load Forecast'!V34),4)) ->  | M105: =IF(K105="",0,K105*'10. Load Forecast'!X34*12) -> 0 | N105: =ROUND(IF(L105="",0,IF(D105="kWh",'10. Load Forecast'!Z34*L105,IF(D79="kW",IF(L105="",0,L105*'10. Load Forecast'!AB34)))),2) -> 0 | O105: 0 | Q105: % Difference | S105: =IF(S102=0,"",S104/S102) -> 
A106: 8 | B106: =IF(ISBLANK('10. Load Forecast'!D35),"",'10. Load Forecast'!D35) ->  | D106: =IF(ISBLANK(D80), "",(D80)) ->  | E106: =IF(ISBLANK('11. Cost_Allocation RSL'!H29),"",'11. Cost_Allocation RSL'!H29) ->  | K106: =IF(E106="","",IF('10. Load Forecast'!X35=0,0,IF(H106=0,0,ROUND(F106/('10. Load Forecast'!X35*12),2)))) ->  | L106: =IF(G106="","",ROUND(IF(D106="kWh",(G106+J106)/'10. Load Forecast'!T35,(G106+J106)/'10. Load Forecast'!V35),4)) ->  | M106: =IF(K106="",0,K106*'10. Load Forecast'!X35*12) -> 0 | N106: =ROUND(IF(L106="",0,IF(D106="kWh",'10. Load Forecast'!Z35*L106,IF(D80="kW",IF(L106="",0,L106*'10. Load Forecast'!AB35)))),2) -> 0 | O106: 0
A107: 9 | B107: =IF(ISBLANK('10. Load Forecast'!D36),"",'10. Load Forecast'!D36) ->  | E107: =IF(ISBLANK('11. Cost_Allocation RSL'!H30),"",'11. Cost_Allocation RSL'!H30) ->  | K107: =IF(E107="","",IF('10. Load Forecast'!X36=0,0,IF(H107=0,0,ROUND(F107/('10. Load Forecast'!X36*12),2)))) ->  | L107: =IF(G107="","",ROUND(IF(D107="kWh",(G107+J107)/'10. Load Forecast'!T36,(G107+J107)/'10. Load Forecast'!V36),4)) ->  | M107: =IF(K107="",0,K107*'10. Load Forecast'!X36*12) -> 0 | N107: =ROUND(IF(L107="",0,IF(D107="kWh",'10. Load Forecast'!Z36*L107,IF(D81="kW",IF(L107="",0,L107*'10. Load Forecast'!AB36)))),2) -> 0 | O107: 0
A108: 10 | B108: =IF(ISBLANK('10. Load Forecast'!D37),"",'10. Load Forecast'!D37) ->  | E108: =IF(ISBLANK('11. Cost_Allocation RSL'!H31),"",'11. Cost_Allocation RSL'!H31) ->  | K108: =IF(E108="","",IF('10. Load Forecast'!X37=0,0,IF(H108=0,0,ROUND(F108/('10. Load Forecast'!X37*12),2)))) ->  | L108: =IF(G108="","",ROUND(IF(D108="kWh",(G108+J108)/'10. Load Forecast'!T37,(G108+J108)/'10. Load Forecast'!V37),4)) ->  | M108: =IF(K108="",0,K108*'10. Load Forecast'!X37*12) -> 0 | N108: =ROUND(IF(L108="",0,IF(D108="kWh",'10. Load Forecast'!Z37*L108,IF(D82="kW",IF(L108="",0,L108*'10. Load Forecast'!AB37)))),2) -> 0 | O108: 0
A109: 11 | B109: =IF(ISBLANK('10. Load Forecast'!D38),"",'10. Load Forecast'!D38) ->  | E109: =IF(ISBLANK('11. Cost_Allocation RSL'!H32),"",'11. Cost_Allocation RSL'!H32) ->  | K109: =IF(E109="","",IF('10. Load Forecast'!X38=0,0,IF(H109=0,0,ROUND(F109/('10. Load Forecast'!X38*12),2)))) ->  | L109: =IF(G109="","",ROUND(IF(D109="kWh",(G109+J109)/'10. Load Forecast'!T38,(G109+J109)/'10. Load Forecast'!V38),4)) ->  | M109: =IF(K109="",0,K109*'10. Load Forecast'!X38*12) -> 0 | N109: =ROUND(IF(L109="",0,IF(D109="kWh",'10. Load Forecast'!Z38*L109,IF(D83="kW",IF(L109="",0,L109*'10. Load Forecast'!AB38)))),2) -> 0 | O109: 0
A110: 12 | B110: =IF(ISBLANK('10. Load Forecast'!D39),"",'10. Load Forecast'!D39) ->  | E110: =IF(ISBLANK('11. Cost_Allocation RSL'!H33),"",'11. Cost_Allocation RSL'!H33) ->  | K110: =IF(E110="","",IF('10. Load Forecast'!X39=0,0,IF(H110=0,0,ROUND(F110/('10. Load Forecast'!X39*12),2)))) ->  | L110: =IF(G110="","",ROUND(IF(D110="kWh",(G110+J110)/'10. Load Forecast'!T39,(G110+J110)/'10. Load Forecast'!V39),4)) ->  | M110: =IF(K110="",0,K110*'10. Load Forecast'!X39*12) -> 0 | N110: =ROUND(IF(L110="",0,IF(D110="kWh",'10. Load Forecast'!Z39*L110,IF(D84="kW",IF(L110="",0,L110*'10. Load Forecast'!AB39)))),2) -> 0 | O110: 0
A111: 13 | B111: =IF(ISBLANK('10. Load Forecast'!D40),"",'10. Load Forecast'!D40) ->  | E111: =IF(ISBLANK('11. Cost_Allocation RSL'!H34),"",'11. Cost_Allocation RSL'!H34) ->  | K111: =IF(E111="","",IF('10. Load Forecast'!X40=0,0,IF(H111=0,0,ROUND(F111/('10. Load Forecast'!X40*12),2)))) ->  | L111: =IF(G111="","",ROUND(IF(D111="kWh",(G111+J111)/'10. Load Forecast'!T40,(G111+J111)/'10. Load Forecast'!V40),4)) ->  | M111: =IF(K111="",0,K111*'10. Load Forecast'!X40*12) -> 0 | N111: =ROUND(IF(L111="",0,IF(D111="kWh",'10. Load Forecast'!Z40*L111,IF(D85="kW",IF(L111="",0,L111*'10. Load Forecast'!AB40)))),2) -> 0 | O111: 0
A112: 14 | B112: =IF(ISBLANK('10. Load Forecast'!D41),"",'10. Load Forecast'!D41) ->  | E112: =IF(ISBLANK('11. Cost_Allocation RSL'!H35),"",'11. Cost_Allocation RSL'!H35) ->  | K112: =IF(E112="","",IF('10. Load Forecast'!X41=0,0,IF(H112=0,0,ROUND(F112/('10. Load Forecast'!X41*12),2)))) ->  | L112: =IF(G112="","",ROUND(IF(D112="kWh",(G112+J112)/'10. Load Forecast'!T41,(G112+J112)/'10. Load Forecast'!V41),4)) ->  | M112: =IF(K112="",0,K112*'10. Load Forecast'!X41*12) -> 0 | N112: =ROUND(IF(L112="",0,IF(D112="kWh",'10. Load Forecast'!Z41*L112,IF(D86="kW",IF(L112="",0,L112*'10. Load Forecast'!AB41)))),2) -> 0 | O112: 0
A113: 15 | B113: =IF(ISBLANK('10. Load Forecast'!D42),"",'10. Load Forecast'!D42) ->  | E113: =IF(ISBLANK('11. Cost_Allocation RSL'!H36),"",'11. Cost_Allocation RSL'!H36) ->  | K113: =IF(E113="","",IF('10. Load Forecast'!X42=0,0,IF(H113=0,0,ROUND(F113/('10. Load Forecast'!X42*12),2)))) ->  | L113: =IF(G113="","",ROUND(IF(D113="kWh",(G113+J113)/'10. Load Forecast'!T42,(G113+J113)/'10. Load Forecast'!V42),4)) ->  | M113: =IF(K113="",0,K113*'10. Load Forecast'!X42*12) -> 0 | N113: =ROUND(IF(L113="",0,IF(D113="kWh",'10. Load Forecast'!Z42*L113,IF(D87="kW",IF(L113="",0,L113*'10. Load Forecast'!AB42)))),2) -> 0 | O113: 0
A114: 16 | B114: =IF(ISBLANK('10. Load Forecast'!D43),"",'10. Load Forecast'!D43) ->  | E114: =IF(ISBLANK('11. Cost_Allocation RSL'!H37),"",'11. Cost_Allocation RSL'!H37) ->  | K114: =IF(E114="","",IF('10. Load Forecast'!X43=0,0,IF(H114=0,0,ROUND(F114/('10. Load Forecast'!X43*12),2)))) ->  | L114: =IF(G114="","",ROUND(IF(D114="kWh",(G114+J114)/'10. Load Forecast'!T43,(G114+J114)/'10. Load Forecast'!V43),4)) ->  | M114: =IF(K114="",0,K114*'10. Load Forecast'!X43*12) -> 0 | N114: =ROUND(IF(L114="",0,IF(D114="kWh",'10. Load Forecast'!Z43*L114,IF(D88="kW",IF(L114="",0,L114*'10. Load Forecast'!AB43)))),2) -> 0 | O114: 0
A115: 17 | B115: =IF(ISBLANK('10. Load Forecast'!D44),"",'10. Load Forecast'!D44) ->  | E115: =IF(ISBLANK('11. Cost_Allocation RSL'!H38),"",'11. Cost_Allocation RSL'!H38) ->  | K115: =IF(E115="","",IF('10. Load Forecast'!X44=0,0,IF(H115=0,0,ROUND(F115/('10. Load Forecast'!X44*12),2)))) ->  | L115: =IF(G115="","",ROUND(IF(D115="kWh",(G115+J115)/'10. Load Forecast'!T44,(G115+J115)/'10. Load Forecast'!V44),4)) ->  | M115: =IF(K115="",0,K115*'10. Load Forecast'!X44*12) -> 0 | N115: =ROUND(IF(L115="",0,IF(D115="kWh",'10. Load Forecast'!Z44*L115,IF(D89="kW",IF(L115="",0,L115*'10. Load Forecast'!AB44)))),2) -> 0 | O115: 0
A116: 18 | B116: =IF(ISBLANK('10. Load Forecast'!D45),"",'10. Load Forecast'!D45) ->  | E116: =IF(ISBLANK('11. Cost_Allocation RSL'!H39),"",'11. Cost_Allocation RSL'!H39) ->  | K116: =IF(E116="","",IF('10. Load Forecast'!X45=0,0,IF(H116=0,0,ROUND(F116/('10. Load Forecast'!X45*12),2)))) ->  | L116: =IF(G116="","",ROUND(IF(D116="kWh",(G116+J116)/'10. Load Forecast'!T45,(G116+J116)/'10. Load Forecast'!V45),4)) ->  | M116: =IF(K116="",0,K116*'10. Load Forecast'!X45*12) -> 0 | N116: =ROUND(IF(L116="",0,IF(D116="kWh",'10. Load Forecast'!Z45*L116,IF(D90="kW",IF(L116="",0,L116*'10. Load Forecast'!AB45)))),2) -> 0 | O116: 0
A117: 19 | B117: =IF(ISBLANK('10. Load Forecast'!D46),"",'10. Load Forecast'!D46) ->  | E117: =IF(ISBLANK('11. Cost_Allocation RSL'!H40),"",'11. Cost_Allocation RSL'!H40) ->  | K117: =IF(E117="","",IF('10. Load Forecast'!X46=0,0,IF(H117=0,0,ROUND(F117/('10. Load Forecast'!X46*12),2)))) ->  | L117: =IF(G117="","",ROUND(IF(D117="kWh",(G117+J117)/'10. Load Forecast'!T46,(G117+J117)/'10. Load Forecast'!V46),4)) ->  | M117: =IF(K117="",0,K117*'10. Load Forecast'!X46*12) -> 0 | N117: =ROUND(IF(L117="",0,IF(D117="kWh",'10. Load Forecast'!Z46*L117,IF(D91="kW",IF(L117="",0,L117*'10. Load Forecast'!AB46)))),2) -> 0 | O117: 0
A118: 20 | B118: =IF(ISBLANK('10. Load Forecast'!D47),"",'10. Load Forecast'!D47) ->  | E118: =IF(ISBLANK('11. Cost_Allocation RSL'!H41),"",'11. Cost_Allocation RSL'!H41) ->  | K118: =IF(E118="","",IF('10. Load Forecast'!X47=0,0,IF(H118=0,0,ROUND(F118/('10. Load Forecast'!X47*12),2)))) ->  | L118: =IF(G118="","",ROUND(IF(D118="kWh",(G118+J118)/'10. Load Forecast'!T47,(G118+J118)/'10. Load Forecast'!V47),4)) ->  | M118: =IF(K118="",0,K118*'10. Load Forecast'!X47*12) -> 0 | N118: =ROUND(IF(L118="",0,IF(D118="kWh",'10. Load Forecast'!Z47*L118,IF(D92="kW",IF(L118="",0,L118*'10. Load Forecast'!AB47)))),2) -> 0 | O118: 0
D119: Total | E119: =SUM(E99:E118) -> 0 | F119: =SUM(F99:F118) -> 0 | G119: =SUM(G99:G118) -> 0 | M119: =SUM(M99:M118) -> 0 | N119: =SUM(N99:N118) -> 0 | O119: =SUM(O99:O118) -> 0

Sheet 15. Variance Tracking Sheet RSL
G1: =CONCATENATE('2. Table of Contents'!$F$6," ",'2. Table of Contents'!$G$6) -> 
B10: Variance Tracking Sheet and Settlement Tables
D12: Initial Application | E12: ='3. Data_Input_Sheet'!M12 -> Interrogatory Responses | F12: Variance | G12: ='3. Data_Input_Sheet'!U12 -> Settlement Agreement | H12: Variance | I12: ='3. Data_Input_Sheet'!AC12 -> Per Board Decision | J12: Variance
B14: Table X | C14: Rate Base
C15: Gross Fixed Assets (average) | D15: ='4. Rate_Base'!G13 -> 18899363.3 | E15: ='4. Rate_Base'!O13 -> 0 | F15: =E15-D15 -> -18899363.3 | G15: ='4. Rate_Base'!W13 -> 0 | H15: =G15-E15 -> 0 | I15: ='4. Rate_Base'!AC13 -> 0 | J15: =I15-G15 -> 0
C16: Accumulated Depreciation (average) | D16: ='4. Rate_Base'!G14 -> -4826714.314 | E16: ='4. Rate_Base'!O14 -> 0 | F16: =E16-D16 -> 4826714.314 | G16: ='4. Rate_Base'!W14 -> 0 | H16: =G16-E16 -> 0 | I16: ='4. Rate_Base'!AC14 -> 0 | J16: =I16-G16 -> 0
C17: Net Fixed Assets | D17: ='4. Rate_Base'!G15 -> 14072648.98 | E17: ='4. Rate_Base'!O15 -> 0 | F17: -14072648.98 | G17: ='4. Rate_Base'!W15 -> 0 | H17: 0 | I17: ='4. Rate_Base'!AC15 -> 0 | J17: 0
C19: Allowance for Working Capital:
C20: Controllable Expenses | D20: ='3. Data_Input_Sheet'!E19 -> 3753312.916 | E20: ='3. Data_Input_Sheet'!M19 -> 0 | F20: =E20-D20 -> -3753312.916 | G20: ='3. Data_Input_Sheet'!U19 -> 0 | H20: =G20-E20 -> 0 | I20: ='3. Data_Input_Sheet'!AC19 -> 0 | J20: 0
C21: Cost of Power | D21: ='3. Data_Input_Sheet'!E20 -> 15887077.36 | E21: ='3. Data_Input_Sheet'!M20 -> 0 | F21: -15887077.36 | G21: ='3. Data_Input_Sheet'!U20 -> 0 | H21: 0 | I21: ='3. Data_Input_Sheet'!AC20 -> 0 | J21: 0
C22: Working Capital Base | D22: =SUM(D20:D21) -> 19640390.28 | E22: =SUM(E20:E21) -> 0 | F22: -19640390.28 | G22: 0 | H22: 0 | I22: 0 | J22: 0
C23: Working Capital Rate (%) | D23: ='3. Data_Input_Sheet'!E21 -> 0.075 | E23: ='3. Data_Input_Sheet'!M21 -> 0 | F23: -0.075 | G23: ='3. Data_Input_Sheet'!U21 -> 0 | H23: 0 | I23: ='3. Data_Input_Sheet'!AC21 -> 0 | J23: 0
C24: Working Capital Allowance | D24: =D22*D23 -> 1473029.271 | E24: =E22*E23 -> 0 | F24: -1473029.271 | G24: 0 | H24: =G24-E24 -> 0 | I24: 0 | J24: 0
C26: ='4. Rate_Base'!D19 -> Total Rate Base | D26: ='4. Rate_Base'!G19 -> 15545678.25 | E26: ='4. Rate_Base'!O19 -> 0 | F26: =E26-D26 -> -15545678.25 | G26: ='4. Rate_Base'!W19 -> 0 | H26: =G26-E26 -> 0 | I26: ='4. Rate_Base'!AC19 -> 0 | J26: =I26-G26 -> 0
B29: Table X | C29: Capitalization/Cost of Capital | D29: Initial Application | E29: Interrogatory Responses | F29: Variance | G29: Settlement Agreement | H29: Variance | I29: Per Board Decision | J29: Variance
C30: Capital Structure:
C31: Long-term debt Capitalization Ratio (%) | D31: ='3. Data_Input_Sheet'!E55 -> 0.1503351468 | E31: ='3. Data_Input_Sheet'!M55 -> 0 | F31: -0.1503351468 | G31: ='3. Data_Input_Sheet'!U55 -> 0 | H31: 0 | I31: ='3. Data_Input_Sheet'!AC55 -> 0 | J31: 0
C32: Short-term debt Capitalization Ratio (%) | D32: ='3. Data_Input_Sheet'!E56 -> 0.4096648532 | E32: ='3. Data_Input_Sheet'!M56 -> 0 | F32: -0.4096648532 | G32: ='3. Data_Input_Sheet'!U56 -> 0 | H32: 0 | I32: ='3. Data_Input_Sheet'!AC56 -> 0 | J32: 0
C33: Common Equity Capitalization Ratio (%) | D33: ='3. Data_Input_Sheet'!E57 -> 0.04 | E33: ='3. Data_Input_Sheet'!M57 -> 0 | F33: -0.04 | G33: ='3. Data_Input_Sheet'!U57 -> 0 | H33: 0 | I33: ='3. Data_Input_Sheet'!AC57 -> 0 | J33: 0
C34: Prefered Shares Capitalization Ratio (%) | D34: ='3. Data_Input_Sheet'!E58 -> 0.4 | E34: ='3. Data_Input_Sheet'!M58 -> 0 | F34: -0.4 | G34: ='3. Data_Input_Sheet'!U58 -> 0 | H34: 0 | I34: ='3. Data_Input_Sheet'!AC58 -> 0 | J34: 0
D35: ='3. Data_Input_Sheet'!E59 -> 0 | E35: ='3. Data_Input_Sheet'!M59 -> 0 | F35: 0 | G35: ='3. Data_Input_Sheet'!U59 -> 0 | H35: 0 | I35: ='3. Data_Input_Sheet'!AC59 -> 0 | J35: 0
C36: Cost of Capital
C37: Long-term debt Cost Rate (%) | D37: ='3. Data_Input_Sheet'!E62 -> 0 | E37: ='3. Data_Input_Sheet'!M62 -> 0 | F37: 0 | G37: ='3. Data_Input_Sheet'!U62 -> 0 | H37: 0 | I37: ='3. Data_Input_Sheet'!AC61 -> 
C38: Short-term debt Cost Rate (%) | D38: ='3. Data_Input_Sheet'!E63 -> 0.0387997922 | E38: ='3. Data_Input_Sheet'!M63 -> 0 | F38: -0.0387997922 | G38: ='3. Data_Input_Sheet'!U63 -> 0 | H38: 0 | I38: ='3. Data_Input_Sheet'!AC62 -> 0 | J38: 0
C39: Common Equity Cost Rate (%) | D39: ='3. Data_Input_Sheet'!E64 -> 0.0387997922 | E39: ='3. Data_Input_Sheet'!M64 -> 0 | F39: -0.0387997922 | G39: ='3. Data_Input_Sheet'!U64 -> 0 | H39: 0 | I39: ='3. Data_Input_Sheet'!AC64 -> 0 | J39: 0
C40: Prefered Shares Cost Rate (%) | D40: ='3. Data_Input_Sheet'!E65 -> 0.0272 | E40: ='3. Data_Input_Sheet'!M65 -> 0 | F40: -0.0272 | G40: ='3. Data_Input_Sheet'!U65 -> 0 | H40: 0 | I40: ='3. Data_Input_Sheet'!AC65 -> 0 | J40: 0
C42: ='9. Rev_Reqt'!D22 -> Deemed Interest Expense | D42: ='9. Rev_Reqt'!F22 -> 354688.386 | E42: ='9. Rev_Reqt'!J22 -> 0 | F42: -354688.386 | G42: ='9. Rev_Reqt'!N22 -> 0 | H42: =G42-E42 -> 0 | I42: ='9. Rev_Reqt'!R22 -> 0 | J42: =I42-G42 -> 0
C43: ='9. Rev_Reqt'!D23 -> Return on Deemed Equity | D43: ='9. Rev_Reqt'!F23 -> 566484.5156 | E43: ='9. Rev_Reqt'!J23 -> 0 | F43: -566484.5156 | G43: ='9. Rev_Reqt'!N23 -> 0 | H43: =G43-E43 -> 0 | I43: ='9. Rev_Reqt'!R23 -> 0 | J43: =I43-G43 -> 0
C45: Cost of Capital | D45: =SUM(D42:D43) -> 921172.9016 | E45: =SUM(E42:E43) -> 0 | F45: -921172.9016 | G45: 0 | H45: 0 | I45: 0 | J45: 0
B48: Table X | C48: Operating Revenues: | D48: Initial Application | E48: Interrogatory Responses | F48: Variance | G48: Settlement Agreement | H48: Variance | I48: Per Board Decision | J48: Variance
C49: Operating Revenues:
C50: Distribution Revenue at Current Rates | D50: ='3. Data_Input_Sheet'!E25 -> 4026602.876 | E50: ='3. Data_Input_Sheet'!M25 -> 0 | F50: -4026602.876 | G50: ='3. Data_Input_Sheet'!U25 -> 0 | H50: 0 | I50: ='3. Data_Input_Sheet'!AC25 -> 0 | J50: 0
C51: Distribution Revenue at Proposed Rates | D51: ='3. Data_Input_Sheet'!E26 -> 4959191.352 | E51: ='3. Data_Input_Sheet'!M26 -> 0 | F51: -4959191.352 | G51: ='3. Data_Input_Sheet'!U26 -> 0 | H51: 0 | I51: ='3. Data_Input_Sheet'!AC26 -> 0 | J51: 0
C53: Other Revenue:
C54: Specific Service Charges | D54: ='3. Data_Input_Sheet'!E28 -> 92845.20188 | E54: ='3. Data_Input_Sheet'!M28 -> 0 | F54: -92845.20188 | G54: ='3. Data_Input_Sheet'!U28 -> 0 | H54: 0 | I54: ='3. Data_Input_Sheet'!AC28 -> 0 | J54: 0
C55: Late Payment Charges | D55: ='3. Data_Input_Sheet'!E29 -> 77582.03626 | E55: ='3. Data_Input_Sheet'!M29 -> 0 | F55: -77582.03626 | G55: ='3. Data_Input_Sheet'!U29 -> 0 | H55: 0 | I55: ='3. Data_Input_Sheet'!AC29 -> 0 | J55: 0
C56: Other Distribution Revenue | D56: ='3. Data_Input_Sheet'!E30 -> 196225.9132 | E56: ='3. Data_Input_Sheet'!M30 -> 0 | F56: -196225.9132 | G56: ='3. Data_Input_Sheet'!U30 -> 0 | H56: 0 | I56: ='3. Data_Input_Sheet'!AC30 -> 0 | J56: 0
C57: Other Income and Deductions | D57: ='3. Data_Input_Sheet'!E31 -> 33652.89377 | E57: ='3. Data_Input_Sheet'!M31 -> 0 | F57: -33652.89377 | G57: ='3. Data_Input_Sheet'!U31 -> 0 | H57: 0 | I57: ='3. Data_Input_Sheet'!AC31 -> 0 | J57: 0
C59: Total Revenue Offsets | D59: ='3. Data_Input_Sheet'!E33 -> 400306.0451 | E59: ='3. Data_Input_Sheet'!M33 -> 0 | F59: -400306.0451 | G59: ='3. Data_Input_Sheet'!U33 -> 0 | H59: 0 | I59: ='3. Data_Input_Sheet'!AC33 -> 0 | J59: 0
B62: Table X | C62: Operating Expenses: | D62: Initial Application | E62: Interrogatory Responses | F62: Variance | G62: Settlement Agreement | H62: Variance | I62: Per Board Decision | J62: Variance
C63: OM+A Expenses | D63: ='3. Data_Input_Sheet'!E36 -> 3718936.318 | E63: ='3. Data_Input_Sheet'!M36 -> 0 | F63: -3718936.318 | G63: ='3. Data_Input_Sheet'!U36 -> 0 | H63: 0 | I63: ='3. Data_Input_Sheet'!AC36 -> 0 | J63: 0
C64: Depreciation/Amortization | D64: ='3. Data_Input_Sheet'!E37 -> 685011.58 | E64: ='3. Data_Input_Sheet'!M37 -> 0 | F64: -685011.58 | G64: ='3. Data_Input_Sheet'!U37 -> 0 | H64: 0 | I64: ='3. Data_Input_Sheet'!AC37 -> 0 | J64: 0
C65: Property taxes | D65: ='3. Data_Input_Sheet'!E38 -> 34376.59732 | E65: ='3. Data_Input_Sheet'!M38 -> 0 | F65: -34376.59732 | G65: ='3. Data_Input_Sheet'!U38 -> 0 | H65: 0 | I65: ='3. Data_Input_Sheet'!AC38 -> 0 | J65: 0
C66: Other expenses | D66: ='3. Data_Input_Sheet'!E39 -> 0 | E66: ='3. Data_Input_Sheet'!M39 -> 0 | F66: 0 | G66: ='3. Data_Input_Sheet'!U39 -> 0 | H66: 0 | I66: ='3. Data_Input_Sheet'!AC39 -> 0 | J66: 0
C68: Total Expenses | D68: =SUM(D63:D67) -> 4438324.496 | E68: =SUM(E63:E67) -> 0 | F68: -4438324.496 | G68: =SUM(G63:G67) -> 0 | H68: 0 | I68: =SUM(I63:I67) -> 0 | J68: 0
B71: Table X | C71: Taxes/PILs | D71: Initial Application | E71: Interrogatory Responses | F71: Variance | G71: Settlement Agreement | H71: Variance | I71: Per Board Decision | J71: Variance
C72: Taxable Income:
C73: Adjustments required to arrive at taxable income | D73: ='3. Data_Input_Sheet'!E44 -> -619053.1872 | E73: ='3. Data_Input_Sheet'!M44 -> 0 | F73: 619053.1872 | G73: ='3. Data_Input_Sheet'!U44 -> 0 | H73: 0 | I73: ='3. Data_Input_Sheet'!AC44 -> 0 | J73: 0
C74: Utility Income Taxes and Rates:
C75: Income taxes (not grossed up) | D75: ='3. Data_Input_Sheet'!E46 -> 0 | E75: ='3. Data_Input_Sheet'!M46 -> 0 | F75: 0 | G75: ='3. Data_Input_Sheet'!U46 -> 0 | H75: 0 | I75: ='3. Data_Input_Sheet'!AC46 -> 0 | J75: 0
C76: Income taxes (grossed up) | D76: ='3. Data_Input_Sheet'!E47 -> 0 | E76: ='3. Data_Input_Sheet'!M47 ->  | F76: =E76-D76 ->  | G76: ='3. Data_Input_Sheet'!U47 ->  | I76: ='3. Data_Input_Sheet'!AC47 ->  | J76: =I76-G76 -> 
C78: Federal tax (%) | D78: ='3. Data_Input_Sheet'!E49 -> 0.15 | E78: ='3. Data_Input_Sheet'!M49 -> 0 | F78: -0.15 | G78: ='3. Data_Input_Sheet'!U49 -> 0 | H78: 0 | I78: ='3. Data_Input_Sheet'!AC49 -> 0 | J78: 0
C79: Provincial tax (%) | D79: ='3. Data_Input_Sheet'!E50 -> 0.115 | E79: ='3. Data_Input_Sheet'!M50 -> 0 | F79: -0.115 | G79: ='3. Data_Input_Sheet'!U50 -> 0 | H79: 0 | I79: ='3. Data_Input_Sheet'!AC50 -> 0 | J79: 0
C80: Income Tax Credits | D80: ='3. Data_Input_Sheet'!E51 -> 0 | E80: ='3. Data_Input_Sheet'!M51 -> 0 | F80: 0 | G80: ='3. Data_Input_Sheet'!U51 -> 0 | H80: 0 | I80: ='3. Data_Input_Sheet'!AC51 -> 0 | J80: 0
B83: Table X | C83: Revenue Requirement | D83: Initial Application | E83: Interrogatory Responses | F83: Variance | G83: Settlement Agreement | H83: Variance | I83: Per Board Decision | J83: Variance
C84: ='9. Rev_Reqt'!D15 -> OM&A Expenses | D84: ='9. Rev_Reqt'!F15 -> 3718936.318 | E84: ='9. Rev_Reqt'!J15 -> 0 | F84: -3718936.318 | G84: ='9. Rev_Reqt'!N15 -> 0 | H84: 0 | I84: ='9. Rev_Reqt'!R15 -> 0 | J84: 0
C85: ='9. Rev_Reqt'!D16 -> Amortization/Depreciation | D85: ='9. Rev_Reqt'!F16 -> 685011.58 | E85: ='9. Rev_Reqt'!J16 -> 0 | F85: -685011.58 | G85: ='9. Rev_Reqt'!N16 -> 0 | H85: 0 | I85: ='9. Rev_Reqt'!R16 -> 0 | J85: 0
C86: ='9. Rev_Reqt'!D17 -> Property Taxes | D86: ='9. Rev_Reqt'!F17 -> 34376.59732 | E86: ='9. Rev_Reqt'!J17 -> 0 | F86: -34376.59732 | G86: ='9. Rev_Reqt'!N17 -> 0 | H86: 0 | I86: ='9. Rev_Reqt'!R17 -> 0 | J86: 0
C87: ='9. Rev_Reqt'!D18 -> Capital Taxes | D87: ='9. Rev_Reqt'!F18 -> 0 | E87: ='9. Rev_Reqt'!J18 -> 0 | F87: 0 | G87: ='9. Rev_Reqt'!N18 -> 0 | H87: 0 | I87: ='9. Rev_Reqt'!R18 -> 0 | J87: 0
C88: ='9. Rev_Reqt'!D19 -> Income Taxes (Grossed up) | D88: ='9. Rev_Reqt'!F19 -> 0 | E88: ='9. Rev_Reqt'!J19 -> 0 | F88: 0 | G88: ='9. Rev_Reqt'!N19 -> 0 | H88: 0 | I88: ='9. Rev_Reqt'!R19 -> 0 | J88: 0
C89: ='9. Rev_Reqt'!D22 -> Deemed Interest Expense | D89: ='9. Rev_Reqt'!F22 -> 354688.386 | E89: ='9. Rev_Reqt'!J22 -> 0 | F89: -354688.386 | G89: ='9. Rev_Reqt'!N22 -> 0 | H89: 0 | I89: ='9. Rev_Reqt'!R22 -> 0 | J89: 0
C90: ='9. Rev_Reqt'!D23 -> Return on Deemed Equity | D90: ='9. Rev_Reqt'!F23 -> 566484.5156 | E90: ='9. Rev_Reqt'!J23 -> 0 | F90: -566484.5156 | G90: ='9. Rev_Reqt'!N23 -> 0 | H90: 0 | I90: ='9. Rev_Reqt'!R23 -> 0 | J90: 0
C92: ='9. Rev_Reqt'!D25 -> Service Revenue Requirement (before Revenues) | D92: ='9. Rev_Reqt'!F25 -> 5359497.397 | E92: ='9. Rev_Reqt'!J25 -> 0 | F92: =E92-D92 -> -5359497.397 | G92: ='9. Rev_Reqt'!N25 -> 0 | H92: =G92-E92 -> 0 | I92: ='9. Rev_Reqt'!R25 -> 0 | J92: 0
C94: ='9. Rev_Reqt'!D27 -> Revenue Offsets | D94: ='9. Rev_Reqt'!F27 -> 400306.0451 | E94: ='9. Rev_Reqt'!J27 -> 0 | F94: -400306.0451 | G94: ='9. Rev_Reqt'!N27 -> 0 | H94: 0 | I94: ='9. Rev_Reqt'!R27 -> 0 | J94: 0
C95: ='9. Rev_Reqt'!D28 -> Base Revenue Requirement | D95: ='9. Rev_Reqt'!F28 -> 4959191.352 | E95: ='9. Rev_Reqt'!J28 -> 0 | F95: -4959191.352 | G95: ='9. Rev_Reqt'!N28 -> 0 | H95: 0 | I95: ='9. Rev_Reqt'!R28 -> 0 | J95: 0
C97: ='9. Rev_Reqt'!D43 -> Grossed-Up Revenue Deficiency/(Sufficiency) | D97: ='9. Rev_Reqt'!F43 -> 1268827.859 | E97: ='8. Rev_Def_Suff'!J52 -> 0 | F97: -1268827.859 | G97: ='8. Rev_Def_Suff'!N52 -> 0 | H97: 0 | I97: ='8. Rev_Def_Suff'!R52 -> 0 | J97: 0
I98: =I95-D95 -> -4959191.352
C100: Load Forecast
B101: Table X | C101: Customer Count | D101: Initial Application | E101: Interrogatory Responses | F101: Variance | G101: Settlement Agreement | H101: Variance | I101: Per Board Decision | J101: Variance
C102: ='10. Load Forecast'!D28 -> 0 | D102: ='10. Load Forecast'!F28 -> 0 | E102: ='10. Load Forecast'!L28 -> 0 | F102: =E102-D102 -> 0 | G102: ='10. Load Forecast'!R28 -> 0 | H102: =G102-E102 -> 0 | I102: ='10. Load Forecast'!X28 -> 0 | J102: =I102-G102 -> 0
C103: ='10. Load Forecast'!D29 -> Residential | D103: ='10. Load Forecast'!F29 -> 5376.252456 | E103: ='10. Load Forecast'!L29 -> 0 | F103: =E103-D103 -> -5376.252456 | G103: ='10. Load Forecast'!R29 -> 0 | H103: =G103-E103 -> 0 | I103: ='10. Load Forecast'!X29 -> 0 | J103: 0
C104: ='10. Load Forecast'!D30 -> General Service < 50 kW | D104: ='10. Load Forecast'!F30 -> 741.6299557 | E104: ='10. Load Forecast'!L30 -> 0 | F104: -741.6299557 | G104: ='10. Load Forecast'!R30 -> 0 | H104: 0 | I104: ='10. Load Forecast'!X30 -> 0 | J104: 0
C105: ='10. Load Forecast'!D31 -> General Service > 50 to 4999 kW | D105: ='10. Load Forecast'!F31 -> 65.94047096 | E105: ='10. Load Forecast'!L31 -> 0 | F105: -65.94047096 | G105: ='10. Load Forecast'!R31 -> 0 | H105: 0 | I105: ='10. Load Forecast'!X31 -> 0 | J105: 0
C106: ='10. Load Forecast'!D32 -> Unmetered Scattered Load | D106: ='10. Load Forecast'!F32 -> 60.45372766 | E106: ='10. Load Forecast'!L32 -> 0 | F106: -60.45372766 | G106: ='10. Load Forecast'!R32 -> 0 | H106: 0 | I106: ='10. Load Forecast'!X32 -> 0 | J106: 0
C107: ='10. Load Forecast'!D33 -> Sentinel | D107: ='10. Load Forecast'!F33 -> 69.35025782 | E107: ='10. Load Forecast'!L33 -> 0 | F107: -69.35025782 | G107: ='10. Load Forecast'!R33 -> 0 | H107: 0 | I107: ='10. Load Forecast'!X33 -> 0 | J107: =I107-G107 -> 0
C108: ='10. Load Forecast'!D34 -> StreetLights | D108: ='10. Load Forecast'!F34 -> 1713.444762 | E108: ='10. Load Forecast'!L34 -> 0 | F108: -1713.444762 | G108: ='10. Load Forecast'!R34 -> 0 | H108: 0 | I108: ='10. Load Forecast'!X34 -> 0 | J108: 0
C109: ='10. Load Forecast'!D35 -> 0 | D109: ='10. Load Forecast'!F35 -> 0 | E109: ='10. Load Forecast'!L35 -> 0 | F109: 0 | G109: ='10. Load Forecast'!R35 -> 0 | H109: 0 | I109: ='10. Load Forecast'!X35 -> 0 | J109: 0
C110: ='10. Load Forecast'!D36 -> 0 | D110: ='10. Load Forecast'!F36 -> 0 | E110: ='10. Load Forecast'!L36 -> 0 | F110: 0 | G110: ='10. Load Forecast'!R36 -> 0 | H110: 0 | I110: ='10. Load Forecast'!X36 -> 0 | J110: 0
C111: ='10. Load Forecast'!D37 -> 0 | D111: ='10. Load Forecast'!F37 -> 0 | E111: ='10. Load Forecast'!L37 -> 0 | F111: 0 | G111: ='10. Load Forecast'!R37 -> 0 | H111: 0 | I111: ='10. Load Forecast'!X37 -> 0 | J111: 0
C112: ='10. Load Forecast'!D38 -> 0 | D112: ='10. Load Forecast'!F38 -> 0 | E112: ='10. Load Forecast'!L38 -> 0 | F112: 0 | G112: ='10. Load Forecast'!R38 -> 0 | H112: 0 | I112: ='10. Load Forecast'!X38 -> 0 | J112: 0
C113: ='10. Load Forecast'!D39 -> 0 | D113: ='10. Load Forecast'!F39 -> 0 | E113: ='10. Load Forecast'!L39 -> 0 | F113: 0 | G113: ='10. Load Forecast'!R39 -> 0 | H113: 0 | I113: ='10. Load Forecast'!X39 -> 0 | J113: 0
C114: ='10. Load Forecast'!D40 -> 0 | D114: ='10. Load Forecast'!F40 -> 0 | E114: ='10. Load Forecast'!L40 -> 0 | F114: 0 | G114: ='10. Load Forecast'!R40 -> 0 | H114: 0 | I114: ='10. Load Forecast'!X40 -> 0 | J114: 0
C115: ='10. Load Forecast'!D41 -> 0 | D115: ='10. Load Forecast'!F41 -> 0 | E115: ='10. Load Forecast'!L41 -> 0 | F115: 0 | G115: ='10. Load Forecast'!R41 -> 0 | H115: 0 | I115: ='10. Load Forecast'!X41 -> 0 | J115: 0
C116: ='10. Load Forecast'!D42 -> 0 | D116: ='10. Load Forecast'!F42 -> 0 | E116: ='10. Load Forecast'!L42 -> 0 | F116: 0 | G116: ='10. Load Forecast'!R42 -> 0 | H116: 0 | I116: ='10. Load Forecast'!X42 -> 0 | J116: 0
C117: ='10. Load Forecast'!D43 -> 0 | D117: ='10. Load Forecast'!F43 -> 0 | E117: ='10. Load Forecast'!L43 -> 0 | F117: 0 | G117: ='10. Load Forecast'!R43 -> 0 | H117: 0 | I117: ='10. Load Forecast'!X43 -> 0 | J117: 0
C118: ='10. Load Forecast'!D44 -> 0 | D118: ='10. Load Forecast'!F44 -> 0 | E118: ='10. Load Forecast'!L44 -> 0 | F118: 0 | G118: ='10. Load Forecast'!R44 -> 0 | H118: 0 | I118: ='10. Load Forecast'!X44 -> 0 | J118: 0
C119: ='10. Load Forecast'!D45 -> 0 | D119: ='10. Load Forecast'!F45 -> 0 | E119: ='10. Load Forecast'!L45 -> 0 | F119: 0 | G119: ='10. Load Forecast'!R45 -> 0 | H119: =G119-E119 -> 0 | I119: ='10. Load Forecast'!X45 -> 0 | J119: =I119-G119 -> 0
C120: Total | D120: =SUM(D102:D109) -> 8027.07163 | E120: =SUM(E102:E109) -> 0 | F120: -8027.07163 | G120: 0 | H120: 0 | I120: 0 | J120: 0
B122: Table X | C122: Load Forecast
C123: Consumption | D123: Initial Application | E123: Interrogatory Responses | F123: Variance | G123: Settlement Agreement | H123: Variance | I123: Per Board Decision | J123: Variance
C124: ='10. Load Forecast'!D28 -> 0 | D124: ='10. Load Forecast'!H28 -> 0 | E124: ='10. Load Forecast'!N28 -> 0 | F124: =E124-D124 -> 0 | G124: ='10. Load Forecast'!T28 -> 0 | H124: =G124-E124 -> 0 | I124: ='10. Load Forecast'!Z28 -> 0 | J124: =I124-G124 -> 0
C125: ='10. Load Forecast'!D29 -> Residential | D125: ='10. Load Forecast'!H29 -> 50042036.12 | E125: ='10. Load Forecast'!N29 -> 0 | F125: =E125-D125 -> -50042036.12 | G125: ='10. Load Forecast'!T29 -> 0 | H125: =G125-E125 -> 0 | I125: ='10. Load Forecast'!Z29 -> 0 | J125: 0
C126: ='10. Load Forecast'!D30 -> General Service < 50 kW | D126: ='10. Load Forecast'!H30 -> 22686576.89 | E126: ='10. Load Forecast'!N30 -> 0 | F126: -22686576.89 | G126: ='10. Load Forecast'!T30 -> 0 | H126: 0 | I126: ='10. Load Forecast'!Z30 -> 0 | J126: 0
C127: ='10. Load Forecast'!D31 -> General Service > 50 to 4999 kW | D127: ='10. Load Forecast'!H31 -> 44638220.49 | E127: ='10. Load Forecast'!N31 -> 0 | F127: -44638220.49 | G127: ='10. Load Forecast'!T31 -> 0 | H127: 0 | I127: ='10. Load Forecast'!Z31 -> 0 | J127: 0
C128: ='10. Load Forecast'!D32 -> Unmetered Scattered Load | D128: ='10. Load Forecast'!H32 -> 638256.9192 | E128: ='10. Load Forecast'!N32 -> 0 | F128: -638256.9192 | G128: ='10. Load Forecast'!T32 -> 0 | H128: 0 | I128: ='10. Load Forecast'!Z32 -> 0 | J128: 0
C129: ='10. Load Forecast'!D33 -> Sentinel | D129: ='10. Load Forecast'!H33 -> 137576.679 | E129: ='10. Load Forecast'!N33 -> 0 | F129: -137576.679 | G129: ='10. Load Forecast'!T33 -> 0 | H129: 0 | I129: ='10. Load Forecast'!Z33 -> 0 | J129: 0
C130: ='10. Load Forecast'!D34 -> StreetLights | D130: ='10. Load Forecast'!H34 -> 647807.3304 | E130: ='10. Load Forecast'!N34 -> 0 | F130: -647807.3304 | G130: ='10. Load Forecast'!T34 -> 0 | H130: 0 | I130: ='10. Load Forecast'!Z34 -> 0 | J130: 0
C131: ='10. Load Forecast'!D35 -> 0 | D131: ='10. Load Forecast'!H35 -> 0 | E131: ='10. Load Forecast'!N35 -> 0 | F131: 0 | G131: ='10. Load Forecast'!T35 -> 0 | H131: 0 | I131: ='10. Load Forecast'!Z35 -> 0 | J131: 0
C132: ='10. Load Forecast'!D36 -> 0 | D132: ='10. Load Forecast'!H36 -> 0 | E132: ='10. Load Forecast'!N36 -> 0 | F132: 0 | G132: ='10. Load Forecast'!T36 -> 0 | H132: 0 | I132: ='10. Load Forecast'!Z36 -> 0 | J132: 0
C133: ='10. Load Forecast'!D37 -> 0 | D133: ='10. Load Forecast'!H37 -> 0 | E133: ='10. Load Forecast'!N37 -> 0 | F133: 0 | G133: ='10. Load Forecast'!T37 -> 0 | H133: 0 | I133: ='10. Load Forecast'!Z37 -> 0 | J133: 0
C134: ='10. Load Forecast'!D38 -> 0 | D134: ='10. Load Forecast'!H38 -> 0 | E134: ='10. Load Forecast'!N38 -> 0 | F134: 0 | G134: ='10. Load Forecast'!T38 -> 0 | H134: 0 | I134: ='10. Load Forecast'!Z38 -> 0 | J134: 0
C135: ='10. Load Forecast'!D39 -> 0 | D135: ='10. Load Forecast'!H39 -> 0 | E135: ='10. Load Forecast'!N39 -> 0 | F135: 0 | G135: ='10. Load Forecast'!T39 -> 0 | H135: 0 | I135: ='10. Load Forecast'!Z39 -> 0 | J135: 0
C136: ='10. Load Forecast'!D40 -> 0 | D136: ='10. Load Forecast'!H40 -> 0 | E136: ='10. Load Forecast'!N40 -> 0 | F136: 0 | G136: ='10. Load Forecast'!T40 -> 0 | H136: 0 | I136: ='10. Load Forecast'!Z40 -> 0 | J136: 0
C137: ='10. Load Forecast'!D41 -> 0 | D137: ='10. Load Forecast'!H41 -> 0 | E137: ='10. Load Forecast'!N41 -> 0 | F137: 0 | G137: ='10. Load Forecast'!T41 -> 0 | H137: 0 | I137: ='10. Load Forecast'!Z41 -> 0 | J137: 0
C138: ='10. Load Forecast'!D42 -> 0 | D138: ='10. Load Forecast'!H42 -> 0 | E138: ='10. Load Forecast'!N42 -> 0 | F138: 0 | G138: ='10. Load Forecast'!T42 -> 0 | H138: 0 | I138: ='10. Load Forecast'!Z42 -> 0 | J138: 0
C139: ='10. Load Forecast'!D43 -> 0 | D139: ='10. Load Forecast'!H43 -> 0 | E139: ='10. Load Forecast'!N43 -> 0 | F139: 0 | G139: ='10. Load Forecast'!T43 -> 0 | H139: 0 | I139: ='10. Load Forecast'!Z43 -> 0 | J139: 0
C140: ='10. Load Forecast'!D44 -> 0 | D140: ='10. Load Forecast'!H44 -> 0 | E140: ='10. Load Forecast'!N44 -> 0 | F140: 0 | G140: ='10. Load Forecast'!T44 -> 0 | H140: 0 | I140: ='10. Load Forecast'!Z44 -> 0 | J140: 0
C141: ='10. Load Forecast'!D45 -> 0 | D141: ='10. Load Forecast'!H45 -> 0 | E141: ='10. Load Forecast'!N45 -> 0 | F141: 0 | G141: ='10. Load Forecast'!T45 -> 0 | H141: =G141-E141 -> 0 | I141: ='10. Load Forecast'!Z45 -> 0 | J141: =I141-G141 -> 0
C142: Total | D142: =SUM(D124:D131) -> 118790474.4 | E142: 0 | F142: -118790474.4 | G142: 0 | H142: 0 | I142: 0 | J142: 0
B144: Table X | C144: Load Forecast
C145: Demand | D145: Initial Application | E145: Interrogatory Responses | F145: Variance | G145: Settlement Agreement | H145: Variance | I145: Per Board Decision | J145: Variance
C146: ='10. Load Forecast'!D28 -> 0 | D146: ='10. Load Forecast'!J28 -> 0 | E146: ='10. Load Forecast'!P28 -> 0 | F146: =E146-D146 -> 0 | G146: ='10. Load Forecast'!V28 -> 0 | H146: =G146-E146 -> 0 | I146: ='10. Load Forecast'!AB28 -> 0 | J146: =I146-G146 -> 0
C147: ='10. Load Forecast'!D29 -> Residential | D147: ='10. Load Forecast'!J29 -> 0 | E147: ='10. Load Forecast'!P29 -> 0 | F147: =E147-D147 -> 0 | G147: ='10. Load Forecast'!V29 -> 0 | H147: =G147-E147 -> 0 | I147: ='10. Load Forecast'!AB29 -> 0 | J147: 0
C148: ='10. Load Forecast'!D30 -> General Service < 50 kW | D148: ='10. Load Forecast'!J30 -> 0 | E148: ='10. Load Forecast'!P30 -> 0 | F148: 0 | G148: ='10. Load Forecast'!V30 -> 0 | H148: 0 | I148: ='10. Load Forecast'!AB30 -> 0 | J148: 0
C149: ='10. Load Forecast'!D31 -> General Service > 50 to 4999 kW | D149: ='10. Load Forecast'!J31 -> 121843.8868 | E149: ='10. Load Forecast'!P31 -> 0 | F149: -121843.8868 | G149: ='10. Load Forecast'!V31 -> 0 | H149: 0 | I149: ='10. Load Forecast'!AB31 -> 0 | J149: 0
C150: ='10. Load Forecast'!D32 -> Unmetered Scattered Load | D150: ='10. Load Forecast'!J32 -> 0 | E150: ='10. Load Forecast'!P32 -> 0 | F150: 0 | G150: ='10. Load Forecast'!V32 -> 0 | H150: 0 | I150: ='10. Load Forecast'!AB32 -> 0 | J150: 0
C151: ='10. Load Forecast'!D33 -> Sentinel | D151: ='10. Load Forecast'!J33 -> 152.3950293 | E151: ='10. Load Forecast'!P33 -> 0 | F151: -152.3950293 | G151: ='10. Load Forecast'!V33 -> 0 | H151: 0 | I151: ='10. Load Forecast'!AB33 -> 0 | J151: 0
C152: ='10. Load Forecast'!D34 -> StreetLights | D152: ='10. Load Forecast'!J34 -> 1620.825263 | E152: ='10. Load Forecast'!P34 -> 0 | F152: -1620.825263 | G152: ='10. Load Forecast'!V34 -> 0 | H152: 0 | I152: ='10. Load Forecast'!AB34 -> 0 | J152: 0
C153: ='10. Load Forecast'!D35 -> 0 | D153: ='10. Load Forecast'!J35 -> 0 | E153: ='10. Load Forecast'!P35 -> 0 | F153: 0 | G153: ='10. Load Forecast'!V35 -> 0 | H153: 0 | I153: ='10. Load Forecast'!AB35 -> 0 | J153: 0
C154: ='10. Load Forecast'!D36 -> 0 | D154: ='10. Load Forecast'!J36 -> 0 | E154: ='10. Load Forecast'!P36 -> 0 | F154: 0 | G154: ='10. Load Forecast'!V36 -> 0 | H154: 0 | I154: ='10. Load Forecast'!AB36 -> 0 | J154: 0
C155: ='10. Load Forecast'!D37 -> 0 | D155: ='10. Load Forecast'!J37 -> 0 | E155: ='10. Load Forecast'!P37 -> 0 | F155: 0 | G155: ='10. Load Forecast'!V37 -> 0 | H155: 0 | I155: ='10. Load Forecast'!AB37 -> 0 | J155: 0
C156: ='10. Load Forecast'!D38 -> 0 | D156: ='10. Load Forecast'!J38 -> 0 | E156: ='10. Load Forecast'!P38 -> 0 | F156: 0 | G156: ='10. Load Forecast'!V38 -> 0 | H156: 0 | I156: ='10. Load Forecast'!AB38 -> 0 | J156: 0
C157: ='10. Load Forecast'!D39 -> 0 | D157: ='10. Load Forecast'!J39 -> 0 | E157: ='10. Load Forecast'!P39 -> 0 | F157: 0 | G157: ='10. Load Forecast'!V39 -> 0 | H157: 0 | I157: ='10. Load Forecast'!AB39 -> 0 | J157: 0
C158: ='10. Load Forecast'!D40 -> 0 | D158: ='10. Load Forecast'!J40 -> 0 | E158: ='10. Load Forecast'!P40 -> 0 | F158: 0 | G158: ='10. Load Forecast'!V40 -> 0 | H158: 0 | I158: ='10. Load Forecast'!AB40 -> 0 | J158: 0
C159: ='10. Load Forecast'!D41 -> 0 | D159: ='10. Load Forecast'!J41 -> 0 | E159: ='10. Load Forecast'!P41 -> 0 | F159: 0 | G159: ='10. Load Forecast'!V41 -> 0 | H159: 0 | I159: ='10. Load Forecast'!AB41 -> 0 | J159: 0
C160: ='10. Load Forecast'!D42 -> 0 | D160: ='10. Load Forecast'!J42 -> 0 | E160: ='10. Load Forecast'!P42 -> 0 | F160: 0 | G160: ='10. Load Forecast'!V42 -> 0 | H160: 0 | I160: ='10. Load Forecast'!AB42 -> 0 | J160: 0
C161: ='10. Load Forecast'!D43 -> 0 | D161: ='10. Load Forecast'!J43 -> 0 | E161: ='10. Load Forecast'!P43 -> 0 | F161: 0 | G161: ='10. Load Forecast'!V43 -> 0 | H161: 0 | I161: ='10. Load Forecast'!AB43 -> 0 | J161: 0
C162: ='10. Load Forecast'!D44 -> 0 | D162: ='10. Load Forecast'!J44 -> 0 | E162: ='10. Load Forecast'!P44 -> 0 | F162: 0 | G162: ='10. Load Forecast'!V44 -> 0 | H162: 0 | I162: ='10. Load Forecast'!AB44 -> 0 | J162: 0
C163: ='10. Load Forecast'!D45 -> 0 | D163: ='10. Load Forecast'!J45 -> 0 | E163: ='10. Load Forecast'!P45 -> 0 | F163: 0 | G163: ='10. Load Forecast'!V45 -> 0 | H163: =G163-E163 -> 0 | I163: ='10. Load Forecast'!AB45 -> 0 | J163: =I163-G163 -> 0
C164: ='10. Load Forecast'!D45 -> 0 | D164: ='10. Load Forecast'!J45 -> 0 | E164: ='10. Load Forecast'!P45 -> 0 | F164: 0 | G164: ='10. Load Forecast'!V45 -> 0 | H164: 0 | I164: ='10. Load Forecast'!AB45 -> 0 | J164: 0
C165: Total | D165: =SUM(D146:D164) -> 123617.1071 | E165: =SUM(E146:E164) -> 0 | F165: -123617.1071 | G165: 0 | H165: 0 | I165: 0 | J165: 0
B168: Table X | C168: Rate Design
C169: Revenue to Cost Ratios | D169: Initial Application | F169: Interrogatory Responses | H169: Settlement Agreement | J169: Per Board Decision
D170: Calculated R/C Ratio | E170: Proposed R/C Ratio | F170: Calculated R/C Ratio | G170: Proposed R/C Ratio | H170: Calculated R/C Ratio | I170: Proposed R/C Ratio | J170: Calculated R/C Ratio | K170: Proposed R/C Ratio
C171: =C146 -> 0 | D171: ='11. Cost_Allocation RSL'!D22 -> 1.003416376 | E171: ='11. Cost_Allocation RSL'!L22 -> 1.003 | F171: ='11. Cost_Allocation RSL'!D50 -> 0 | G171: ='11. Cost_Allocation RSL'!L50 ->  | H171: ='11. Cost_Allocation RSL'!D79 -> 0 | I171: ='11. Cost_Allocation RSL'!L79 ->  | J171: ='11. Cost_Allocation RSL'!D108 -> 0 | K171: ='11. Cost_Allocation RSL'!L108 -> 
C172: Residential | D172: ='11. Cost_Allocation RSL'!D23 -> 1.151430137 | E172: ='11. Cost_Allocation RSL'!L23 -> 1.130931847 | F172: ='11. Cost_Allocation RSL'!D51 -> 0 | G172: ='11. Cost_Allocation RSL'!L51 ->  | H172: ='11. Cost_Allocation RSL'!D80 -> 0 | I172: ='11. Cost_Allocation RSL'!L80 ->  | J172: ='11. Cost_Allocation RSL'!D109 -> 0 | K172: ='11. Cost_Allocation RSL'!L109 -> 
C173: General Service < 50 kW | D173: ='11. Cost_Allocation RSL'!D24 -> 0.933379654 | E173: ='11. Cost_Allocation RSL'!L24 -> 0.933 | F173: ='11. Cost_Allocation RSL'!D52 -> 0 | G173: ='11. Cost_Allocation RSL'!L52 ->  | H173: ='11. Cost_Allocation RSL'!D81 -> 0 | I173: ='11. Cost_Allocation RSL'!L81 ->  | J173: ='11. Cost_Allocation RSL'!D110 -> 0 | K173: ='11. Cost_Allocation RSL'!L110 -> 
C174: General Service > 50 to 4999 kW | D174: ='11. Cost_Allocation RSL'!D25 -> 1.507059133 | E174: ='11. Cost_Allocation RSL'!L25 -> 1.2 | F174: ='11. Cost_Allocation RSL'!D53 -> 0 | G174: ='11. Cost_Allocation RSL'!L53 ->  | H174: ='11. Cost_Allocation RSL'!D82 -> 0 | I174: ='11. Cost_Allocation RSL'!L82 ->  | J174: ='11. Cost_Allocation RSL'!D111 -> 0 | K174: ='11. Cost_Allocation RSL'!L111 -> 
C175: Unmetered Scattered Load | D175: ='11. Cost_Allocation RSL'!D26 -> 0.4634175325 | E175: ='11. Cost_Allocation RSL'!L26 -> 0.8 | F175: ='11. Cost_Allocation RSL'!D54 -> 0 | G175: ='11. Cost_Allocation RSL'!L54 ->  | H175: ='11. Cost_Allocation RSL'!D83 -> 0 | I175: ='11. Cost_Allocation RSL'!L83 ->  | J175: ='11. Cost_Allocation RSL'!D112 -> 0 | K175: ='11. Cost_Allocation RSL'!L112 -> 
C176: Sentinel | D176: ='11. Cost_Allocation RSL'!D27 -> 0.7367218552 | E176: ='11. Cost_Allocation RSL'!L27 -> 0.8 | F176: ='11. Cost_Allocation RSL'!D55 -> 0 | G176: ='11. Cost_Allocation RSL'!L55 ->  | H176: ='11. Cost_Allocation RSL'!D84 -> 0 | I176: ='11. Cost_Allocation RSL'!L84 ->  | J176: ='11. Cost_Allocation RSL'!D113 -> 0 | K176: ='11. Cost_Allocation RSL'!L113 -> 
C177: StreetLights | D177: ='11. Cost_Allocation RSL'!D28 -> 0 | E177: ='11. Cost_Allocation RSL'!L28 ->  | F177: ='11. Cost_Allocation RSL'!D56 -> 0 | G177: ='11. Cost_Allocation RSL'!L56 ->  | H177: ='11. Cost_Allocation RSL'!D85 -> 0 | I177: ='11. Cost_Allocation RSL'!L85 ->  | J177: ='11. Cost_Allocation RSL'!D114 -> 0 | K177: ='11. Cost_Allocation RSL'!L114 -> 
C178: 0 | D178: ='11. Cost_Allocation RSL'!D29 -> 0 | E178: ='11. Cost_Allocation RSL'!L29 ->  | F178: ='11. Cost_Allocation RSL'!D57 -> 0 | G178: ='11. Cost_Allocation RSL'!L57 ->  | H178: ='11. Cost_Allocation RSL'!D86 -> 0 | I178: ='11. Cost_Allocation RSL'!L86 ->  | J178: ='11. Cost_Allocation RSL'!D115 -> 0 | K178: ='11. Cost_Allocation RSL'!L115 -> 
C179: 0 | D179: ='11. Cost_Allocation RSL'!D30 -> 0 | E179: ='11. Cost_Allocation RSL'!L30 ->  | F179: ='11. Cost_Allocation RSL'!D58 -> 0 | G179: ='11. Cost_Allocation RSL'!L58 ->  | H179: ='11. Cost_Allocation RSL'!D87 -> 0 | I179: ='11. Cost_Allocation RSL'!L87 ->  | J179: ='11. Cost_Allocation RSL'!D116 -> 0 | K179: ='11. Cost_Allocation RSL'!L116 -> 
C180: 0 | D180: ='11. Cost_Allocation RSL'!D31 -> 0 | E180: ='11. Cost_Allocation RSL'!L31 ->  | F180: ='11. Cost_Allocation RSL'!D59 -> 0 | G180: ='11. Cost_Allocation RSL'!L59 ->  | H180: ='11. Cost_Allocation RSL'!D88 -> 0 | I180: ='11. Cost_Allocation RSL'!L88 ->  | J180: ='11. Cost_Allocation RSL'!D117 -> 0 | K180: ='11. Cost_Allocation RSL'!L117 -> 
C181: 0 | D181: ='11. Cost_Allocation RSL'!D32 -> 0 | E181: ='11. Cost_Allocation RSL'!L32 ->  | F181: ='11. Cost_Allocation RSL'!D60 -> 0 | G181: ='11. Cost_Allocation RSL'!L60 ->  | H181: ='11. Cost_Allocation RSL'!D89 -> 0 | I181: ='11. Cost_Allocation RSL'!L89 ->  | J181: ='11. Cost_Allocation RSL'!D118 -> 0 | K181: ='11. Cost_Allocation RSL'!L118 -> 
C182: 0 | D182: ='11. Cost_Allocation RSL'!D33 -> 0 | E182: ='11. Cost_Allocation RSL'!L33 ->  | F182: ='11. Cost_Allocation RSL'!D61 -> 0 | G182: ='11. Cost_Allocation RSL'!L61 ->  | H182: ='11. Cost_Allocation RSL'!D90 -> 0 | I182: ='11. Cost_Allocation RSL'!L90 ->  | J182: ='11. Cost_Allocation RSL'!D119 -> 0 | K182: ='11. Cost_Allocation RSL'!L119 -> 
C183: 0 | D183: ='11. Cost_Allocation RSL'!D34 -> 0 | E183: ='11. Cost_Allocation RSL'!L34 ->  | F183: ='11. Cost_Allocation RSL'!D62 -> 0 | G183: ='11. Cost_Allocation RSL'!L62 ->  | H183: ='11. Cost_Allocation RSL'!D91 -> 0 | I183: ='11. Cost_Allocation RSL'!L91 ->  | J183: ='11. Cost_Allocation RSL'!D120 -> 0 | K183: ='11. Cost_Allocation RSL'!L120 -> 
C184: 0 | D184: ='11. Cost_Allocation RSL'!D35 -> 0 | E184: ='11. Cost_Allocation RSL'!L35 ->  | F184: ='11. Cost_Allocation RSL'!D63 -> 0 | G184: ='11. Cost_Allocation RSL'!L63 ->  | H184: ='11. Cost_Allocation RSL'!D92 -> 0 | I184: ='11. Cost_Allocation RSL'!L92 ->  | J184: ='11. Cost_Allocation RSL'!D121 -> 0 | K184: ='11. Cost_Allocation RSL'!L121 -> 
C185: 0 | D185: ='11. Cost_Allocation RSL'!D36 -> 0 | E185: ='11. Cost_Allocation RSL'!L36 ->  | F185: ='11. Cost_Allocation RSL'!D64 -> 0 | G185: ='11. Cost_Allocation RSL'!L64 ->  | H185: ='11. Cost_Allocation RSL'!D93 -> 0 | I185: ='11. Cost_Allocation RSL'!L93 ->  | J185: ='11. Cost_Allocation RSL'!D122 -> 0 | K185: ='11. Cost_Allocation RSL'!L122 -> 
C186: 0 | D186: ='11. Cost_Allocation RSL'!D37 -> 0 | E186: ='11. Cost_Allocation RSL'!L37 ->  | F186: ='11. Cost_Allocation RSL'!D65 -> 0 | G186: ='11. Cost_Allocation RSL'!L65 ->  | H186: ='11. Cost_Allocation RSL'!D94 -> 0 | I186: ='11. Cost_Allocation RSL'!L94 ->  | J186: ='11. Cost_Allocation RSL'!D123 -> 0 | K186: ='11. Cost_Allocation RSL'!L123 -> 
C187: 0 | D187: ='11. Cost_Allocation RSL'!D38 -> 0 | E187: ='11. Cost_Allocation RSL'!L38 ->  | F187: ='11. Cost_Allocation RSL'!D66 -> 0 | G187: ='11. Cost_Allocation RSL'!L66 ->  | H187: ='11. Cost_Allocation RSL'!D95 -> 0 | I187: ='11. Cost_Allocation RSL'!L95 ->  | J187: ='11. Cost_Allocation RSL'!D124 -> 0 | K187: ='11. Cost_Allocation RSL'!L124 -> 
B190: Table X | C190: Rate Design
C191: Fixed to Variable Split | D191: Initial Application | F191: Interrogatory Responses | H191: Settlement Agreement | J191: Per Board Decision
D192: Fixed | E192: Variable | F192: Fixed | G192: Variable | H192: Fixed | I192: Variable | J192: Fixed | K192: Variable
C193: =C171 -> 0 | D193: ='13. Rate Design RSL'!H21 -> 1 | E193: ='13. Rate Design RSL'!I21 -> 1.110223025e-16 | F193: ='13. Rate Design RSL'!H47 -> 0 | G193: ='13. Rate Design RSL'!I47 ->  | H193: ='13. Rate Design RSL'!H73 -> 0 | I193: ='13. Rate Design RSL'!I73 ->  | J193: ='13. Rate Design RSL'!H99 -> 0 | K193: ='13. Rate Design RSL'!I99 -> 
C194: Residential | D194: ='13. Rate Design RSL'!H22 -> 0.3632576196 | E194: ='13. Rate Design RSL'!I22 -> 0.6367423804 | F194: ='13. Rate Design RSL'!H48 -> 0 | G194: ='13. Rate Design RSL'!I48 ->  | H194: ='13. Rate Design RSL'!H74 -> 0 | I194: ='13. Rate Design RSL'!I74 ->  | J194: ='13. Rate Design RSL'!H100 -> 0 | K194: ='13. Rate Design RSL'!I100 -> 
C195: General Service < 50 kW | D195: ='13. Rate Design RSL'!H23 -> 0.3074006856 | E195: ='13. Rate Design RSL'!I23 -> 0.6925993144 | F195: ='13. Rate Design RSL'!H49 -> 0 | G195: ='13. Rate Design RSL'!I49 ->  | H195: ='13. Rate Design RSL'!H75 -> 0 | I195: ='13. Rate Design RSL'!I75 ->  | J195: ='13. Rate Design RSL'!H101 -> 0 | K195: ='13. Rate Design RSL'!I101 -> 
C196: General Service > 50 to 4999 kW | D196: ='13. Rate Design RSL'!H24 -> 0.1987555845 | E196: ='13. Rate Design RSL'!I24 -> 0.8012444155 | F196: ='13. Rate Design RSL'!H50 -> 0 | G196: ='13. Rate Design RSL'!I50 ->  | H196: ='13. Rate Design RSL'!H76 -> 0 | I196: ='13. Rate Design RSL'!I76 ->  | J196: ='13. Rate Design RSL'!H102 -> 0 | K196: ='13. Rate Design RSL'!I102 -> 
C197: Unmetered Scattered Load | D197: ='13. Rate Design RSL'!H25 -> 0.1860899133 | E197: ='13. Rate Design RSL'!I25 -> 0.8139100867 | F197: ='13. Rate Design RSL'!H51 -> 0 | G197: ='13. Rate Design RSL'!I51 ->  | H197: ='13. Rate Design RSL'!H77 -> 0 | I197: ='13. Rate Design RSL'!I77 ->  | J197: ='13. Rate Design RSL'!H103 -> 0 | K197: ='13. Rate Design RSL'!I103 -> 
C198: Sentinel | D198: ='13. Rate Design RSL'!H26 -> 0.5662320202 | E198: ='13. Rate Design RSL'!I26 -> 0.4337679798 | F198: ='13. Rate Design RSL'!H52 -> 0 | G198: ='13. Rate Design RSL'!I52 ->  | H198: ='13. Rate Design RSL'!H78 -> 0 | I198: ='13. Rate Design RSL'!I78 ->  | J198: ='13. Rate Design RSL'!H104 -> 0 | K198: ='13. Rate Design RSL'!I104 -> 
C199: StreetLights | D199: ='13. Rate Design RSL'!H27 -> 0 | E199: ='13. Rate Design RSL'!I27 ->  | F199: ='13. Rate Design RSL'!H53 -> 0 | G199: ='13. Rate Design RSL'!I53 ->  | H199: ='13. Rate Design RSL'!H79 -> 0 | I199: ='13. Rate Design RSL'!I79 ->  | J199: ='13. Rate Design RSL'!H105 -> 0 | K199: ='13. Rate Design RSL'!I105 -> 
C200: 0 | D200: ='13. Rate Design RSL'!H28 -> 0 | E200: ='13. Rate Design RSL'!I28 ->  | F200: ='13. Rate Design RSL'!H54 -> 0 | G200: ='13. Rate Design RSL'!I54 ->  | H200: ='13. Rate Design RSL'!H80 -> 0 | I200: ='13. Rate Design RSL'!I80 ->  | J200: ='13. Rate Design RSL'!H106 -> 0 | K200: ='13. Rate Design RSL'!I106 -> 
C201: 0 | D201: ='13. Rate Design RSL'!H29 -> 0 | E201: ='13. Rate Design RSL'!I29 ->  | F201: ='13. Rate Design RSL'!H55 -> 0 | G201: ='13. Rate Design RSL'!I55 ->  | H201: ='13. Rate Design RSL'!H81 -> 0 | I201: ='13. Rate Design RSL'!I81 ->  | J201: ='13. Rate Design RSL'!H107 -> 0 | K201: ='13. Rate Design RSL'!I107 -> 
C202: 0 | D202: ='13. Rate Design RSL'!H30 -> 0 | E202: ='13. Rate Design RSL'!I30 ->  | F202: ='13. Rate Design RSL'!H56 -> 0 | G202: ='13. Rate Design RSL'!I56 ->  | H202: ='13. Rate Design RSL'!H82 -> 0 | I202: ='13. Rate Design RSL'!I82 ->  | J202: ='13. Rate Design RSL'!H108 -> 0 | K202: ='13. Rate Design RSL'!I108 -> 
C203: 0 | D203: ='13. Rate Design RSL'!H31 -> 0 | E203: ='13. Rate Design RSL'!I31 ->  | F203: ='13. Rate Design RSL'!H57 -> 0 | G203: ='13. Rate Design RSL'!I57 ->  | H203: ='13. Rate Design RSL'!H83 -> 0 | I203: ='13. Rate Design RSL'!I83 ->  | J203: ='13. Rate Design RSL'!H109 -> 0 | K203: ='13. Rate Design RSL'!I109 -> 
C204: 0 | D204: ='13. Rate Design RSL'!H32 -> 0 | E204: ='13. Rate Design RSL'!I32 ->  | F204: ='13. Rate Design RSL'!H58 -> 0 | G204: ='13. Rate Design RSL'!I58 ->  | H204: ='13. Rate Design RSL'!H84 -> 0 | I204: ='13. Rate Design RSL'!I84 ->  | J204: ='13. Rate Design RSL'!H110 -> 0 | K204: ='13. Rate Design RSL'!I110 -> 
C205: 0 | D205: ='13. Rate Design RSL'!H33 -> 0 | E205: ='13. Rate Design RSL'!I33 ->  | F205: ='13. Rate Design RSL'!H59 -> 0 | G205: ='13. Rate Design RSL'!I59 ->  | H205: ='13. Rate Design RSL'!H85 -> 0 | I205: ='13. Rate Design RSL'!I85 ->  | J205: ='13. Rate Design RSL'!H111 -> 0 | K205: ='13. Rate Design RSL'!I111 -> 
C206: 0 | D206: ='13. Rate Design RSL'!H34 -> 0 | E206: ='13. Rate Design RSL'!I34 ->  | F206: ='13. Rate Design RSL'!H60 -> 0 | G206: ='13. Rate Design RSL'!I60 ->  | H206: ='13. Rate Design RSL'!H86 -> 0 | I206: ='13. Rate Design RSL'!I86 ->  | J206: ='13. Rate Design RSL'!H112 -> 0 | K206: ='13. Rate Design RSL'!I112 -> 
C207: 0 | D207: ='13. Rate Design RSL'!H35 -> 0 | E207: ='13. Rate Design RSL'!I35 ->  | F207: ='13. Rate Design RSL'!H61 -> 0 | G207: ='13. Rate Design RSL'!I61 ->  | H207: ='13. Rate Design RSL'!H87 -> 0 | I207: ='13. Rate Design RSL'!I87 ->  | J207: ='13. Rate Design RSL'!H113 -> 0 | K207: ='13. Rate Design RSL'!I113 -> 
C208: 0 | D208: ='13. Rate Design RSL'!H36 -> 0 | E208: ='13. Rate Design RSL'!I36 ->  | F208: ='13. Rate Design RSL'!H62 -> 0 | G208: ='13. Rate Design RSL'!I62 ->  | H208: ='13. Rate Design RSL'!H88 -> 0 | I208: ='13. Rate Design RSL'!I88 ->  | J208: ='13. Rate Design RSL'!H114 -> 0 | K208: ='13. Rate Design RSL'!I114 -> 
C209: 0 | D209: ='13. Rate Design RSL'!H37 -> 0 | E209: ='13. Rate Design RSL'!I37 ->  | F209: ='13. Rate Design RSL'!H63 -> 0 | G209: ='13. Rate Design RSL'!I63 ->  | H209: ='13. Rate Design RSL'!H89 -> 0 | I209: ='13. Rate Design RSL'!I89 ->  | J209: ='13. Rate Design RSL'!H115 -> 0 | K209: ='13. Rate Design RSL'!I115 -> 
B212: Table X | C212: Rate Design
C213: Distribution Rates | D213: Initial Application | F213: Interrogatory Responses | H213: Settlement Agreement | J213: Per Board Decision
D214: Fixed | E214: Variable | F214: Fixed | G214: Variable | H214: Fixed | I214: Variable | J214: Fixed | K214: Variable
C215: =C193 -> 0 | D215: ='13. Rate Design RSL'!K21 -> 45.00718004 | E215: ='13. Rate Design RSL'!L21 -> 0 | F215: ='13. Rate Design RSL'!K47 ->  | G215: ='13. Rate Design RSL'!L47 ->  | H215: ='13. Rate Design RSL'!K73 ->  | I215: ='13. Rate Design RSL'!L73 ->  | J215: ='13. Rate Design RSL'!K99 ->  | K215: ='13. Rate Design RSL'!L99 -> 
C216: Residential | D216: ='13. Rate Design RSL'!K22 -> 37.49 | E216: ='13. Rate Design RSL'!L22 -> 0.0258 | F216: ='13. Rate Design RSL'!K48 ->  | G216: ='13. Rate Design RSL'!L48 ->  | H216: ='13. Rate Design RSL'!K74 ->  | I216: ='13. Rate Design RSL'!L74 ->  | J216: ='13. Rate Design RSL'!K100 ->  | K216: ='13. Rate Design RSL'!L100 -> 
C217: General Service < 50 kW | D217: ='13. Rate Design RSL'!K23 -> 357.29 | E217: ='13. Rate Design RSL'!L23 -> 4.9529 | F217: ='13. Rate Design RSL'!K49 ->  | G217: ='13. Rate Design RSL'!L49 ->  | H217: ='13. Rate Design RSL'!K75 ->  | I217: ='13. Rate Design RSL'!L75 ->  | J217: ='13. Rate Design RSL'!K101 ->  | K217: ='13. Rate Design RSL'!L101 -> 
C218: General Service > 50 to 4999 kW | D218: ='13. Rate Design RSL'!K24 -> 6.008604558 | E218: ='13. Rate Design RSL'!L24 -> 0.0275 | F218: ='13. Rate Design RSL'!K50 ->  | G218: ='13. Rate Design RSL'!L50 ->  | H218: ='13. Rate Design RSL'!K76 ->  | I218: ='13. Rate Design RSL'!L76 ->  | J218: ='13. Rate Design RSL'!K102 ->  | K218: ='13. Rate Design RSL'!L102 -> 
C219: Unmetered Scattered Load | D219: ='13. Rate Design RSL'!K25 -> 4.32 | E219: ='13. Rate Design RSL'!L25 -> 103.1801 | F219: ='13. Rate Design RSL'!K51 ->  | G219: ='13. Rate Design RSL'!L51 ->  | H219: ='13. Rate Design RSL'!K77 ->  | I219: ='13. Rate Design RSL'!L77 ->  | J219: ='13. Rate Design RSL'!K103 ->  | K219: ='13. Rate Design RSL'!L103 -> 
C220: Sentinel | D220: ='13. Rate Design RSL'!K26 -> 4.85 | E220: ='13. Rate Design RSL'!L26 -> 47.1324 | F220: ='13. Rate Design RSL'!K52 ->  | G220: ='13. Rate Design RSL'!L52 ->  | H220: ='13. Rate Design RSL'!K78 ->  | I220: ='13. Rate Design RSL'!L78 ->  | J220: ='13. Rate Design RSL'!K104 ->  | K220: ='13. Rate Design RSL'!L104 -> 
C221: StreetLights | D221: ='13. Rate Design RSL'!K27 ->  | E221: ='13. Rate Design RSL'!L27 ->  | F221: ='13. Rate Design RSL'!K53 ->  | G221: ='13. Rate Design RSL'!L53 ->  | H221: ='13. Rate Design RSL'!K79 ->  | I221: ='13. Rate Design RSL'!L79 ->  | J221: ='13. Rate Design RSL'!K105 ->  | K221: ='13. Rate Design RSL'!L105 -> 
C222: 0 | D222: ='13. Rate Design RSL'!K28 ->  | E222: ='13. Rate Design RSL'!L28 ->  | F222: ='13. Rate Design RSL'!K54 ->  | G222: ='13. Rate Design RSL'!L54 ->  | H222: ='13. Rate Design RSL'!K80 ->  | I222: ='13. Rate Design RSL'!L80 ->  | J222: ='13. Rate Design RSL'!K106 ->  | K222: ='13. Rate Design RSL'!L106 -> 
C223: 0 | D223: ='13. Rate Design RSL'!K29 ->  | E223: ='13. Rate Design RSL'!L29 ->  | F223: ='13. Rate Design RSL'!K55 ->  | G223: ='13. Rate Design RSL'!L55 ->  | H223: ='13. Rate Design RSL'!K81 ->  | I223: ='13. Rate Design RSL'!L81 ->  | J223: ='13. Rate Design RSL'!K107 ->  | K223: ='13. Rate Design RSL'!L107 -> 
C224: 0 | D224: ='13. Rate Design RSL'!K30 ->  | E224: ='13. Rate Design RSL'!L30 ->  | F224: ='13. Rate Design RSL'!K56 ->  | G224: ='13. Rate Design RSL'!L56 ->  | H224: ='13. Rate Design RSL'!K82 ->  | I224: ='13. Rate Design RSL'!L82 ->  | J224: ='13. Rate Design RSL'!K108 ->  | K224: ='13. Rate Design RSL'!L108 -> 
C225: 0 | D225: ='13. Rate Design RSL'!K31 ->  | E225: ='13. Rate Design RSL'!L31 ->  | F225: ='13. Rate Design RSL'!K57 ->  | G225: ='13. Rate Design RSL'!L57 ->  | H225: ='13. Rate Design RSL'!K83 ->  | I225: ='13. Rate Design RSL'!L83 ->  | J225: ='13. Rate Design RSL'!K109 ->  | K225: ='13. Rate Design RSL'!L109 -> 
C226: 0 | D226: ='13. Rate Design RSL'!K32 ->  | E226: ='13. Rate Design RSL'!L32 ->  | F226: ='13. Rate Design RSL'!K58 ->  | G226: ='13. Rate Design RSL'!L58 ->  | H226: ='13. Rate Design RSL'!K84 ->  | I226: ='13. Rate Design RSL'!L84 ->  | J226: ='13. Rate Design RSL'!K110 ->  | K226: ='13. Rate Design RSL'!L110 -> 
C227: 0 | D227: ='13. Rate Design RSL'!K33 ->  | E227: ='13. Rate Design RSL'!L33 ->  | F227: ='13. Rate Design RSL'!K59 ->  | G227: ='13. Rate Design RSL'!L59 ->  | H227: ='13. Rate Design RSL'!K85 ->  | I227: ='13. Rate Design RSL'!L85 ->  | J227: ='13. Rate Design RSL'!K111 ->  | K227: ='13. Rate Design RSL'!L111 -> 
C228: 0 | D228: ='13. Rate Design RSL'!K34 ->  | E228: ='13. Rate Design RSL'!L34 ->  | F228: ='13. Rate Design RSL'!K60 ->  | G228: ='13. Rate Design RSL'!L60 ->  | H228: ='13. Rate Design RSL'!K86 ->  | I228: ='13. Rate Design RSL'!L86 ->  | J228: ='13. Rate Design RSL'!K112 ->  | K228: ='13. Rate Design RSL'!L112 -> 
C229: 0 | D229: ='13. Rate Design RSL'!K35 ->  | E229: ='13. Rate Design RSL'!L35 ->  | F229: ='13. Rate Design RSL'!K61 ->  | G229: ='13. Rate Design RSL'!L61 ->  | H229: ='13. Rate Design RSL'!K87 ->  | I229: ='13. Rate Design RSL'!L87 ->  | J229: ='13. Rate Design RSL'!K113 ->  | K229: ='13. Rate Design RSL'!L113 -> 
C230: 0 | D230: ='13. Rate Design RSL'!K36 ->  | E230: ='13. Rate Design RSL'!L36 ->  | F230: ='13. Rate Design RSL'!K62 ->  | G230: ='13. Rate Design RSL'!L62 ->  | H230: ='13. Rate Design RSL'!K88 ->  | I230: ='13. Rate Design RSL'!L88 ->  | J230: ='13. Rate Design RSL'!K114 ->  | K230: ='13. Rate Design RSL'!L114 -> 
C231: 0 | D231: ='13. Rate Design RSL'!K37 ->  | E231: ='13. Rate Design RSL'!L37 ->  | F231: ='13. Rate Design RSL'!K63 ->  | G231: ='13. Rate Design RSL'!L63 ->  | H231: ='13. Rate Design RSL'!K89 ->  | I231: ='13. Rate Design RSL'!L89 ->  | J231: ='13. Rate Design RSL'!K115 ->  | K231: ='13. Rate Design RSL'!L115 -> 

Sheet Sheet4 (hidden)
